Capital or Revenue,Directorate,Transaction Number,Date,Service Area,Expenses Type,Amount,Supplier Name
Revenue,Place,5105660107,13.11.2015,Other Grounds Maintenance,Payment to Private Contractors,750.00,REDACTED PERSONAL DATA
Revenue,Childrens Services,5105659906,11.11.2015,Support for Inclusion - Service Recharge,Payment to Private Contractors,800.00,REDACTED PERSONAL DATA
Revenue,Childrens Services,5105660692,18.11.2015,S17 Disabled Children,Support Children,630.00,REDACTED PERSONAL DATA
Revenue,Childrens Services,5105660068,13.11.2015,LSCB (Local Safeguarding Childrens Board),Consultants Fees,"5,250.00",REDACTED PERSONAL DATA
Revenue,Place,5105660060,11.11.2015,"Westridge, Ryde",Security of Buildings,25.00,REDACTED PERSONAL DATA
Revenue,Place,5105660060,11.11.2015,York Centre E Cowes,Security of Buildings,100.00,REDACTED PERSONAL DATA
Revenue,Place,5105660060,11.11.2015,Church View Ventnor,Security of Buildings,150.00,REDACTED PERSONAL DATA
Revenue,Place,5105660060,11.11.2015,"St Thomas Church, Ryde",Security of Buildings,100.00,REDACTED PERSONAL DATA
Revenue,Place,5105660060,11.11.2015,Carisbrooke Contact Centre,Security of Buildings,100.00,REDACTED PERSONAL DATA
Revenue,Childrens Services,5105660060,11.11.2015,Youth- Cowes,Security of Buildings,75.00,REDACTED PERSONAL DATA
Revenue,Childrens Services,5105660060,11.11.2015,Youth- Ryde  (Well St),Security of Buildings,"1,240.00",REDACTED PERSONAL DATA
Revenue,Childrens Services,5105660060,11.11.2015,Island Youth Water Activity Centre,Security of Buildings,75.00,REDACTED PERSONAL DATA
Revenue,Childrens Services,5105660060,11.11.2015,Island Futures Careers & Employability,Security of Buildings,375.00,REDACTED PERSONAL DATA
Revenue,Place,5105660060,11.11.2015,Victoria Recreation Ground,Security of Buildings,100.00,REDACTED PERSONAL DATA
Revenue,Place,5105660060,11.11.2015,Ryde Depot,Security of Buildings,100.00,REDACTED PERSONAL DATA
Revenue,Place,5105660060,11.11.2015,Ryde Depot,Security of Buildings,100.00,REDACTED PERSONAL DATA
Revenue,Childrens Services,5105660152,13.11.2015,Home to School Transport,Taxis - Contract Hire,291.89,MICK'S TAXI
Revenue,Childrens Services,5105660153,13.11.2015,Home to School Transport,Taxis - Contract Hire,312.48,MICK'S TAXI
Revenue,Childrens Services,5105660154,13.11.2015,Home to School Transport,Taxis - Contract Hire,466.17,MICK'S TAXI
Revenue,Childrens Services,5105660081,11.11.2015,Home to School Transport,Taxis - Contract Hire,420.00,CLARES CABS
Revenue,Place,5105662715,25.11.2015,Coroner,Professional Services,195.36,REDACTED PERSONAL DATA
Revenue,Place,5105662715,25.11.2015,Coroner,Professional Services,2.70,REDACTED PERSONAL DATA
Revenue,Place,5105662715,25.11.2015,Coroner,Professional Services,35.52,REDACTED PERSONAL DATA
Revenue,Childrens Services,5105659754,06.11.2015,Short Breaks,Charges from Independent Providers,70.00,REDACTED PERSONAL DATA
Revenue,Resources,5105661826,20.11.2015,ICT Contracts,Computer Maintenance,300.00,REDACTED PERSONAL DATA
Revenue,Childrens Services,5105659902,11.11.2015,Island Learning Centre,Training,424.00,REDACTED PERSONAL DATA
Revenue,Resources,5105662738,27.11.2015,County Hall Central Mail Room,Training,30.00,JOHN MARSH DRIVING INSTRUCTOR
Revenue,Adult Services,5105659802,11.11.2015,Plean Dene,Training,30.00,JOHN MARSH DRIVING INSTRUCTOR
Revenue,Adult Services,5105659802,11.11.2015,Saxonbury,Training,30.00,JOHN MARSH DRIVING INSTRUCTOR
Revenue,Adult Services,5105659802,11.11.2015,Community Outreach,Training,150.00,JOHN MARSH DRIVING INSTRUCTOR
Revenue,Place,5105659406,04.11.2015,B&B Properties,Accommodation Costs - Bed & Breakfast,816.67,ALTAVIA HOTEL
Revenue,Place,5105660159,13.11.2015,B&B Properties,Accommodation Costs - Bed & Breakfast,"1,108.34",ALTAVIA HOTEL
Revenue,Childrens Services,5105661996,25.11.2015,Visually Impaired Service,Consultants Fees,665.00,REDACTED PERSONAL DATA
Revenue,Childrens Services,5105662396,25.11.2015,Manager Specialist SEN Services,Training,"1,000.00",REDACTED PERSONAL DATA
Revenue,Childrens Services,5105660668,20.11.2015,Adoption Costs,Professional Services,200.00,REDACTED PERSONAL DATA
Revenue,Childrens Services,5105656562,06.11.2015,Adoption Costs,Professional Services,250.00,REDACTED PERSONAL DATA
Revenue,Childrens Services,5105656274,11.11.2015,Adoption Reform Grant,Charges from Independent Providers,472.00,REDACTED PERSONAL DATA
Revenue,Childrens Services,5105657642,04.11.2015,Short Breaks,Charges from Independent Providers,315.00,REDACTED PERSONAL DATA
Revenue,Childrens Services,5105662679,25.11.2015,Short Breaks,Charges from Independent Providers,264.00,REDACTED PERSONAL DATA
Revenue,Childrens Services,5105657549,06.11.2015,Support for Looked After Children,Support Children,375.00,ISLAND EQUUS
Revenue,Place,5105662345,25.11.2015,Castle Haven Coast Protection Scheme,Payment to Private Contractors,"4,439.00",REDACTED PERSONAL DATA
Revenue,Childrens Services,5105662052,20.11.2015,Workforce Development - Early Years,Training,"1,400.00",REDACTED PERSONAL DATA
Revenue,Childrens Services,5105662052,20.11.2015,Workforce Development - Early Years,Training,298.00,REDACTED PERSONAL DATA
Revenue,Childrens Services,5105662052,20.11.2015,Workforce Development - Early Years,Training,140.40,REDACTED PERSONAL DATA
Revenue,Childrens Services,5105661993,20.11.2015,Island Learning Centre,Bought in Prof Services - Curriculum (Schools),410.00,ISLE OF WIGHT JIU JITSU
Revenue,Childrens Services,5105659520,11.11.2015,Short Breaks,Charges from Independent Providers,136.00,REDACTED PERSONAL DATA
Capital,Place,5105659876,11.11.2015,Rights Of Way Capital Programme,Payment to Contractors - Capital,120.00,REDACTED PERSONAL DATA
Revenue,Childrens Services,5105660615,18.11.2015,Safeguarding Training,Training,800.00,REDACTED PERSONAL DATA
Revenue,Childrens Services,5105660617,18.11.2015,ASYE Programme,Training,"1,458.00",REDACTED PERSONAL DATA
Revenue,Childrens Services,5105660485,18.11.2015,ASYE Programme,Training,486.00,REDACTED PERSONAL DATA
Revenue,Place,5105662123,25.11.2015,Leaseholds by LA,Accommodation Costs - Leaseholder Payments,695.89,REDACTED PERSONAL DATA
Revenue,Place,5105662123,25.11.2015,Leaseholds by LA,Accommodation Costs - Leaseholder Payments,695.89,REDACTED PERSONAL DATA
Revenue,Place,5105662123,25.11.2015,Leaseholds by LA,Accommodation Costs - Leaseholder Payments,695.89,REDACTED PERSONAL DATA
Revenue,Place,5105662123,25.11.2015,Leaseholds by LA,Accommodation Costs - Leaseholder Payments,695.89,REDACTED PERSONAL DATA
Revenue,Place,5105662123,25.11.2015,Leaseholds by LA,Accommodation Costs - Leaseholder Payments,695.89,REDACTED PERSONAL DATA
Revenue,Place,5105660924,18.11.2015,"County Hall,Newport",Prop Svs only - Day to day mtce,60.00,REDACTED PERSONAL DATA
Revenue,Place,5105661216,18.11.2015,"County Hall,Newport",Prop Svs only - Day to day mtce,30.00,REDACTED PERSONAL DATA
Revenue,Place,5105661989,20.11.2015,"County Hall,Newport",Prop Svs only - Day to day mtce,277.84,REDACTED PERSONAL DATA
Revenue,Place,5105658621,04.11.2015,"Bugle House,Newport",Property Services - Planned Maintenance,320.00,REDACTED PERSONAL DATA
Revenue,Place,5105664112,27.11.2015,"Westridge, Ryde",Prop Svs only - Day to day mtce,-247.60,REDACTED PERSONAL DATA
Revenue,Place,5105662733,25.11.2015,Downside Community & Learning Centre,Prop Svs only - Day to day mtce,480.00,REDACTED PERSONAL DATA
Revenue,Adult Services,5105659997,11.11.2015,40 Venner Avenue,Minor Works,60.00,REDACTED PERSONAL DATA
Revenue,Adult Services,5105659391,04.11.2015,Highmead,Minor Works,60.00,REDACTED PERSONAL DATA
Revenue,Place,5105659899,11.11.2015,17 Fairlee Road,Prop Svs only - Day to day mtce,90.00,REDACTED PERSONAL DATA
Revenue,Adult Services,5105662003,20.11.2015,Gouldings Resource Centre,Prop Svs only - Day to day mtce,494.44,REDACTED PERSONAL DATA
Revenue,Adult Services,5105659795,06.11.2015,Gouldings Resource Centre,Prop Svs only - Day to day mtce,90.00,REDACTED PERSONAL DATA
Revenue,Adult Services,5105664063,27.11.2015,Westminster House,Prop Svs only - Day to day mtce,337.89,REDACTED PERSONAL DATA
Revenue,Place,5105664048,27.11.2015,Newport Library,Prop Svs only - Day to day mtce,30.00,REDACTED PERSONAL DATA
Revenue,Place,5105662768,25.11.2015,Newport Library,Prop Svs only - Day to day mtce,90.00,REDACTED PERSONAL DATA
Revenue,Place,5105657623,04.11.2015,The Heights,Prop Svs only - Day to day mtce,90.00,REDACTED PERSONAL DATA
Revenue,Place,5105664008,27.11.2015,The Heights,Prop Svs only - Day to day mtce,90.00,REDACTED PERSONAL DATA
Revenue,Place,5105664017,27.11.2015,Medina Leisure Centre,Prop Svs only - Day to day mtce,60.00,REDACTED PERSONAL DATA
Revenue,Place,5105660066,11.11.2015,Medina Leisure Centre,Prop Svs only - Day to day mtce,60.00,REDACTED PERSONAL DATA
Revenue,Childrens Services,5105660970,18.11.2015,Childrens Centres Maintenance,Minor Works,60.00,REDACTED PERSONAL DATA
Revenue,Place,5105664050,27.11.2015,Business Support  - Fire,Property Services - Planned Maintenance,220.00,REDACTED PERSONAL DATA
Revenue,Place,5105660925,18.11.2015,Business Support  - Fire,Prop Svs only - Day to day mtce,258.01,REDACTED PERSONAL DATA
Revenue,Place,5105660628,18.11.2015,Business Support  - Fire,Prop Svs only - Day to day mtce,30.00,REDACTED PERSONAL DATA
Revenue,Place,5105662319,25.11.2015,Business Support  - Fire,Prop Svs only - Day to day mtce,90.00,REDACTED PERSONAL DATA
Revenue,Place,5105659779,06.11.2015,Business Support  - Fire,Prop Svs only - Day to day mtce,60.00,REDACTED PERSONAL DATA
Revenue,Childrens Services,5105664046,27.11.2015,Complaints (Children & Families),Professional Services,"1,598.25",REDACTED PERSONAL DATA
Revenue,Childrens Services,5105664046,27.11.2015,Complaints (Children & Families),Professional Services,270.75,REDACTED PERSONAL DATA
Revenue,Childrens Services,5105664046,27.11.2015,Complaints (Children & Families),Professional Services,91.10,REDACTED PERSONAL DATA
Revenue,Childrens Services,5105664046,27.11.2015,Complaints (Children & Families),Professional Services,58.00,REDACTED PERSONAL DATA
Revenue,Childrens Services,5105664046,27.11.2015,Complaints (Children & Families),Professional Services,14.50,REDACTED PERSONAL DATA
Revenue,Childrens Services,5105662820,27.11.2015,Leaving Care Costs,Charges from Independent Providers,"2,785.80",NUMBER5NEWPORT
Revenue,Childrens Services,5105662818,27.11.2015,Leaving Care Costs,Charges from Independent Providers,"2,785.80",NUMBER5NEWPORT
Revenue,Childrens Services,5105662819,27.11.2015,Leaving Care Costs,Charges from Independent Providers,"2,785.80",NUMBER5NEWPORT
Revenue,Childrens Services,5105662822,27.11.2015,Leaving Care Costs,Charges from Independent Providers,"2,142.90",NUMBER5NEWPORT
Revenue,Childrens Services,5105662820,27.11.2015,Leaving Care Costs,Accommodation Costs - Service Users,288.00,NUMBER5NEWPORT
Revenue,Childrens Services,5105662824,27.11.2015,Leaving Care Costs,Accommodation Costs - Service Users,288.00,NUMBER5NEWPORT
Revenue,Childrens Services,5105662819,27.11.2015,Leaving Care Costs,Accommodation Costs - Service Users,288.00,NUMBER5NEWPORT
Revenue,Childrens Services,5105662818,27.11.2015,Leaving Care Costs,Accommodation Costs - Service Users,288.00,NUMBER5NEWPORT
Revenue,Childrens Services,5105662822,27.11.2015,Leaving Care Costs,Accommodation Costs - Service Users,288.00,NUMBER5NEWPORT
Revenue,Childrens Services,5105662824,27.11.2015,Purchased Residential,Charges from Independent Providers,"2,785.80",NUMBER5NEWPORT
Revenue,Childrens Services,5105660461,13.11.2015,Complaints (Children & Families),Professional Services,577.50,REDACTED PERSONAL DATA
Revenue,Childrens Services,5105660461,13.11.2015,Complaints (Children & Families),Professional Services,216.00,REDACTED PERSONAL DATA
Revenue,Childrens Services,5105660461,13.11.2015,Complaints (Children & Families),Professional Services,206.64,REDACTED PERSONAL DATA
Revenue,Childrens Services,5105660461,13.11.2015,Complaints (Children & Families),Professional Services,156.25,REDACTED PERSONAL DATA
Revenue,Childrens Services,5105660461,13.11.2015,Complaints (Children & Families),Professional Services,150.00,REDACTED PERSONAL DATA
Revenue,Childrens Services,5105660461,13.11.2015,Complaints (Children & Families),Professional Services,75.77,REDACTED PERSONAL DATA
Revenue,Childrens Services,5105660461,13.11.2015,Complaints (Children & Families),Professional Services,168.00,REDACTED PERSONAL DATA
Revenue,Childrens Services,5105660664,18.11.2015,Island Learning Centre,Transport of Clients,344.00,LAKE TAXIS
Revenue,Public Health,5105659568,06.11.2015,Vanguard Public Health,Payment to Private Contractors,500.00,REDACTED PERSONAL DATA
Revenue,Public Health,5105659568,06.11.2015,Vanguard Public Health,Payment to Private Contractors,250.00,REDACTED PERSONAL DATA
Revenue,Public Health,5105659568,06.11.2015,Vanguard Public Health,Payment to Private Contractors,204.00,REDACTED PERSONAL DATA
Revenue,Public Health,5105659568,06.11.2015,Vanguard Public Health,Payment to Private Contractors,90.00,REDACTED PERSONAL DATA
Revenue,Public Health,5105659568,06.11.2015,Vanguard Public Health,Payment to Private Contractors,40.00,REDACTED PERSONAL DATA
Revenue,Place,5105662142,25.11.2015,Leaseholds by LA,Accommodation Costs - Leaseholder Payments,866.67,2K PROPERTY
Revenue,Childrens Services,5105659425,04.11.2015,Purchased Fostering,Charges from Independent Providers,"4,251.65",5 FOSTERING
Revenue,Childrens Services,5105659813,11.11.2015,Purchased Fostering,Charges from Independent Providers,"4,251.65",5 FOSTERING
Revenue,Adult Services,5105659434,04.11.2015,Highmead,Minor Works,87.03,A & M APPLIANCE CARE
Revenue,Adult Services,5105661329,20.11.2015,Adelaide Resource Centre,Consumable Cleaning Materials,272.00,A & M APPLIANCE CARE
Revenue,Adult Services,5105661323,20.11.2015,Gouldings Resource Centre,Consumable Cleaning Materials,150.00,A & M APPLIANCE CARE
Revenue,Place,5105662740,25.11.2015,Fire Technical Support,Stock Purchases,120.00,A & M APPLIANCE CARE
Revenue,Place,5105662740,25.11.2015,Fire Technical Support,Stock Purchases,30.00,A & M APPLIANCE CARE
Revenue,Adult Services,5105662294,25.11.2015,Saxonbury,Prop Svs only - Day to day mtce,55.00,A C SERVICES
Revenue,Childrens Services,5105659616,06.11.2015,Special Guardianship Order Costs,Support Children,168.39,REDACTED PERSONAL DATA
Revenue,Childrens Services,5105659616,06.11.2015,Special Guardianship Order Costs,Support Children,207.73,REDACTED PERSONAL DATA
Revenue,Childrens Services,5105660198,13.11.2015,Special Guardianship Order Costs,Support Children,168.39,REDACTED PERSONAL DATA
Revenue,Childrens Services,5105660198,13.11.2015,Special Guardianship Order Costs,Support Children,207.73,REDACTED PERSONAL DATA
Revenue,Childrens Services,5105662911,27.11.2015,Special Guardianship Order Costs,Support Children,168.39,REDACTED PERSONAL DATA
Revenue,Childrens Services,5105662911,27.11.2015,Special Guardianship Order Costs,Support Children,207.73,REDACTED PERSONAL DATA
Revenue,Childrens Services,5105661651,20.11.2015,Special Guardianship Order Costs,Support Children,168.39,REDACTED PERSONAL DATA
Revenue,Childrens Services,5105661651,20.11.2015,Special Guardianship Order Costs,Support Children,207.73,REDACTED PERSONAL DATA
Revenue,Childrens Services,5105661713,20.11.2015,Leaving Care Costs,Support Children,120.89,REDACTED PERSONAL DATA
Revenue,Childrens Services,5105662973,27.11.2015,Leaving Care Costs,Support Children,120.89,REDACTED PERSONAL DATA
Revenue,Childrens Services,5105659679,06.11.2015,Leaving Care Costs,Support Children,120.89,REDACTED PERSONAL DATA
Revenue,Childrens Services,5105660261,13.11.2015,Leaving Care Costs,Support Children,120.89,REDACTED PERSONAL DATA
Revenue,Childrens Services,5105659679,06.11.2015,Leaving Care Costs,Accommodation Costs - Service Users,68.50,REDACTED PERSONAL DATA
Revenue,Childrens Services,5105660261,13.11.2015,Leaving Care Costs,Accommodation Costs - Service Users,68.50,REDACTED PERSONAL DATA
Revenue,Childrens Services,5105661713,20.11.2015,Leaving Care Costs,Accommodation Costs - Service Users,68.50,REDACTED PERSONAL DATA
Revenue,Childrens Services,5105662973,27.11.2015,Leaving Care Costs,Accommodation Costs - Service Users,68.50,REDACTED PERSONAL DATA
Revenue,Place,5105662137,25.11.2015,Leaseholds by LA,Accommodation Costs - Leaseholder Payments,510.25,REDACTED PERSONAL DATA
Revenue,Place,5105662137,25.11.2015,Leaseholds by LA,Accommodation Costs - Leaseholder Payments,510.25,REDACTED PERSONAL DATA
Revenue,Place,5105662137,25.11.2015,Leaseholds by LA,Accommodation Costs - Leaseholder Payments,510.25,REDACTED PERSONAL DATA
Revenue,Place,5105662137,25.11.2015,Leaseholds by LA,Accommodation Costs - Leaseholder Payments,510.25,REDACTED PERSONAL DATA
Revenue,Place,5105662137,25.11.2015,Leaseholds by LA,Accommodation Costs - Leaseholder Payments,510.25,REDACTED PERSONAL DATA
Revenue,Place,5105662137,25.11.2015,Leaseholds by LA,Accommodation Costs - Leaseholder Payments,510.25,REDACTED PERSONAL DATA
Revenue,Childrens Services,5105661633,20.11.2015,Adoption Costs,Support Children,225.83,REDACTED PERSONAL DATA
Revenue,Childrens Services,5105660179,13.11.2015,Adoption Costs,Support Children,225.83,REDACTED PERSONAL DATA
Revenue,Childrens Services,5105659597,06.11.2015,Adoption Costs,Support Children,225.83,REDACTED PERSONAL DATA
Revenue,Childrens Services,5105662893,27.11.2015,Adoption Costs,Support Children,225.83,REDACTED PERSONAL DATA
Revenue,Childrens Services,5105659650,06.11.2015,In-house Fostering,Boarding Out Allowances,162.73,REDACTED PERSONAL DATA
Revenue,Childrens Services,5105660232,13.11.2015,In-house Fostering,Boarding Out Allowances,162.73,REDACTED PERSONAL DATA
Revenue,Childrens Services,5105661685,20.11.2015,In-house Fostering,Boarding Out Allowances,162.73,REDACTED PERSONAL DATA
Revenue,Childrens Services,5105662945,27.11.2015,In-house Fostering,Boarding Out Allowances,162.73,REDACTED PERSONAL DATA
Revenue,Place,5105662139,25.11.2015,Leaseholds by LA,Accommodation Costs - Leaseholder Payments,780.00,REDACTED PERSONAL DATA
Revenue,Place,5105662127,25.11.2015,Leaseholds by LA,Accommodation Costs - Leaseholder Payments,649.83,REDACTED PERSONAL DATA
Revenue,Place,5105662127,25.11.2015,Leaseholds by LA,Accommodation Costs - Leaseholder Payments,789.01,REDACTED PERSONAL DATA
Revenue,Place,5105662127,25.11.2015,Leaseholds by LA,Accommodation Costs - Leaseholder Payments,835.08,REDACTED PERSONAL DATA
Revenue,Place,5105662127,25.11.2015,Leaseholds by LA,Accommodation Costs - Leaseholder Payments,700.00,REDACTED PERSONAL DATA
Revenue,Place,5105661920,20.11.2015,Supporting People Older Persons,Payment to Private Contractors,479.40,ABBEYFIELD WEST WIGHT SOCIETY
Revenue,Place,5105662633,24.11.2015,"Options,Prevention & Register Team",Computer Maintenance,-539.82,ABRITAS LTD
Revenue,Place,5105662628,24.11.2015,"Options,Prevention & Register Team",Computer Maintenance,539.82,ABRITAS LTD
Revenue,Place,5105662639,25.11.2015,"Options,Prevention & Register Team",Computer Maintenance,505.44,ABRITAS LTD
Revenue,Place,5105662637,27.11.2015,"Options,Prevention & Register Team",Computer Maintenance,539.82,ABRITAS LTD
Revenue,Place,5105663160,27.11.2015,"Options,Prevention & Register Team",Computer Maintenance,-90.00,ABRITAS LTD
Revenue,Adult Services,5105658605,04.11.2015,Elderly Frail Residential Care,Charges from Independent Providers,"2,093.84",ACACIA CARE HOME
Revenue,Adult Services,5105658604,04.11.2015,Elderly Frail Residential Care,Charges from Independent Providers,"1,700.44",ACACIA CARE HOME
Revenue,Adult Services,5105662685,25.11.2015,Elderly Frail Residential Care,Charges from Independent Providers,746.04,ACACIA CARE HOME
Revenue,Adult Services,5105661978,20.11.2015,Elderly Frail Residential Care,Charges from Independent Providers,186.51,ACACIA CARE HOME
Revenue,Adult Services,5105661978,20.11.2015,Elderly Frail Residential Care,Charges from Independent Providers,"1,740.76",ACACIA CARE HOME
Revenue,Adult Services,5105663396,27.11.2015,Elderly Frail Residential Care,Charges from Independent Providers,"1,740.76",ACACIA CARE HOME
Revenue,Adult Services,5105663396,27.11.2015,Elderly Frail Residential Care,Charges from Independent Providers,"2,143.40",ACACIA CARE HOME
Revenue,Adult Services,5105663396,27.11.2015,Elderly Frail Residential Care,Charges from Independent Providers,"1,740.76",ACACIA CARE HOME
Revenue,Adult Services,5105659487,04.11.2015,Elderly Mentally Ill Residential Care,Charges from Independent Providers,"3,626.34",ACACIA CARE HOME
Revenue,Adult Services,5105659487,04.11.2015,Elderly Mentally Ill Residential Care,Charges from Independent Providers,"1,399.64",ACACIA CARE HOME
Revenue,Adult Services,5105658603,04.11.2015,Elderly Mentally Ill Residential Care,Charges from Independent Providers,"1,781.36",ACACIA CARE HOME
Revenue,Adult Services,5105661180,18.11.2015,Elderly Mentally Ill Residential Care,Charges from Independent Providers,"1,888.48",ACACIA CARE HOME
Revenue,Adult Services,5105663396,27.11.2015,Elderly Mentally Ill Residential Care,Charges from Independent Providers,"1,823.36",ACACIA CARE HOME
Revenue,Childrens Services,5105659559,06.11.2015,Island Learning Centre,Bought in Prof Services - Curriculum (Schools),624.00,ACADEMY21 LIMITED
Revenue,Place,5105659996,11.11.2015,"Registration Of Births,Deaths, Marriages",Interview & recruitment expenses,25.00,ACCESS PERSONAL CHECKING SERVICES LTD
Revenue,Place,5105659996,11.11.2015,"Options,Prevention & Register Team",Interview & recruitment expenses,25.00,ACCESS PERSONAL CHECKING SERVICES LTD
Revenue,Place,5105659996,11.11.2015,"Options,Prevention & Register Team",Interview & recruitment expenses,8.00,ACCESS PERSONAL CHECKING SERVICES LTD
Revenue,Adult Services,5105659996,11.11.2015,Community Outreach,Interview & recruitment expenses,44.00,ACCESS PERSONAL CHECKING SERVICES LTD
Revenue,Adult Services,5105659996,11.11.2015,Community Outreach,Interview & recruitment expenses,6.00,ACCESS PERSONAL CHECKING SERVICES LTD
Revenue,Adult Services,5105659996,11.11.2015,Adelaide Resource Centre,Interview & recruitment expenses,26.00,ACCESS PERSONAL CHECKING SERVICES LTD
Revenue,Adult Services,5105659996,11.11.2015,Adelaide Resource Centre,Interview & recruitment expenses,6.00,ACCESS PERSONAL CHECKING SERVICES LTD
Revenue,Adult Services,5105659996,11.11.2015,Gouldings Resource Centre,Interview & recruitment expenses,44.00,ACCESS PERSONAL CHECKING SERVICES LTD
Revenue,Adult Services,5105659996,11.11.2015,Gouldings Resource Centre,Interview & recruitment expenses,6.00,ACCESS PERSONAL CHECKING SERVICES LTD
Revenue,Place,5105659996,11.11.2015,The Heights,Interview & recruitment expenses,44.00,ACCESS PERSONAL CHECKING SERVICES LTD
Revenue,Place,5105659996,11.11.2015,The Heights,Interview & recruitment expenses,18.00,ACCESS PERSONAL CHECKING SERVICES LTD
Revenue,Place,5105659996,11.11.2015,The Heights,Interview & recruitment expenses,52.00,ACCESS PERSONAL CHECKING SERVICES LTD
Revenue,Childrens Services,5105659996,11.11.2015,Education Welfare Service,Interview & recruitment expenses,30.00,ACCESS PERSONAL CHECKING SERVICES LTD
Revenue,Childrens Services,5105659996,11.11.2015,Youth Offending Team,Interview & recruitment expenses,25.00,ACCESS PERSONAL CHECKING SERVICES LTD
Revenue,Childrens Services,5105659996,11.11.2015,Youth Offending Team,Interview & recruitment expenses,8.00,ACCESS PERSONAL CHECKING SERVICES LTD
Revenue,Childrens Services,5105659996,11.11.2015,Children In Need 1,Interview & recruitment expenses,44.00,ACCESS PERSONAL CHECKING SERVICES LTD
Revenue,Childrens Services,5105659996,11.11.2015,Children In Need 1,Interview & recruitment expenses,6.00,ACCESS PERSONAL CHECKING SERVICES LTD
Revenue,Childrens Services,5105659996,11.11.2015,Direct Payments Children & Families,Interview & recruitment expenses,88.00,ACCESS PERSONAL CHECKING SERVICES LTD
Revenue,Childrens Services,5105659996,11.11.2015,Direct Payments Children & Families,Interview & recruitment expenses,12.00,ACCESS PERSONAL CHECKING SERVICES LTD
Revenue,Childrens Services,5105659996,11.11.2015,Adoption Costs,Interview & recruitment expenses,176.00,ACCESS PERSONAL CHECKING SERVICES LTD
Revenue,Childrens Services,5105659996,11.11.2015,Adoption Costs,Interview & recruitment expenses,24.00,ACCESS PERSONAL CHECKING SERVICES LTD
Revenue,Childrens Services,5105659996,11.11.2015,In-house Fostering,Interview & recruitment expenses,704.00,ACCESS PERSONAL CHECKING SERVICES LTD
Revenue,Childrens Services,5105659996,11.11.2015,In-house Fostering,Interview & recruitment expenses,96.00,ACCESS PERSONAL CHECKING SERVICES LTD
Revenue,Childrens Services,5105659996,11.11.2015,Family Intervention Team,Interview & recruitment expenses,44.00,ACCESS PERSONAL CHECKING SERVICES LTD
Revenue,Childrens Services,5105659996,11.11.2015,Family Intervention Team,Interview & recruitment expenses,6.00,ACCESS PERSONAL CHECKING SERVICES LTD
Revenue,Childrens Services,5105659996,11.11.2015,Family Intervention Team,Interview & recruitment expenses,8.00,ACCESS PERSONAL CHECKING SERVICES LTD
Revenue,Place,5105659996,11.11.2015,Environmental Health - Business Regulation Protection,Interview & recruitment expenses,25.00,ACCESS PERSONAL CHECKING SERVICES LTD
Revenue,Place,5105659996,11.11.2015,Environmental Health - Business Regulation Protection,Interview & recruitment expenses,8.00,ACCESS PERSONAL CHECKING SERVICES LTD
Revenue,Place,5105660075,11.11.2015,Licensing Services,Professional Services,836.00,ACCESS PERSONAL CHECKING SERVICES LTD
Revenue,Place,5105660075,11.11.2015,Licensing Services,Professional Services,114.00,ACCESS PERSONAL CHECKING SERVICES LTD
Revenue,Adult Services,5105661875,20.11.2015,Elderly Frail Homecare,Charges from Independent Providers,312.80,ACORN CARE SERVICE LTD
Revenue,Adult Services,5105661874,20.11.2015,Elderly Frail Homecare,Charges from Independent Providers,"2,189.60",ACORN CARE SERVICE LTD
Revenue,Adult Services,5105661880,20.11.2015,Elderly Frail Homecare,Charges from Independent Providers,"1,110.44",ACORN CARE SERVICE LTD
Revenue,Adult Services,5105661878,20.11.2015,Elderly Frail Homecare,Charges from Independent Providers,"1,219.92",ACORN CARE SERVICE LTD
Revenue,Adult Services,5105661877,20.11.2015,Elderly Frail Homecare,Charges from Independent Providers,"2,060.57",ACORN CARE SERVICE LTD
Revenue,Adult Services,5105661879,20.11.2015,Elderly Frail Homecare,Charges from Independent Providers,"1,153.45",ACORN CARE SERVICE LTD
Revenue,Adult Services,5105661876,20.11.2015,Elderly Frail Homecare,Charges from Independent Providers,"1,286.39",ACORN CARE SERVICE LTD
Revenue,Adult Services,5105661882,20.11.2015,Elderly Frail Homecare,Charges from Independent Providers,347.99,ACORN CARE SERVICE LTD
Revenue,Adult Services,5105661887,20.11.2015,Elderly Frail Homecare,Charges from Independent Providers,"2,846.48",ACORN CARE SERVICE LTD
Revenue,Adult Services,5105661908,20.11.2015,Elderly Frail Homecare,Charges from Independent Providers,62.56,ACORN CARE SERVICE LTD
Revenue,Adult Services,5105661916,20.11.2015,Elderly Frail Homecare,Charges from Independent Providers,164.22,ACORN CARE SERVICE LTD
Revenue,Adult Services,5105661917,20.11.2015,Elderly Frail Homecare,Charges from Independent Providers,273.70,ACORN CARE SERVICE LTD
Revenue,Adult Services,5105661884,20.11.2015,Elderly Frail Homecare,Charges from Independent Providers,453.56,ACORN CARE SERVICE LTD
Revenue,Adult Services,5105661895,20.11.2015,Elderly Frail Homecare,Charges from Independent Providers,312.80,ACORN CARE SERVICE LTD
Revenue,Adult Services,5105661894,20.11.2015,Elderly Frail Homecare,Charges from Independent Providers,211.14,ACORN CARE SERVICE LTD
Revenue,Adult Services,5105661890,20.11.2015,Elderly Frail Homecare,Charges from Independent Providers,547.40,ACORN CARE SERVICE LTD
Revenue,Adult Services,5105661893,20.11.2015,Elderly Frail Homecare,Charges from Independent Providers,711.62,ACORN CARE SERVICE LTD
Revenue,Adult Services,5105661885,20.11.2015,Elderly Frail Homecare,Charges from Independent Providers,891.48,ACORN CARE SERVICE LTD
Revenue,Adult Services,5105661883,20.11.2015,Elderly Frail Homecare,Charges from Independent Providers,907.12,ACORN CARE SERVICE LTD
Revenue,Adult Services,5105661899,20.11.2015,Elderly Frail Homecare,Charges from Independent Providers,62.56,ACORN CARE SERVICE LTD
Revenue,Adult Services,5105661896,20.11.2015,Elderly Frail Homecare,Charges from Independent Providers,492.66,ACORN CARE SERVICE LTD
Revenue,Adult Services,5105661897,20.11.2015,Elderly Frail Homecare,Charges from Independent Providers,"2,408.56",ACORN CARE SERVICE LTD
Revenue,Adult Services,5105661892,20.11.2015,Elderly Frail Homecare,Charges from Independent Providers,437.92,ACORN CARE SERVICE LTD
Revenue,Adult Services,5105661913,20.11.2015,Elderly Frail Homecare,Charges from Independent Providers,437.92,ACORN CARE SERVICE LTD
Revenue,Adult Services,5105661910,20.11.2015,Elderly Frail Homecare,Charges from Independent Providers,187.68,ACORN CARE SERVICE LTD
Revenue,Adult Services,5105661914,20.11.2015,Elderly Frail Homecare,Charges from Independent Providers,250.24,ACORN CARE SERVICE LTD
Revenue,Adult Services,5105661907,20.11.2015,Elderly Frail Homecare,Charges from Independent Providers,"1,079.16",ACORN CARE SERVICE LTD
Revenue,Adult Services,5105661901,20.11.2015,Elderly Frail Homecare,Charges from Independent Providers,656.88,ACORN CARE SERVICE LTD
Revenue,Adult Services,5105661898,20.11.2015,Elderly Frail Homecare,Charges from Independent Providers,868.02,ACORN CARE SERVICE LTD
Revenue,Adult Services,5105661911,20.11.2015,Elderly Frail Homecare,Charges from Independent Providers,265.88,ACORN CARE SERVICE LTD
Revenue,Adult Services,5105661911,20.11.2015,Elderly Frail Homecare,Charges from Independent Providers,125.12,ACORN CARE SERVICE LTD
Revenue,Adult Services,5105661912,20.11.2015,Elderly Frail Homecare,Charges from Independent Providers,625.60,ACORN CARE SERVICE LTD
Revenue,Adult Services,5105661915,20.11.2015,Elderly Frail Homecare,Charges from Independent Providers,93.84,ACORN CARE SERVICE LTD
Revenue,Adult Services,5105661905,20.11.2015,Elderly Frail Homecare,Charges from Independent Providers,836.74,ACORN CARE SERVICE LTD
Revenue,Adult Services,5105661902,20.11.2015,Elderly Frail Homecare,Charges from Independent Providers,547.40,ACORN CARE SERVICE LTD
Revenue,Adult Services,5105661904,20.11.2015,Elderly Frail Homecare,Charges from Independent Providers,437.92,ACORN CARE SERVICE LTD
Revenue,Adult Services,5105661909,20.11.2015,Elderly Frail Homecare,Charges from Independent Providers,93.84,ACORN CARE SERVICE LTD
Revenue,Adult Services,5105661909,20.11.2015,Elderly Frail Homecare,Charges from Independent Providers,328.44,ACORN CARE SERVICE LTD
Revenue,Adult Services,5105661906,20.11.2015,Elderly Frail Homecare,Charges from Independent Providers,690.56,ACORN CARE SERVICE LTD
Revenue,Adult Services,5105661881,20.11.2015,Elderly Frail Homecare,Charges from Independent Providers,62.56,ACORN CARE SERVICE LTD
Revenue,Adult Services,5105661900,20.11.2015,Elderly Frail Homecare,Regular Respite Care,375.36,ACORN CARE SERVICE LTD
Revenue,Adult Services,5105661889,20.11.2015,Elderly Frail Homecare,Regular Respite Care,125.12,ACORN CARE SERVICE LTD
Revenue,Adult Services,5105661891,20.11.2015,Elderly Frail Homecare,Regular Respite Care,62.56,ACORN CARE SERVICE LTD
Revenue,Adult Services,5105661888,20.11.2015,Elderly Frail Homecare,Regular Respite Care,109.48,ACORN CARE SERVICE LTD
Revenue,Adult Services,5105661886,20.11.2015,Elderly Frail Homecare,Regular Respite Care,125.12,ACORN CARE SERVICE LTD
Revenue,Adult Services,5105661903,20.11.2015,Elderly Mentally Ill Homecare,Charges from Independent Providers,437.92,ACORN CARE SERVICE LTD
Revenue,Resources,5105662767,25.11.2015,Litigation Costs,Legal Fees - Other Parties,480.00,"COLLEGE CHAMBERS, BARRISTERS"
Revenue,Resources,5105662619,25.11.2015,Litigation Costs,Legal Fees - Other Parties,480.00,"COLLEGE CHAMBERS, BARRISTERS"
Revenue,Place,5105659859,11.11.2015,Fire Technical Support,Vehicle Maintenance Costs,109.53,ADAMS MOREY LTD
Revenue,Place,5105659896,11.11.2015,Fire Technical Support,Vehicle Maintenance Costs,14.50,ADAMS MOREY LTD
Revenue,Place,5105657170,04.11.2015,Fire Technical Support,Vehicle Maintenance Costs,40.00,ADAMS MOREY LTD
Revenue,Place,5105660606,18.11.2015,Fire Technical Support,Vehicle Maintenance Costs,40.00,ADAMS MOREY LTD
Revenue,Place,5105659993,11.11.2015,Fire Technical Support,Vehicle Maintenance Costs,14.50,ADAMS MOREY LTD
Revenue,Place,5105659799,06.11.2015,Fire Technical Support,Vehicle Maintenance Costs,166.00,ADAMS MOREY LTD
Revenue,Place,5105659798,06.11.2015,Fire Technical Support,Vehicle Maintenance Costs,157.41,ADAMS MOREY LTD
Revenue,Place,5105662785,25.11.2015,Fire Technical Support,Vehicle Maintenance Costs,59.55,ADAMS MOREY LTD
Revenue,Place,5105662864,27.11.2015,Fire Technical Support,Vehicle Maintenance Costs,388.96,ADAMS MOREY LTD
Revenue,Place,5105661809,20.11.2015,Fire Technical Support,Vehicle Maintenance Costs,14.50,ADAMS MOREY LTD
Revenue,Place,5105662728,25.11.2015,Fire Technical Support,Vehicle Maintenance Costs,14.50,ADAMS MOREY LTD
Revenue,Childrens Services,5105662313,25.11.2015,Island Learning Centre,Agency staff,680.00,A-DAY CONSULTANTS LTD
Revenue,Childrens Services,5105659463,04.11.2015,Island Learning Centre,Agency staff,315.00,A-DAY CONSULTANTS LTD
Revenue,Childrens Services,5105659512,06.11.2015,Island Learning Centre,Agency staff,330.00,A-DAY CONSULTANTS LTD
Revenue,Childrens Services,5105656900,04.11.2015,Island Learning Centre,Agency staff,430.00,A-DAY CONSULTANTS LTD
Revenue,Place,5105662241,25.11.2015,Commercial Sales Team,Printing Costs,860.00,ADGIFTDISCOUNTS LTD
Revenue,Adult Services,5105657654,04.11.2015,Elderly Frail Residential Care,Charges from Independent Providers,"1,812.44",ADIEMUS CARE LTD
Revenue,Adult Services,5105663278,27.11.2015,Elderly Frail Residential Care,Charges from Independent Providers,"1,812.44",ADIEMUS CARE LTD
Revenue,Place,5105662045,20.11.2015,Medina Theatre,Payment to Private Contractors,183.74,ADLER MANUFACTURING LTD
Revenue,Childrens Services,5105662348,27.11.2015,Adoption Reform Grant,Charges from Independent Providers,302.90,ADOPTION MATTERS NORTHWEST
Capital,Resources,5105663195,27.11.2015,Corporate Savings_Efficiency,Payment to Contractors - Capital,"1,998.00",ADT FIRE AND SECURITY PLC
Revenue,Place,5105660339,18.11.2015,17 Fairlee Road,Security of Buildings,343.00,ADT FIRE AND SECURITY PLC
Revenue,Childrens Services,5105660684,20.11.2015,Island Learning Centre,Bought in Prof Services - Curriculum (Schools),"1,140.00",AFC BOURNEMOUTH COMMUNITY SPORTS TRUST
Revenue,Place,5105655865,04.11.2015,Renewal & Enforcement,Payments to Voluntary and Other Associations,"6,665.00",AGE CONCERN T/A AGE UK
Revenue,Public Health,5105660907,18.11.2015,Vanguard Public Health,Conference Expenses,"1,179.00",AHMEDIA LTD
Revenue,Public Health,5105660907,18.11.2015,Vanguard Public Health,Conference Expenses,495.00,AHMEDIA LTD
Revenue,Public Health,5105660909,18.11.2015,Vanguard Public Health,Conference Expenses,"1,179.00",AHMEDIA LTD
Revenue,Public Health,5105660909,18.11.2015,Vanguard Public Health,Conference Expenses,495.00,AHMEDIA LTD
Revenue,Place,5105662369,25.11.2015,"Civic Centre,Sandown",Prop Svs only - Day to day mtce,105.00,AIRTEK SERVICES
Revenue,Place,5105662220,25.11.2015,"Seaclose Offices, Newport",Prop Svs only - Day to day mtce,87.50,AIRTEK SERVICES
Revenue,Place,5105660666,18.11.2015,Dinosaur Isle Museum (Sandown Geology),Operational Equipment,"4,550.00",AIRTEK SERVICES
Revenue,Childrens Services,5105662340,25.11.2015,Beaulieu House,General Materials,179.40,ALBANY FARM & G MACHINERY LTD
Revenue,Public Health,5105660092,11.11.2015,Contraception,Payment to Private Contractors,170.00,ALBERT STREET PRACTICE
Revenue,Public Health,5105661202,18.11.2015,NHS Health Check Programme,Payment to Private Contractors,"1,246.00",ALBERT STREET PRACTICE
Revenue,Public Health,5105660920,18.11.2015,NHS Health Check Programme,Payment to Private Contractors,97.00,ALBERT STREET PRACTICE
Revenue,Place,5105660157,13.11.2015,Dinosaur Isle Museum (Sandown Geology),General Materials,36.90,ALEC TIRANTI LTD
Revenue,Place,5105660157,13.11.2015,Dinosaur Isle Museum (Sandown Geology),General Materials,7.00,ALEC TIRANTI LTD
Revenue,Childrens Services,5105659819,06.11.2015,Special Educational Needs Reforms Grant,Consultants Fees,"1,796.80",REDACTED PERSONAL DATA
Revenue,Childrens Services,5105663193,27.11.2015,Workforce Development - Early Years,Training,400.00,ALISON BOTHA T/A ADVANCE TRAINING
Revenue,Place,5105662063,20.11.2015,WL Training & Recruitment/Personnel,Training,320.00,REDACTED PERSONAL DATA
Revenue,Resources,5105660349,13.11.2015,Elections,Rent of Buildings and Rooms,110.00,ALL SAINTS CHURCH HALL
Revenue,Place,5105659394,06.11.2015,Transport Fleet Administration,Vehicle Fuel Costs,"2,583.47",ALLSTAR BUSINESS SOLUTIONS LTD
Revenue,Place,5105659393,06.11.2015,Transport Fleet Administration,Vehicle Fuel Costs,162.15,ALLSTAR BUSINESS SOLUTIONS LTD
Revenue,Childrens Services,5105662668,25.11.2015,Island Learning Centre,Transport of Clients,234.15,ALPHA (IOW) LTD
Revenue,Childrens Services,5105656133,11.11.2015,Agency Domiciliary Care,Transport of Clients,960.00,ALPHA (IOW) LTD
Revenue,Childrens Services,5105656133,11.11.2015,Agency Domiciliary Care,Transport of Clients,247.00,ALPHA (IOW) LTD
Revenue,Childrens Services,5105653770,06.11.2015,Agency Domiciliary Care,Transport of Clients,240.00,ALPHA (IOW) LTD
Revenue,Childrens Services,5105653770,06.11.2015,Agency Domiciliary Care,Transport of Clients,59.50,ALPHA (IOW) LTD
Revenue,Childrens Services,5105662304,25.11.2015,Post Inspection Improvement cost,Professional Services,54.55,ALPHA (IOW) LTD
Revenue,Childrens Services,5105662343,25.11.2015,"Speech, Language and Communication",Transport of Clients,14.00,ALPHA (IOW) LTD
Revenue,Childrens Services,5105661850,20.11.2015,"Speech, Language and Communication",Transport of Clients,135.30,ALPHA (IOW) LTD
Revenue,Childrens Services,5105661850,20.11.2015,"Speech, Language and Communication",Transport of Clients,140.00,ALPHA (IOW) LTD
Revenue,Childrens Services,5105661850,20.11.2015,"Speech, Language and Communication",Transport of Clients,420.00,ALPHA (IOW) LTD
Revenue,Childrens Services,5105659817,06.11.2015,"Speech, Language and Communication",Transport of Clients,336.00,ALPHA (IOW) LTD
Revenue,Childrens Services,5105659817,06.11.2015,"Speech, Language and Communication",Transport of Clients,108.24,ALPHA (IOW) LTD
Revenue,Childrens Services,5105659817,06.11.2015,"Speech, Language and Communication",Transport of Clients,140.00,ALPHA (IOW) LTD
Revenue,Childrens Services,5105659817,06.11.2015,Special Educational Needs Transport,Taxis - Contract Hire,369.40,ALPHA (IOW) LTD
Revenue,Childrens Services,5105659817,06.11.2015,Special Educational Needs Transport,Taxis - Contract Hire,108.24,ALPHA (IOW) LTD
Revenue,Childrens Services,5105659817,06.11.2015,Special Educational Needs Transport,Taxis - Contract Hire,100.00,ALPHA (IOW) LTD
Revenue,Childrens Services,5105659817,06.11.2015,Special Educational Needs Transport,Taxis - Contract Hire,160.00,ALPHA (IOW) LTD
Revenue,Childrens Services,5105659817,06.11.2015,Special Educational Needs Transport,Taxis - Contract Hire,226.24,ALPHA (IOW) LTD
Revenue,Childrens Services,5105659817,06.11.2015,Special Educational Needs Transport,Taxis - Contract Hire,360.00,ALPHA (IOW) LTD
Revenue,Childrens Services,5105659817,06.11.2015,Special Educational Needs Transport,Taxis - Contract Hire,450.00,ALPHA (IOW) LTD
Revenue,Childrens Services,5105659817,06.11.2015,Special Educational Needs Transport,Taxis - Contract Hire,400.85,ALPHA (IOW) LTD
Revenue,Childrens Services,5105659817,06.11.2015,Special Educational Needs Transport,Taxis - Contract Hire,314.45,ALPHA (IOW) LTD
Revenue,Childrens Services,5105661850,20.11.2015,Special Educational Needs Transport,Taxis - Contract Hire,307.85,ALPHA (IOW) LTD
Revenue,Childrens Services,5105661850,20.11.2015,Special Educational Needs Transport,Taxis - Contract Hire,461.75,ALPHA (IOW) LTD
Revenue,Childrens Services,5105661850,20.11.2015,Special Educational Needs Transport,Taxis - Contract Hire,210.00,ALPHA (IOW) LTD
Revenue,Childrens Services,5105661850,20.11.2015,Special Educational Needs Transport,Taxis - Contract Hire,101.00,ALPHA (IOW) LTD
Revenue,Childrens Services,5105661850,20.11.2015,Special Educational Needs Transport,Taxis - Contract Hire,100.00,ALPHA (IOW) LTD
Revenue,Childrens Services,5105659817,06.11.2015,Special Educational Needs Transport,Taxis - Contract Hire,246.28,ALPHA (IOW) LTD
Revenue,Childrens Services,5105659817,06.11.2015,Special Educational Needs Transport,Taxis - Contract Hire,168.00,ALPHA (IOW) LTD
Revenue,Childrens Services,5105659817,06.11.2015,Special Educational Needs Transport,Taxis - Contract Hire,101.00,ALPHA (IOW) LTD
Revenue,Childrens Services,5105662343,25.11.2015,Special Educational Needs Transport,Taxis - Contract Hire,152.00,ALPHA (IOW) LTD
Revenue,Childrens Services,5105661850,20.11.2015,Special Educational Needs Transport,Taxis - Contract Hire,135.30,ALPHA (IOW) LTD
Revenue,Childrens Services,5105661850,20.11.2015,Special Educational Needs Transport,Taxis - Contract Hire,200.00,ALPHA (IOW) LTD
Revenue,Childrens Services,5105661850,20.11.2015,Special Educational Needs Transport,Taxis - Contract Hire,282.80,ALPHA (IOW) LTD
Revenue,Childrens Services,5105661850,20.11.2015,Special Educational Needs Transport,Taxis - Contract Hire,450.00,ALPHA (IOW) LTD
Revenue,Childrens Services,5105661850,20.11.2015,Special Educational Needs Transport,Taxis - Contract Hire,450.00,ALPHA (IOW) LTD
Revenue,Childrens Services,5105661850,20.11.2015,Special Educational Needs Transport,Taxis - Contract Hire,400.85,ALPHA (IOW) LTD
Revenue,Childrens Services,5105661850,20.11.2015,Special Educational Needs Transport,Taxis - Contract Hire,314.45,ALPHA (IOW) LTD
Revenue,Childrens Services,5105659817,06.11.2015,Home to School Transport,Taxis - Contract Hire,466.35,ALPHA (IOW) LTD
Revenue,Childrens Services,5105659817,06.11.2015,Home to School Transport,Taxis - Contract Hire,431.15,ALPHA (IOW) LTD
Revenue,Childrens Services,5105661850,20.11.2015,Home to School Transport,Taxis - Contract Hire,432.55,ALPHA (IOW) LTD
Revenue,Childrens Services,5105661850,20.11.2015,Home to School Transport,Taxis - Contract Hire,303.00,ALPHA (IOW) LTD
Revenue,Childrens Services,5105661850,20.11.2015,Home to School Transport,Taxis - Contract Hire,419.65,ALPHA (IOW) LTD
Revenue,Childrens Services,5105661850,20.11.2015,Home to School Transport,Taxis - Contract Hire,431.15,ALPHA (IOW) LTD
Revenue,Childrens Services,5105662343,25.11.2015,Home to School Transport,Taxis - Contract Hire,129.00,ALPHA (IOW) LTD
Revenue,Childrens Services,5105663252,27.11.2015,Home to School Transport,Taxis - Contract Hire,"7,122.20",ALPHA (IOW) LTD
Revenue,Childrens Services,5105661850,20.11.2015,Home to School Transport,Taxis - Contract Hire,466.35,ALPHA (IOW) LTD
Revenue,Childrens Services,5105661850,20.11.2015,Home to School Transport,Taxis - Contract Hire,140.00,ALPHA (IOW) LTD
Revenue,Childrens Services,5105659817,06.11.2015,Home to School Transport,Taxis - Contract Hire,346.04,ALPHA (IOW) LTD
Revenue,Childrens Services,5105659817,06.11.2015,Home to School Transport,Taxis - Contract Hire,242.40,ALPHA (IOW) LTD
Revenue,Childrens Services,5105659817,06.11.2015,Home to School Transport,Taxis - Contract Hire,335.72,ALPHA (IOW) LTD
Revenue,Childrens Services,5105659817,06.11.2015,Home to School Transport,Taxis - Contract Hire,140.00,ALPHA (IOW) LTD
Revenue,Childrens Services,5105663254,27.11.2015,Home to School Transport,Taxis - Contract Hire,"-7,122.20",ALPHA (IOW) LTD
Revenue,Adult Services,5105658093,04.11.2015,Learning Disability Residential Care,Charges from Independent Providers,"3,836.84",ALPHAGRANGE LTD
Revenue,Adult Services,5105663317,27.11.2015,Learning Disability Residential Care,Charges from Independent Providers,"3,836.84",ALPHAGRANGE LTD
Revenue,Childrens Services,5105660609,18.11.2015,LSCB (Local Safeguarding Childrens Board),Training,160.00,ALTEREGO CREATIVE SOLUTIONS LTD
Revenue,Childrens Services,5105660609,18.11.2015,LSCB (Local Safeguarding Childrens Board),Training,"5,268.00",ALTEREGO CREATIVE SOLUTIONS LTD
Revenue,Childrens Services,5105660916,18.11.2015,Home to School Transport,Taxis - Contract Hire,608.00,AMAR CABS OF NEWPORT
Revenue,Childrens Services,5105661273,18.11.2015,Home to School Transport,Taxis - Contract Hire,544.00,AMAR CABS OF NEWPORT
Revenue,Childrens Services,5105660919,18.11.2015,Island Learning Centre,Taxis - Contract Hire,140.00,AMAR EXCLUSIVES
Revenue,Childrens Services,5105661822,20.11.2015,Island Learning Centre,Taxis - Contract Hire,136.00,AMAR EXCLUSIVES
Revenue,Childrens Services,5105661795,20.11.2015,Pre 16 Independ. & Non-Maint. Special Schls & Independ. Specialist Provision,Transport of Clients,525.00,AMAR EXCLUSIVES
Revenue,Childrens Services,5105661821,20.11.2015,Pre 16 Independ. & Non-Maint. Special Schls & Independ. Specialist Provision,Transport of Clients,675.00,AMAR EXCLUSIVES
Revenue,Place,5105662676,25.11.2015,Project Manager Waste Strategy,Consultants Fees,"18,771.06",AMEC ENVIRONMENT AND INFRASTRUCTURE UK LTD
Capital,Place,5105661845,20.11.2015,Waste Capital Programme,Payment to Contractors - Capital,"358,027.16",AMEY (IOW) SPV LIMITED
Revenue,Adult Services,5105658107,04.11.2015,Elderly Frail Residential Care,Charges from Independent Providers,"1,700.44",ANCONA CARE HOME
Revenue,Adult Services,5105658108,04.11.2015,Elderly Frail Residential Care,Charges from Independent Providers,"1,700.44",ANCONA CARE HOME
Revenue,Adult Services,5105663319,27.11.2015,Elderly Frail Residential Care,Charges from Independent Providers,"1,740.76",ANCONA CARE HOME
Revenue,Adult Services,5105663319,27.11.2015,Elderly Frail Residential Care,Charges from Independent Providers,"1,740.76",ANCONA CARE HOME
Revenue,Adult Services,5105658106,04.11.2015,Elderly Mentally Ill Residential Care,Charges from Independent Providers,"1,781.36",ANCONA CARE HOME
Revenue,Adult Services,5105663319,27.11.2015,Elderly Mentally Ill Residential Care,Charges from Independent Providers,"1,823.36",ANCONA CARE HOME
Revenue,Childrens Services,5105660008,18.11.2015,Purchased Residential,Charges from Independent Providers,"14,534.00",ANDERIDA ADOLESCENT CARE LTD
Revenue,Childrens Services,5105662335,25.11.2015,Purchased Residential,Charges from Independent Providers,"12,608.00",ANDERIDA ADOLESCENT CARE LTD
Revenue,Resources,5105662200,25.11.2015,Staff Benefits,Payment to Private Contractors,225.00,REDACTED PERSONAL DATA
Revenue,Adult Services,5105660031,11.11.2015,Commissioning Manager for Adult Social Care,Interim Staff,807.25,ANNE BUTLER CONSULTING LTD
Revenue,Adult Services,5105660031,11.11.2015,Commissioning Manager for Adult Social Care,Interim Staff,"5,653.80",ANNE BUTLER CONSULTING LTD
Revenue,Adult Services,5105662410,25.11.2015,Commissioning Manager for Adult Social Care,Agency staff,"10,141.65",ANNE BUTLER CONSULTING LTD
Revenue,Adult Services,5105660031,11.11.2015,Commissioning Manager for Adult Social Care,Agency staff,"3,198.10",ANNE BUTLER CONSULTING LTD
Revenue,Place,5105659572,06.11.2015,Print Unit,Printing Costs,60.20,ANTALIS MCNAUGHTON
Revenue,Place,5105659572,06.11.2015,Print Unit,Printing Costs,61.80,ANTALIS MCNAUGHTON
Revenue,Place,5105659557,06.11.2015,Print Unit,Printing Costs,61.80,ANTALIS MCNAUGHTON
Revenue,Place,5105659778,06.11.2015,Print Unit,Printing Costs,48.60,ANTALIS MCNAUGHTON
Revenue,Place,5105662516,25.11.2015,Print Unit,Printing Costs,97.20,ANTALIS MCNAUGHTON
Revenue,Place,5105662516,25.11.2015,Print Unit,Printing Costs,17.25,ANTALIS MCNAUGHTON
Revenue,Place,5105659749,11.11.2015,The Bay Coastal Community Team,Consultants Fees,"3,000.00",ARC CONSULTING LTD
Revenue,Resources,5105659523,04.11.2015,Help Centres Shared Service Centre,Clothing & Laundry,99.30,ARCO LTD
Revenue,Resources,5105660156,13.11.2015,County Hall Central Mail Room,Clothing & Laundry,86.36,ARCO LTD
Revenue,Resources,5105660396,20.11.2015,County Hall Central Mail Room,Clothing & Laundry,12.00,ARCO LTD
Revenue,Resources,5105660403,18.11.2015,County Hall Central Mail Room,Clothing & Laundry,6.55,ARCO LTD
Revenue,Resources,5105660158,13.11.2015,County Hall Central Mail Room,Clothing & Laundry,10.42,ARCO LTD
Revenue,Resources,5105660158,13.11.2015,County Hall Central Mail Room,Clothing & Laundry,31.26,ARCO LTD
Revenue,Resources,5105661798,20.11.2015,Corporate Stores,Clothing & Laundry,11.51,ARCO LTD
Revenue,Resources,5105661798,20.11.2015,Corporate Stores,Clothing & Laundry,11.51,ARCO LTD
Revenue,Adult Services,5105660401,18.11.2015,Plean Dene,Clothing & Laundry,19.44,ARCO LTD
Revenue,Adult Services,5105660401,18.11.2015,Plean Dene,Clothing & Laundry,45.00,ARCO LTD
Revenue,Adult Services,5105660401,18.11.2015,Plean Dene,Clothing & Laundry,10.16,ARCO LTD
Revenue,Adult Services,5105660401,18.11.2015,Plean Dene,Clothing & Laundry,19.80,ARCO LTD
Revenue,Adult Services,5105660401,18.11.2015,Plean Dene,Clothing & Laundry,15.24,ARCO LTD
Revenue,Adult Services,5105660401,18.11.2015,Plean Dene,Clothing & Laundry,15.24,ARCO LTD
Revenue,Adult Services,5105660401,18.11.2015,Plean Dene,Clothing & Laundry,5.08,ARCO LTD
Revenue,Adult Services,5105660401,18.11.2015,Plean Dene,Clothing & Laundry,10.16,ARCO LTD
Revenue,Adult Services,5105660401,18.11.2015,Plean Dene,Clothing & Laundry,3.24,ARCO LTD
Revenue,Adult Services,5105660401,18.11.2015,Plean Dene,Clothing & Laundry,16.20,ARCO LTD
Revenue,Adult Services,5105660401,18.11.2015,Plean Dene,Clothing & Laundry,6.48,ARCO LTD
Revenue,Adult Services,5105660401,18.11.2015,Plean Dene,Clothing & Laundry,25.92,ARCO LTD
Revenue,Adult Services,5105660401,18.11.2015,Plean Dene,Clothing & Laundry,9.72,ARCO LTD
Revenue,Adult Services,5105662341,25.11.2015,Plean Dene,Clothing & Laundry,25.40,ARCO LTD
Revenue,Adult Services,5105662341,25.11.2015,Plean Dene,Clothing & Laundry,3.24,ARCO LTD
Revenue,Adult Services,5105662341,25.11.2015,Plean Dene,Clothing & Laundry,3.24,ARCO LTD
Revenue,Adult Services,5105662341,25.11.2015,Plean Dene,Clothing & Laundry,9.72,ARCO LTD
Revenue,Adult Services,5105662341,25.11.2015,Plean Dene,Clothing & Laundry,9.00,ARCO LTD
Revenue,Adult Services,5105662341,25.11.2015,Plean Dene,Clothing & Laundry,9.00,ARCO LTD
Revenue,Adult Services,5105661844,20.11.2015,Community Outreach,Clothing & Laundry,6.55,ARCO LTD
Revenue,Adult Services,5105661844,20.11.2015,Community Outreach,Clothing & Laundry,1.80,ARCO LTD
Revenue,Adult Services,5105662791,27.11.2015,Community Outreach,Clothing & Laundry,15.72,ARCO LTD
Revenue,Adult Services,5105662791,27.11.2015,Community Outreach,Clothing & Laundry,3.60,ARCO LTD
Revenue,Place,5105662553,25.11.2015,Medina Leisure Centre,Clothing & Laundry,19.32,ARCO LTD
Revenue,Place,5105663171,27.11.2015,Medina Leisure Centre,Clothing & Laundry,226.96,ARCO LTD
Revenue,Place,5105662022,25.11.2015,Ferry Operation,Clothing & Laundry,3.60,ARCO LTD
Revenue,Place,5105662022,25.11.2015,Ferry Operation,Clothing & Laundry,10.16,ARCO LTD
Revenue,Place,5105664136,27.11.2015,Fire Technical Support,Stock Purchases,25.20,ARCO LTD
Revenue,Place,5105664136,27.11.2015,Fire Technical Support,Stock Purchases,78.04,ARCO LTD
Revenue,Place,5105664136,27.11.2015,Fire Technical Support,Stock Purchases,76.41,ARCO LTD
Revenue,Place,5105664136,27.11.2015,Fire Technical Support,Stock Purchases,60.90,ARCO LTD
Revenue,Place,5105664136,27.11.2015,Fire Technical Support,Stock Purchases,26.86,ARCO LTD
Revenue,Place,5105664136,27.11.2015,Fire Technical Support,Stock Purchases,9.60,ARCO LTD
Revenue,Place,5105664134,27.11.2015,Building Control,General Materials,4.20,ARCO LTD
Revenue,Place,5105664038,27.11.2015,Trading Standards,Operational Equipment,34.49,ARCO LTD
Revenue,Place,5105664042,27.11.2015,Trading Standards,Operational Equipment,34.49,ARCO LTD
Revenue,Place,5105664065,27.11.2015,Trading Standards,Operational Equipment,8.40,ARCO LTD
Revenue,Place,5105663097,27.11.2015,Crematorium,Clothing & Laundry,35.24,ARCO LTD
Revenue,Public Health,5105659856,18.11.2015,NHS Health Check Programme,Payment to Private Contractors,-772.50,ARGYLL HOUSE SURGERY
Revenue,Public Health,5105661193,18.11.2015,NHS Health Check Programme,Payment to Private Contractors,938.50,ARGYLL HOUSE SURGERY
Revenue,Adult Services,5105659925,18.11.2015,Saxonbury,Maintenance of Operational Equipment,70.00,ARJO MED AB LTD
Revenue,Adult Services,5105657480,04.11.2015,The Laurels,Maintenance of Operational Equipment,70.00,ARJO MED AB LTD
Capital,Adult Services,5105662270,25.11.2015,Adelaide & Gouldings Fixtures & Fittings,"Plant, Equipment & Furniture - Capital","7,931.70",ARJO MED AB LTD
Capital,Adult Services,5105662270,25.11.2015,Adelaide & Gouldings Fixtures & Fittings,"Plant, Equipment & Furniture - Capital",75.00,ARJO MED AB LTD
Capital,Adult Services,5105662270,25.11.2015,Adelaide & Gouldings Fixtures & Fittings,"Plant, Equipment & Furniture - Capital","1,224.00",ARJO MED AB LTD
Revenue,Place,5105662210,25.11.2015,"County Hall,Newport",Prop Svs only - Day to day mtce,178.00,ASSA ABLOY ENTRANCE SYSTEMS LTD
Revenue,Place,5105662272,27.11.2015,"Jubilee Stores, Newport",Prop Svs only - Day to day mtce,534.64,ASSA ABLOY ENTRANCE SYSTEMS LTD
Revenue,Place,5105662271,27.11.2015,Ryde Library,Prop Svs only - Day to day mtce,"1,067.52",ASSA ABLOY ENTRANCE SYSTEMS LTD
Revenue,Childrens Services,5105659581,06.11.2015,In-house Fostering,Furniture and Fittings,266.00,ASSESSMENT & QUALIFICATION ALLIANCE
Revenue,Childrens Services,5105659878,11.11.2015,In-house Fostering,Furniture and Fittings,18.00,ASSESSMENT & QUALIFICATION ALLIANCE
Revenue,Resources,5105659841,11.11.2015,Organisational Development � Leadership,Professional Services,"3,000.00",ASTRID DAVIES CONSULTING LTD
Revenue,Place,5105654279,04.11.2015,Highways PFI Project,Consultants Fees,"15,910.82",ATKINS LIMITED
Revenue,Place,5105654269,04.11.2015,Highways PFI Project,Consultants Fees,"45,225.08",ATKINS LIMITED
Revenue,Place,5105660088,11.11.2015,Fire Technical Support,Vehicle Maintenance Costs,63.70,ATS EUROMASTER LTD
Revenue,Adult Services,5105659961,11.11.2015,Transitions Team Residential Care,Charges from Independent Providers,"30,955.05",AUTISM WESSEX
Revenue,Adult Services,5105659964,11.11.2015,Transitions Team Residential Care,Charges from Independent Providers,"31,596.18",AUTISM WESSEX
Revenue,Childrens Services,5105659964,11.11.2015,Pre 16 Independ. & Non-Maint. Special Schls & Independ. Specialist Provision,Charges from Independent Providers,"15,795.72",AUTISM WESSEX
Revenue,Childrens Services,5105659959,11.11.2015,Pre 16 Independ. & Non-Maint. Special Schls & Independ. Specialist Provision,Charges from Independent Providers,"17,487.70",AUTISM WESSEX
Revenue,Adult Services,5105657810,04.11.2015,Elderly Frail Residential Care,Charges from Independent Providers,"2,093.84",AUTUMN HOUSE CARE LTD
Revenue,Adult Services,5105657801,04.11.2015,Elderly Frail Residential Care,Charges from Independent Providers,"2,093.84",AUTUMN HOUSE CARE LTD
Revenue,Adult Services,5105657796,04.11.2015,Elderly Frail Residential Care,Charges from Independent Providers,"2,093.84",AUTUMN HOUSE CARE LTD
Revenue,Adult Services,5105663292,27.11.2015,Elderly Frail Residential Care,Charges from Independent Providers,"2,143.40",AUTUMN HOUSE CARE LTD
Revenue,Adult Services,5105663292,27.11.2015,Elderly Frail Residential Care,Charges from Independent Providers,"2,143.40",AUTUMN HOUSE CARE LTD
Revenue,Adult Services,5105663292,27.11.2015,Elderly Frail Residential Care,Charges from Independent Providers,"2,143.40",AUTUMN HOUSE CARE LTD
Revenue,Adult Services,5105661344,20.11.2015,Elderly Mentally Ill Daycare,Charges from Independent Providers,50.80,AUTUMN HOUSE CARE LTD
Revenue,Adult Services,5105657802,04.11.2015,Elderly Mentally Ill Residential Care,Charges from Independent Providers,"1,781.36",AUTUMN HOUSE CARE LTD
Revenue,Adult Services,5105657808,04.11.2015,Elderly Mentally Ill Residential Care,Charges from Independent Providers,"2,093.84",AUTUMN HOUSE CARE LTD
Revenue,Adult Services,5105657809,04.11.2015,Elderly Mentally Ill Residential Care,Charges from Independent Providers,"2,093.84",AUTUMN HOUSE CARE LTD
Revenue,Adult Services,5105657795,04.11.2015,Elderly Mentally Ill Residential Care,Charges from Independent Providers,"2,093.84",AUTUMN HOUSE CARE LTD
Revenue,Adult Services,5105657798,04.11.2015,Elderly Mentally Ill Residential Care,Charges from Independent Providers,"2,093.84",AUTUMN HOUSE CARE LTD
Revenue,Adult Services,5105657797,04.11.2015,Elderly Mentally Ill Residential Care,Charges from Independent Providers,"2,093.84",AUTUMN HOUSE CARE LTD
Revenue,Adult Services,5105657799,04.11.2015,Elderly Mentally Ill Residential Care,Charges from Independent Providers,"1,781.36",AUTUMN HOUSE CARE LTD
Revenue,Adult Services,5105657792,04.11.2015,Elderly Mentally Ill Residential Care,Charges from Independent Providers,"2,093.84",AUTUMN HOUSE CARE LTD
Revenue,Adult Services,5105657791,04.11.2015,Elderly Mentally Ill Residential Care,Charges from Independent Providers,"2,093.84",AUTUMN HOUSE CARE LTD
Revenue,Adult Services,5105657794,04.11.2015,Elderly Mentally Ill Residential Care,Charges from Independent Providers,"2,093.84",AUTUMN HOUSE CARE LTD
Revenue,Adult Services,5105657793,04.11.2015,Elderly Mentally Ill Residential Care,Charges from Independent Providers,"2,093.84",AUTUMN HOUSE CARE LTD
Revenue,Adult Services,5105657790,04.11.2015,Elderly Mentally Ill Residential Care,Charges from Independent Providers,"2,093.84",AUTUMN HOUSE CARE LTD
Revenue,Adult Services,5105657788,04.11.2015,Elderly Mentally Ill Residential Care,Charges from Independent Providers,"2,093.84",AUTUMN HOUSE CARE LTD
Revenue,Adult Services,5105657806,04.11.2015,Elderly Mentally Ill Residential Care,Charges from Independent Providers,"1,781.36",AUTUMN HOUSE CARE LTD
Revenue,Adult Services,5105657804,04.11.2015,Elderly Mentally Ill Residential Care,Charges from Independent Providers,"2,093.84",AUTUMN HOUSE CARE LTD
Revenue,Adult Services,5105657805,04.11.2015,Elderly Mentally Ill Residential Care,Charges from Independent Providers,"2,093.84",AUTUMN HOUSE CARE LTD
Revenue,Adult Services,5105657800,04.11.2015,Elderly Mentally Ill Residential Care,Charges from Independent Providers,"2,093.84",AUTUMN HOUSE CARE LTD
Revenue,Adult Services,5105657803,04.11.2015,Elderly Mentally Ill Residential Care,Charges from Independent Providers,"1,781.36",AUTUMN HOUSE CARE LTD
Revenue,Adult Services,5105657807,04.11.2015,Elderly Mentally Ill Residential Care,Charges from Independent Providers,"2,093.84",AUTUMN HOUSE CARE LTD
Revenue,Adult Services,5105657787,04.11.2015,Elderly Mentally Ill Residential Care,Charges from Independent Providers,"1,781.36",AUTUMN HOUSE CARE LTD
Revenue,Adult Services,5105657786,04.11.2015,Elderly Mentally Ill Residential Care,Charges from Independent Providers,"2,093.84",AUTUMN HOUSE CARE LTD
Revenue,Adult Services,5105657785,04.11.2015,Elderly Mentally Ill Residential Care,Charges from Independent Providers,"1,781.36",AUTUMN HOUSE CARE LTD
Revenue,Adult Services,5105657789,04.11.2015,Elderly Mentally Ill Residential Care,Charges from Independent Providers,"2,093.84",AUTUMN HOUSE CARE LTD
Revenue,Adult Services,5105662164,25.11.2015,Elderly Mentally Ill Residential Care,Charges from Independent Providers,459.30,AUTUMN HOUSE CARE LTD
Revenue,Adult Services,5105662164,25.11.2015,Elderly Mentally Ill Residential Care,Charges from Independent Providers,"2,143.40",AUTUMN HOUSE CARE LTD
Revenue,Adult Services,5105663292,27.11.2015,Elderly Mentally Ill Residential Care,Charges from Independent Providers,"2,143.40",AUTUMN HOUSE CARE LTD
Revenue,Adult Services,5105663292,27.11.2015,Elderly Mentally Ill Residential Care,Charges from Independent Providers,"2,143.40",AUTUMN HOUSE CARE LTD
Revenue,Adult Services,5105663292,27.11.2015,Elderly Mentally Ill Residential Care,Charges from Independent Providers,"1,823.36",AUTUMN HOUSE CARE LTD
Revenue,Adult Services,5105663292,27.11.2015,Elderly Mentally Ill Residential Care,Charges from Independent Providers,"1,823.36",AUTUMN HOUSE CARE LTD
Revenue,Adult Services,5105663292,27.11.2015,Elderly Mentally Ill Residential Care,Charges from Independent Providers,"1,823.36",AUTUMN HOUSE CARE LTD
Revenue,Adult Services,5105663292,27.11.2015,Elderly Mentally Ill Residential Care,Charges from Independent Providers,"2,143.40",AUTUMN HOUSE CARE LTD
Revenue,Adult Services,5105663292,27.11.2015,Elderly Mentally Ill Residential Care,Charges from Independent Providers,"2,143.40",AUTUMN HOUSE CARE LTD
Revenue,Adult Services,5105663292,27.11.2015,Elderly Mentally Ill Residential Care,Charges from Independent Providers,"2,143.40",AUTUMN HOUSE CARE LTD
Revenue,Adult Services,5105663292,27.11.2015,Elderly Mentally Ill Residential Care,Charges from Independent Providers,"1,823.36",AUTUMN HOUSE CARE LTD
Revenue,Adult Services,5105663292,27.11.2015,Elderly Mentally Ill Residential Care,Charges from Independent Providers,"2,143.40",AUTUMN HOUSE CARE LTD
Revenue,Adult Services,5105663292,27.11.2015,Elderly Mentally Ill Residential Care,Charges from Independent Providers,"2,143.40",AUTUMN HOUSE CARE LTD
Revenue,Adult Services,5105663292,27.11.2015,Elderly Mentally Ill Residential Care,Charges from Independent Providers,"2,143.40",AUTUMN HOUSE CARE LTD
Revenue,Adult Services,5105663292,27.11.2015,Elderly Mentally Ill Residential Care,Charges from Independent Providers,"2,143.40",AUTUMN HOUSE CARE LTD
Revenue,Adult Services,5105663292,27.11.2015,Elderly Mentally Ill Residential Care,Charges from Independent Providers,"2,143.40",AUTUMN HOUSE CARE LTD
Revenue,Adult Services,5105663292,27.11.2015,Elderly Mentally Ill Residential Care,Charges from Independent Providers,"2,143.40",AUTUMN HOUSE CARE LTD
Revenue,Adult Services,5105663292,27.11.2015,Elderly Mentally Ill Residential Care,Charges from Independent Providers,"2,143.40",AUTUMN HOUSE CARE LTD
Revenue,Adult Services,5105663292,27.11.2015,Elderly Mentally Ill Residential Care,Charges from Independent Providers,"2,143.40",AUTUMN HOUSE CARE LTD
Revenue,Adult Services,5105663292,27.11.2015,Elderly Mentally Ill Residential Care,Charges from Independent Providers,"2,143.40",AUTUMN HOUSE CARE LTD
Revenue,Adult Services,5105663292,27.11.2015,Elderly Mentally Ill Residential Care,Charges from Independent Providers,"2,143.40",AUTUMN HOUSE CARE LTD
Revenue,Adult Services,5105663292,27.11.2015,Elderly Mentally Ill Residential Care,Charges from Independent Providers,"1,823.36",AUTUMN HOUSE CARE LTD
Revenue,Adult Services,5105663292,27.11.2015,Elderly Mentally Ill Residential Care,Charges from Independent Providers,"2,143.40",AUTUMN HOUSE CARE LTD
Revenue,Adult Services,5105663292,27.11.2015,Elderly Mentally Ill Residential Care,Charges from Independent Providers,"2,143.40",AUTUMN HOUSE CARE LTD
Revenue,Adult Services,5105663292,27.11.2015,Elderly Mentally Ill Residential Care,Charges from Independent Providers,"1,823.36",AUTUMN HOUSE CARE LTD
Revenue,Adult Services,5105662491,25.11.2015,Elderly Mentally Ill Residential Care,Crisis Support for Carers,918.60,AUTUMN HOUSE CARE LTD
Revenue,Adult Services,5105662491,25.11.2015,Elderly Mentally Ill Residential Care,Crisis Support for Carers,"2,143.40",AUTUMN HOUSE CARE LTD
Revenue,Adult Services,5105663292,27.11.2015,Elderly Mentally Ill Residential Care,Crisis Support for Carers,"2,143.40",AUTUMN HOUSE CARE LTD
Revenue,Place,5105659910,11.11.2015,Isle of Wight Festival,Security of Buildings,375.16,AVO SYSTEMS LTD
Revenue,Place,5105660083,11.11.2015,Bestival,Security of Buildings,"5,045.10",AVO SYSTEMS LTD
Revenue,Childrens Services,5105661644,20.11.2015,Leaving Care Costs,Support Children,50.00,REDACTED PERSONAL DATA
Revenue,Childrens Services,5105662904,27.11.2015,Leaving Care Costs,Support Children,50.00,REDACTED PERSONAL DATA
Revenue,Childrens Services,5105659609,06.11.2015,Leaving Care Costs,Support Children,50.00,REDACTED PERSONAL DATA
Revenue,Childrens Services,5105660191,13.11.2015,Leaving Care Costs,Support Children,50.00,REDACTED PERSONAL DATA
Revenue,Childrens Services,5105659371,04.11.2015,Leaving Care Costs,Accommodation Costs - Service Users,500.00,REDACTED PERSONAL DATA
Revenue,Childrens Services,5105659609,06.11.2015,In-house Fostering,Boarding Out Allowances,150.00,REDACTED PERSONAL DATA
Revenue,Childrens Services,5105659609,06.11.2015,In-house Fostering,Boarding Out Allowances,10.00,REDACTED PERSONAL DATA
Revenue,Childrens Services,5105659609,06.11.2015,In-house Fostering,Boarding Out Allowances,162.73,REDACTED PERSONAL DATA
Revenue,Childrens Services,5105660191,13.11.2015,In-house Fostering,Boarding Out Allowances,162.73,REDACTED PERSONAL DATA
Revenue,Childrens Services,5105660191,13.11.2015,In-house Fostering,Boarding Out Allowances,10.00,REDACTED PERSONAL DATA
Revenue,Childrens Services,5105660191,13.11.2015,In-house Fostering,Boarding Out Allowances,150.00,REDACTED PERSONAL DATA
Revenue,Childrens Services,5105661644,20.11.2015,In-house Fostering,Boarding Out Allowances,162.73,REDACTED PERSONAL DATA
Revenue,Childrens Services,5105661644,20.11.2015,In-house Fostering,Boarding Out Allowances,10.00,REDACTED PERSONAL DATA
Revenue,Childrens Services,5105661644,20.11.2015,In-house Fostering,Boarding Out Allowances,150.00,REDACTED PERSONAL DATA
Revenue,Childrens Services,5105662904,27.11.2015,In-house Fostering,Boarding Out Allowances,162.73,REDACTED PERSONAL DATA
Revenue,Childrens Services,5105662904,27.11.2015,In-house Fostering,Boarding Out Allowances,10.00,REDACTED PERSONAL DATA
Revenue,Childrens Services,5105662904,27.11.2015,In-house Fostering,Boarding Out Allowances,150.00,REDACTED PERSONAL DATA
Revenue,Adult Services,5105657936,04.11.2015,Learning Disability Residential Care,Charges from Independent Providers,"1,894.76",REDACTED PERSONAL DATA
Revenue,Adult Services,5105657937,04.11.2015,Learning Disability Residential Care,Charges from Independent Providers,"1,894.76",REDACTED PERSONAL DATA
Revenue,Adult Services,5105657938,04.11.2015,Learning Disability Residential Care,Charges from Independent Providers,"2,745.40",REDACTED PERSONAL DATA
Revenue,Adult Services,5105663305,27.11.2015,Learning Disability Residential Care,Charges from Independent Providers,"1,936.76",REDACTED PERSONAL DATA
Revenue,Adult Services,5105663305,27.11.2015,Learning Disability Residential Care,Charges from Independent Providers,"1,936.76",REDACTED PERSONAL DATA
Revenue,Adult Services,5105663305,27.11.2015,Learning Disability Residential Care,Charges from Independent Providers,"2,806.16",REDACTED PERSONAL DATA
Revenue,Place,5105662124,25.11.2015,Leaseholds by LA,Accommodation Costs - Leaseholder Payments,815.49,REDACTED PERSONAL DATA
Revenue,Resources,5105662187,25.11.2015,Staff Benefits,Payment to Private Contractors,100.00,REDACTED PERSONAL DATA
Revenue,Resources,5105662187,25.11.2015,Staff Benefits,Payment to Private Contractors,100.00,REDACTED PERSONAL DATA
Revenue,Resources,5105662187,25.11.2015,Staff Benefits,Payment to Private Contractors,50.00,REDACTED PERSONAL DATA
Revenue,Place,5105662130,25.11.2015,Leaseholds by LA,Accommodation Costs - Leaseholder Payments,799.50,REDACTED PERSONAL DATA
Revenue,Place,5105662130,25.11.2015,Leaseholds by LA,Accommodation Costs - Leaseholder Payments,866.67,REDACTED PERSONAL DATA
Revenue,Place,5105662130,25.11.2015,Leaseholds by LA,Accommodation Costs - Leaseholder Payments,866.67,REDACTED PERSONAL DATA
Revenue,Place,5105662130,25.11.2015,Leaseholds by LA,Accommodation Costs - Leaseholder Payments,888.33,REDACTED PERSONAL DATA
Revenue,Place,5105662130,25.11.2015,Leaseholds by LA,Accommodation Costs - Leaseholder Payments,799.50,REDACTED PERSONAL DATA
Revenue,Place,5105662301,25.11.2015,"Enterprise House, Newport",Prop Svs only - Day to day mtce,60.60,BALFOUR BEATTY
Revenue,Place,5105659534,04.11.2015,"Enterprise House, Newport",Prop Svs only - Day to day mtce,33.32,BALFOUR BEATTY
Revenue,Place,5105659454,04.11.2015,"Enterprise House, Newport",Prop Svs only - Day to day mtce,43.60,BALFOUR BEATTY
Revenue,Place,5105660695,25.11.2015,"Enterprise House, Newport",Prop Svs only - Day to day mtce,57.30,BALFOUR BEATTY
Revenue,Place,5105660589,18.11.2015,"County Hall,Newport",Prop Svs only - Day to day mtce,58.50,BALFOUR BEATTY
Revenue,Place,5105660649,25.11.2015,"County Hall,Newport",Prop Svs only - Day to day mtce,174.45,BALFOUR BEATTY
Revenue,Place,5105661843,20.11.2015,"County Hall,Newport",Prop Svs only - Day to day mtce,58.50,BALFOUR BEATTY
Revenue,Place,5105661843,20.11.2015,"County Hall,Newport",Prop Svs only - Day to day mtce,89.19,BALFOUR BEATTY
Revenue,Place,5105661855,20.11.2015,"County Hall,Newport",Prop Svs only - Day to day mtce,119.73,BALFOUR BEATTY
Revenue,Place,5105652627,04.11.2015,"County Hall,Newport",Prop Svs only - Day to day mtce,83.70,BALFOUR BEATTY
Revenue,Place,5105662842,27.11.2015,"County Hall,Newport",Property Services - Planned Maintenance,"1,678.38",BALFOUR BEATTY
Revenue,Place,5105662626,25.11.2015,"County Hall,Newport",Prop Svs only - Day to day mtce,159.80,BALFOUR BEATTY
Revenue,Place,5105662286,25.11.2015,"County Hall,Newport",Prop Svs only - Day to day mtce,72.81,BALFOUR BEATTY
Revenue,Place,5105662289,25.11.2015,"County Hall,Newport",Prop Svs only - Day to day mtce,37.75,BALFOUR BEATTY
Revenue,Place,5105662301,25.11.2015,"County Hall,Newport",Prop Svs only - Day to day mtce,58.50,BALFOUR BEATTY
Revenue,Place,5105662572,25.11.2015,"County Hall,Newport",Prop Svs only - Day to day mtce,27.00,BALFOUR BEATTY
Revenue,Place,5105662636,25.11.2015,"County Hall,Newport",Prop Svs only - Day to day mtce,"1,296.00",BALFOUR BEATTY
Revenue,Place,5105662352,25.11.2015,"County Hall,Newport",Prop Svs only - Day to day mtce,27.00,BALFOUR BEATTY
Revenue,Place,5105663099,27.11.2015,"County Hall,Newport",Prop Svs only - Day to day mtce,94.15,BALFOUR BEATTY
Revenue,Place,5105660917,18.11.2015,"Guildhall,Newport",Property Services - Planned Maintenance,442.00,BALFOUR BEATTY
Revenue,Place,5105662352,25.11.2015,"Guildhall,Newport",Prop Svs only - Day to day mtce,102.60,BALFOUR BEATTY
Revenue,Place,5105662672,25.11.2015,"Civic Centre,Sandown",Prop Svs only - Day to day mtce,119.16,BALFOUR BEATTY
Revenue,Place,5105660667,18.11.2015,"Civic Centre,Sandown",Property Services - Planned Maintenance,460.00,BALFOUR BEATTY
Revenue,Place,5105659816,06.11.2015,"Civic Centre,Sandown",Property Services - Planned Maintenance,791.96,BALFOUR BEATTY
Revenue,Place,5105663100,27.11.2015,"Civic Centre,Sandown",Prop Svs only - Day to day mtce,70.02,BALFOUR BEATTY
Revenue,Place,5105662572,25.11.2015,"Civic Centre,Sandown",Property Services - Planned Maintenance,400.46,BALFOUR BEATTY
Revenue,Place,5105662592,25.11.2015,"Bugle House,Newport",Prop Svs only - Day to day mtce,51.79,BALFOUR BEATTY
Revenue,Place,5105662286,25.11.2015,"Jubilee Stores, Newport",Prop Svs only - Day to day mtce,45.15,BALFOUR BEATTY
Revenue,Place,5105662627,25.11.2015,"Jubilee Stores, Newport",Prop Svs only - Day to day mtce,51.80,BALFOUR BEATTY
Revenue,Place,5105661855,20.11.2015,"Jubilee Stores, Newport",Prop Svs only - Day to day mtce,68.63,BALFOUR BEATTY
Revenue,Place,5105660589,18.11.2015,"Seaclose Offices, Newport",Prop Svs only - Day to day mtce,106.69,BALFOUR BEATTY
Revenue,Place,5105652672,04.11.2015,"Seaclose Offices, Newport",Prop Svs only - Day to day mtce,99.15,BALFOUR BEATTY
Revenue,Place,5105662802,27.11.2015,"Seaclose Offices, Newport",Prop Svs only - Day to day mtce,34.89,BALFOUR BEATTY
Revenue,Place,5105662286,25.11.2015,Somerton Industrial Park,Prop Svs only - Day to day mtce,119.07,BALFOUR BEATTY
Revenue,Place,5105661855,20.11.2015,Properties  - Other Properties,Prop Svs only - Day to day mtce,48.54,BALFOUR BEATTY
Revenue,Place,5105662290,25.11.2015,"Westridge, Ryde",Prop Svs only - Day to day mtce,99.74,BALFOUR BEATTY
Revenue,Place,5105662289,25.11.2015,"Westridge, Ryde",Prop Svs only - Day to day mtce,16.20,BALFOUR BEATTY
Revenue,Place,5105662804,27.11.2015,"Westridge, Ryde",Prop Svs only - Day to day mtce,74.29,BALFOUR BEATTY
Revenue,Place,5105662842,27.11.2015,"Westridge, Ryde",Property Services - Planned Maintenance,"1,949.46",BALFOUR BEATTY
Revenue,Place,5105662804,27.11.2015,"24 Daish Way, Newport (WISE)",Prop Svs only - Day to day mtce,106.47,BALFOUR BEATTY
Revenue,Resources,5105660586,18.11.2015,ICT Refresh Programme,Computer Maintenance,269.00,BALFOUR BEATTY
Revenue,Place,5105660695,25.11.2015,Downside Community & Learning Centre,Minor Works,76.11,BALFOUR BEATTY
Revenue,Place,5105662089,25.11.2015,Downside Community & Learning Centre,Minor Works,251.14,BALFOUR BEATTY
Revenue,Adult Services,5105662275,25.11.2015,S75 Integrated Community Equipment Store,Fixtures and Fittings,120.24,BALFOUR BEATTY
Revenue,Adult Services,5105662632,25.11.2015,Overbrook,Minor Works,123.97,BALFOUR BEATTY
Revenue,Adult Services,5105662376,25.11.2015,Seagulls,Minor Works,43.45,BALFOUR BEATTY
Revenue,Adult Services,5105661855,20.11.2015,Plean Dene,Minor Works,70.65,BALFOUR BEATTY
Revenue,Adult Services,5105660586,18.11.2015,Plean Dene,Minor Works,"1,496.00",BALFOUR BEATTY
Revenue,Adult Services,5105662376,25.11.2015,Saxonbury,Minor Works,80.87,BALFOUR BEATTY
Revenue,Adult Services,5105662627,25.11.2015,Saxonbury,Minor Works,45.58,BALFOUR BEATTY
Revenue,Adult Services,5105662376,25.11.2015,Saxonbury,Minor Works,62.30,BALFOUR BEATTY
Revenue,Adult Services,5105662632,25.11.2015,Saxonbury,Minor Works,589.38,BALFOUR BEATTY
Revenue,Adult Services,5105662802,27.11.2015,Saxonbury,Minor Works,282.96,BALFOUR BEATTY
Revenue,Adult Services,5105662842,27.11.2015,40 Venner Avenue,Minor Works,"3,621.49",BALFOUR BEATTY
Revenue,Adult Services,5105663098,27.11.2015,40 Venner Avenue,Minor Works,"2,625.00",BALFOUR BEATTY
Revenue,Adult Services,5105659816,06.11.2015,Highmead,Minor Works,301.35,BALFOUR BEATTY
Revenue,Adult Services,5105662627,25.11.2015,Highmead,Minor Works,39.39,BALFOUR BEATTY
Revenue,Adult Services,5105662592,25.11.2015,Highmead,Minor Works,44.70,BALFOUR BEATTY
Revenue,Adult Services,5105662275,25.11.2015,Highmead,Minor Works,108.65,BALFOUR BEATTY
Revenue,Adult Services,5105660649,25.11.2015,The Laurels,Minor Works,70.69,BALFOUR BEATTY
Revenue,Adult Services,5105660649,25.11.2015,The Laurels,Minor Works,62.64,BALFOUR BEATTY
Revenue,Adult Services,5105660681,18.11.2015,The Laurels,Minor Works,"2,820.00",BALFOUR BEATTY
Revenue,Adult Services,5105661843,20.11.2015,The Laurels,Minor Works,106.43,BALFOUR BEATTY
Revenue,Adult Services,5105662626,25.11.2015,The Laurels,Minor Works,109.75,BALFOUR BEATTY
Revenue,Adult Services,5105662592,25.11.2015,The Laurels,Minor Works,70.53,BALFOUR BEATTY
Revenue,Adult Services,5105663098,27.11.2015,The Laurels,Minor Works,81.69,BALFOUR BEATTY
Revenue,Place,5105662626,25.11.2015,17 Fairlee Road,Property Services - Planned Maintenance,175.54,BALFOUR BEATTY
Revenue,Adult Services,5105660678,18.11.2015,Adelaide Resource Centre,Property Services - Planned Maintenance,325.00,BALFOUR BEATTY
Revenue,Adult Services,5105659816,06.11.2015,Adelaide Resource Centre,Property Services - Planned Maintenance,288.00,BALFOUR BEATTY
Revenue,Adult Services,5105662287,25.11.2015,Adelaide Resource Centre,Prop Svs only - Day to day mtce,68.79,BALFOUR BEATTY
Revenue,Adult Services,5105662360,25.11.2015,Adelaide Resource Centre,Prop Svs only - Day to day mtce,32.81,BALFOUR BEATTY
Revenue,Adult Services,5105662825,27.11.2015,Adelaide Resource Centre,Prop Svs only - Day to day mtce,84.60,BALFOUR BEATTY
Revenue,Adult Services,5105659816,06.11.2015,Gouldings Resource Centre,Property Services - Planned Maintenance,288.00,BALFOUR BEATTY
Revenue,Adult Services,5105662627,25.11.2015,Gouldings Resource Centre,Prop Svs only - Day to day mtce,76.33,BALFOUR BEATTY
Revenue,Adult Services,5105659780,06.11.2015,Gouldings Resource Centre,Prop Svs only - Day to day mtce,50.51,BALFOUR BEATTY
Revenue,Adult Services,5105660667,18.11.2015,Westminster House,Prop Svs only - Day to day mtce,99.00,BALFOUR BEATTY
Revenue,Adult Services,5105663099,27.11.2015,Westminster House,Prop Svs only - Day to day mtce,171.02,BALFOUR BEATTY
Revenue,Adult Services,5105663099,27.11.2015,Westminster House,Prop Svs only - Day to day mtce,60.87,BALFOUR BEATTY
Revenue,Adult Services,5105662376,25.11.2015,Westminster House,Prop Svs only - Day to day mtce,86.23,BALFOUR BEATTY
Revenue,Adult Services,5105662288,25.11.2015,Mental Health Day Services,Property Services - Planned Maintenance,229.54,BALFOUR BEATTY
Revenue,Place,5105660695,25.11.2015,Bembridge Library,Property Services - Planned Maintenance,183.02,BALFOUR BEATTY
Revenue,Place,5105662804,27.11.2015,Bembridge Library,Prop Svs only - Day to day mtce,115.50,BALFOUR BEATTY
Revenue,Place,5105662572,25.11.2015,East Cowes Library,Property Services - Planned Maintenance,246.13,BALFOUR BEATTY
Revenue,Place,5105663098,27.11.2015,Newport Library,Prop Svs only - Day to day mtce,38.44,BALFOUR BEATTY
Revenue,Place,5105662301,25.11.2015,Newport Library,Prop Svs only - Day to day mtce,710.24,BALFOUR BEATTY
Revenue,Place,5105662286,25.11.2015,Newport Library,Prop Svs only - Day to day mtce,75.40,BALFOUR BEATTY
Revenue,Place,5105662360,25.11.2015,Newport Library,Prop Svs only - Day to day mtce,83.98,BALFOUR BEATTY
Revenue,Place,5105660589,18.11.2015,Newport Library,Prop Svs only - Day to day mtce,25.20,BALFOUR BEATTY
Revenue,Place,5105660649,25.11.2015,Newport Library,Prop Svs only - Day to day mtce,972.00,BALFOUR BEATTY
Revenue,Place,5105659816,06.11.2015,Ryde Library,Property Services - Planned Maintenance,389.94,BALFOUR BEATTY
Revenue,Place,5105662288,25.11.2015,Ryde Library,Property Services - Planned Maintenance,308.04,BALFOUR BEATTY
Revenue,Place,5105662288,25.11.2015,Sandown Library,Property Services - Planned Maintenance,297.34,BALFOUR BEATTY
Revenue,Place,5105663101,27.11.2015,Ventnor Library,Prop Svs only - Day to day mtce,52.66,BALFOUR BEATTY
Revenue,Childrens Services,5105660649,25.11.2015,Learning & Development Running Costs,Minor Works,171.37,BALFOUR BEATTY
Revenue,Childrens Services,5105662290,25.11.2015,Learning & Development Running Costs,Minor Works,114.39,BALFOUR BEATTY
Revenue,Place,5105662643,25.11.2015,Archives,Property Services - Planned Maintenance,112.52,BALFOUR BEATTY
Revenue,Place,5105662592,25.11.2015,Archives,Prop Svs only - Day to day mtce,50.25,BALFOUR BEATTY
Revenue,Place,5105663100,27.11.2015,Roman Villa Newport,Prop Svs only - Day to day mtce,46.65,BALFOUR BEATTY
Revenue,Place,5105659816,06.11.2015,Cothey Bottom Store RYDE,Property Services - Planned Maintenance,444.66,BALFOUR BEATTY
Revenue,Place,5105662572,25.11.2015,Cothey Bottom Store RYDE,Property Services - Planned Maintenance,220.54,BALFOUR BEATTY
Revenue,Place,5105662287,25.11.2015,Dinosaur Isle Museum (Sandown Geology),Property Services - Planned Maintenance,563.26,BALFOUR BEATTY
Revenue,Place,5105659816,06.11.2015,Dinosaur Isle Museum (Sandown Geology),Property Services - Planned Maintenance,895.38,BALFOUR BEATTY
Revenue,Place,5105663100,27.11.2015,Dinosaur Isle Museum (Sandown Geology),Prop Svs only - Day to day mtce,116.58,BALFOUR BEATTY
Revenue,Place,5105662387,25.11.2015,Dinosaur Isle Museum (Sandown Geology),Prop Svs only - Day to day mtce,36.00,BALFOUR BEATTY
Revenue,Place,5105661855,20.11.2015,The Heights,Prop Svs only - Day to day mtce,36.00,BALFOUR BEATTY
Revenue,Place,5105660586,18.11.2015,The Heights,Property Services - Planned Maintenance,"1,428.00",BALFOUR BEATTY
Revenue,Place,5105662632,25.11.2015,The Heights,Prop Svs only - Day to day mtce,68.00,BALFOUR BEATTY
Revenue,Place,5105662643,25.11.2015,The Heights,Prop Svs only - Day to day mtce,42.30,BALFOUR BEATTY
Revenue,Place,5105662290,25.11.2015,Medina Leisure Centre,Prop Svs only - Day to day mtce,78.38,BALFOUR BEATTY
Revenue,Place,5105662089,25.11.2015,Medina Leisure Centre,Prop Svs only - Day to day mtce,48.30,BALFOUR BEATTY
Revenue,Place,5105662360,25.11.2015,Medina Leisure Centre,Prop Svs only - Day to day mtce,143.49,BALFOUR BEATTY
Revenue,Place,5105663101,27.11.2015,Medina Leisure Centre,Prop Svs only - Day to day mtce,34.00,BALFOUR BEATTY
Revenue,Place,5105663100,27.11.2015,Medina Leisure Centre,Prop Svs only - Day to day mtce,159.77,BALFOUR BEATTY
Revenue,Place,5105655956,04.11.2015,Medina Leisure Centre,Prop Svs only - Day to day mtce,324.60,BALFOUR BEATTY
Revenue,Place,5105662636,25.11.2015,Westridge Squash Courts,Payment to Private Contractors,"1,431.00",BALFOUR BEATTY
Revenue,Place,5105663099,27.11.2015,Ryde Harbour,Prop Svs only - Day to day mtce,86.19,BALFOUR BEATTY
Revenue,Place,5105662387,25.11.2015,Ryde Harbour,Prop Svs only - Day to day mtce,262.57,BALFOUR BEATTY
Revenue,Place,5105662275,25.11.2015,Medina Theatre,Prop Svs only - Day to day mtce,84.30,BALFOUR BEATTY
Capital,Adult Services,5105662636,25.11.2015,Adelaide & Gouldings Fixtures & Fittings,Payment to Contractors - Capital,517.00,BALFOUR BEATTY
Capital,Place,5105662634,25.11.2015,Leisure Facility Improvement,Payment to Contractors - Capital,"3,445.54",BALFOUR BEATTY
Revenue,Childrens Services,5105662301,25.11.2015,Island Learning Centre,Minor Works,69.50,BALFOUR BEATTY
Revenue,Childrens Services,5105662387,25.11.2015,Island Learning Centre,Minor Works,36.00,BALFOUR BEATTY
Revenue,Childrens Services,5105662802,27.11.2015,Island Learning Centre,Minor Works,125.12,BALFOUR BEATTY
Revenue,Childrens Services,5105663101,27.11.2015,Family Support activity base: 76 Greenlands,Minor Works,30.30,BALFOUR BEATTY
Revenue,Childrens Services,5105662572,25.11.2015,Youth- Newport,Property Services - Planned Maintenance,246.13,BALFOUR BEATTY
Revenue,Childrens Services,5105662290,25.11.2015,Specialist Service Business Admin,Minor Works,104.15,BALFOUR BEATTY
Revenue,Childrens Services,5105662352,25.11.2015,Specialist Service Business Admin,Minor Works,58.50,BALFOUR BEATTY
Revenue,Childrens Services,5105662387,25.11.2015,Specialist Service Business Admin,Minor Works,158.40,BALFOUR BEATTY
Revenue,Childrens Services,5105662089,25.11.2015,Beaulieu House,Minor Works,45.00,BALFOUR BEATTY
Revenue,Childrens Services,5105661843,20.11.2015,Beaulieu House,Minor Works,48.30,BALFOUR BEATTY
Revenue,Childrens Services,5105660589,18.11.2015,Beaulieu House,Minor Works,102.40,BALFOUR BEATTY
Revenue,Childrens Services,5105660667,18.11.2015,Beaulieu House,Minor Works,165.00,BALFOUR BEATTY
Revenue,Childrens Services,5105659816,06.11.2015,Beaulieu House,Minor Works,"1,151.68",BALFOUR BEATTY
Revenue,Childrens Services,5105662288,25.11.2015,Beaulieu House,Minor Works,57.00,BALFOUR BEATTY
Revenue,Childrens Services,5105662636,25.11.2015,Beaulieu House,Minor Works,483.00,BALFOUR BEATTY
Revenue,Childrens Services,5105662289,25.11.2015,Branstone Farm Studies Centre,Prop Svs only - Day to day mtce,77.48,BALFOUR BEATTY
Revenue,Childrens Services,5105662804,27.11.2015,Schools Asset Management,Minor Works,99.29,BALFOUR BEATTY
Revenue,Childrens Services,5105660586,18.11.2015,Childrens Centres Maintenance,Minor Works,235.00,BALFOUR BEATTY
Revenue,Childrens Services,5105662387,25.11.2015,Childrens Centres Maintenance,Minor Works,37.87,BALFOUR BEATTY
Revenue,Childrens Services,5105662804,27.11.2015,Childrens Centres Maintenance,Minor Works,31.82,BALFOUR BEATTY
Revenue,Childrens Services,5105662643,25.11.2015,Childrens Centres Maintenance,Minor Works,126.02,BALFOUR BEATTY
Revenue,Childrens Services,5105662643,25.11.2015,Childrens Centres Maintenance,Minor Works,121.52,BALFOUR BEATTY
Revenue,Childrens Services,5105662643,25.11.2015,Childrens Centres Maintenance,Minor Works,171.04,BALFOUR BEATTY
Revenue,Place,5105659531,04.11.2015,Public Conveniences - General,Prop Svs only - Day to day mtce,23.64,BALFOUR BEATTY
Revenue,Place,5105660589,18.11.2015,Public Conveniences - General,Prop Svs only - Day to day mtce,55.75,BALFOUR BEATTY
Revenue,Place,5105660695,25.11.2015,Public Conveniences - General,Prop Svs only - Day to day mtce,136.55,BALFOUR BEATTY
Revenue,Place,5105662089,25.11.2015,Public Conveniences - General,Prop Svs only - Day to day mtce,92.79,BALFOUR BEATTY
Revenue,Place,5105662089,25.11.2015,Public Conveniences - General,Prop Svs only - Day to day mtce,45.25,BALFOUR BEATTY
Revenue,Place,5105662290,25.11.2015,Public Conveniences - General,Prop Svs only - Day to day mtce,35.69,BALFOUR BEATTY
Revenue,Place,5105662275,25.11.2015,Public Conveniences - General,Prop Svs only - Day to day mtce,44.70,BALFOUR BEATTY
Revenue,Place,5105662275,25.11.2015,Public Conveniences - General,Prop Svs only - Day to day mtce,118.22,BALFOUR BEATTY
Revenue,Place,5105662287,25.11.2015,Public Conveniences - General,Prop Svs only - Day to day mtce,62.45,BALFOUR BEATTY
Revenue,Place,5105662289,25.11.2015,Public Conveniences - General,Prop Svs only - Day to day mtce,44.70,BALFOUR BEATTY
Revenue,Place,5105662301,25.11.2015,Public Conveniences - General,Prop Svs only - Day to day mtce,"1,455.00",BALFOUR BEATTY
Revenue,Place,5105662376,25.11.2015,Public Conveniences - General,Prop Svs only - Day to day mtce,61.98,BALFOUR BEATTY
Revenue,Place,5105662672,25.11.2015,Public Conveniences - General,Prop Svs only - Day to day mtce,92.23,BALFOUR BEATTY
Revenue,Place,5105662672,25.11.2015,Public Conveniences - General,Prop Svs only - Day to day mtce,169.79,BALFOUR BEATTY
Revenue,Place,5105662672,25.11.2015,Public Conveniences - General,Prop Svs only - Day to day mtce,67.50,BALFOUR BEATTY
Revenue,Place,5105662360,25.11.2015,Public Conveniences - General,Prop Svs only - Day to day mtce,37.49,BALFOUR BEATTY
Revenue,Place,5105662672,25.11.2015,Public Conveniences - General,Prop Svs only - Day to day mtce,100.65,BALFOUR BEATTY
Revenue,Place,5105662626,25.11.2015,Public Conveniences - General,Prop Svs only - Day to day mtce,77.72,BALFOUR BEATTY
Revenue,Place,5105662352,25.11.2015,Public Conveniences - General,Prop Svs only - Day to day mtce,110.79,BALFOUR BEATTY
Revenue,Place,5105662289,25.11.2015,Public Conveniences - General,Prop Svs only - Day to day mtce,89.65,BALFOUR BEATTY
Revenue,Place,5105662287,25.11.2015,Public Conveniences - General,Prop Svs only - Day to day mtce,43.15,BALFOUR BEATTY
Revenue,Place,5105662802,27.11.2015,Public Conveniences - General,Prop Svs only - Day to day mtce,96.00,BALFOUR BEATTY
Revenue,Place,5105662632,25.11.2015,Public Conveniences - General,Prop Svs only - Day to day mtce,267.26,BALFOUR BEATTY
Revenue,Place,5105662626,25.11.2015,Public Conveniences - General,Prop Svs only - Day to day mtce,81.59,BALFOUR BEATTY
Revenue,Place,5105662842,27.11.2015,Public Conveniences - General,Prop Svs only - Day to day mtce,77.10,BALFOUR BEATTY
Revenue,Place,5105662287,25.11.2015,Public Conveniences - General,Prop Svs only - Day to day mtce,53.40,BALFOUR BEATTY
Revenue,Place,5105662825,27.11.2015,Public Conveniences - General,Prop Svs only - Day to day mtce,203.97,BALFOUR BEATTY
Revenue,Place,5105662825,27.11.2015,Public Conveniences - General,Prop Svs only - Day to day mtce,131.25,BALFOUR BEATTY
Revenue,Place,5105662825,27.11.2015,Public Conveniences - General,Prop Svs only - Day to day mtce,131.25,BALFOUR BEATTY
Revenue,Place,5105662825,27.11.2015,Public Conveniences - General,Prop Svs only - Day to day mtce,131.25,BALFOUR BEATTY
Revenue,Place,5105662632,25.11.2015,Public Conveniences - General,Prop Svs only - Day to day mtce,53.83,BALFOUR BEATTY
Revenue,Place,5105662352,25.11.2015,Public Conveniences - General,Prop Svs only - Day to day mtce,46.05,BALFOUR BEATTY
Revenue,Place,5105663099,27.11.2015,Public Conveniences - General,Prop Svs only - Day to day mtce,47.65,BALFOUR BEATTY
Revenue,Place,5105663098,27.11.2015,Public Conveniences - General,Prop Svs only - Day to day mtce,70.97,BALFOUR BEATTY
Revenue,Place,5105662627,25.11.2015,Public Conveniences - General,Prop Svs only - Day to day mtce,62.12,BALFOUR BEATTY
Revenue,Place,5105663101,27.11.2015,Public Conveniences - General,Prop Svs only - Day to day mtce,35.33,BALFOUR BEATTY
Revenue,Place,5105663098,27.11.2015,Public Conveniences - General,Prop Svs only - Day to day mtce,131.25,BALFOUR BEATTY
Revenue,Place,5105662850,27.11.2015,Allotments,Payment to Private Contractors,94.50,BALFOUR BEATTY
Revenue,Place,5105663100,27.11.2015,Fort Victoria,Prop Svs only - Day to day mtce,50.24,BALFOUR BEATTY
Revenue,Place,5105662288,25.11.2015,Newport Harbour Account,Prop Svs only - Day to day mtce,127.44,BALFOUR BEATTY
Revenue,Place,5105662360,25.11.2015,Newport Harbour Account,Prop Svs only - Day to day mtce,49.65,BALFOUR BEATTY
Revenue,Place,5105659816,06.11.2015,Business Support  - Fire,Property Services - Planned Maintenance,216.04,BALFOUR BEATTY
Revenue,Place,5105663101,27.11.2015,Business Support  - Fire,Prop Svs only - Day to day mtce,164.32,BALFOUR BEATTY
Revenue,Place,5105662802,27.11.2015,Business Support  - Fire,Prop Svs only - Day to day mtce,83.72,BALFOUR BEATTY
Revenue,Place,5105662592,25.11.2015,Business Support  - Fire,Prop Svs only - Day to day mtce,189.00,BALFOUR BEATTY
Revenue,Place,5105662286,25.11.2015,Business Support  - Fire,Prop Svs only - Day to day mtce,104.90,BALFOUR BEATTY
Revenue,Place,5105660695,25.11.2015,Business Support  - Fire,Prop Svs only - Day to day mtce,45.00,BALFOUR BEATTY
Revenue,Place,5105662630,25.11.2015,Business Support  - Fire,Prop Svs only - Day to day mtce,"1,125.26",BALFOUR BEATTY
Revenue,Place,5105661843,20.11.2015,Business Support  - Fire,Prop Svs only - Day to day mtce,67.26,BALFOUR BEATTY
Revenue,Place,5105659816,06.11.2015,Business Support  - Fire,Prop Svs only - Day to day mtce,273.30,BALFOUR BEATTY
Revenue,Place,5105659530,04.11.2015,Business Support  - Fire,Prop Svs only - Day to day mtce,31.70,BALFOUR BEATTY
Revenue,Place,5105653855,04.11.2015,Business Support  - Fire,Prop Svs only - Day to day mtce,280.34,BALFOUR BEATTY
Revenue,Place,5105662842,27.11.2015,Fire Technical Support,Vehicle Fuel Costs,"1,378.00",BALFOUR BEATTY
Revenue,Place,5105660586,18.11.2015,Crematorium,Minor Works,127.00,BALFOUR BEATTY
Capital,Place,5105660667,18.11.2015,Parks and Gardens Capital,Payment to Contractors - Capital,"1,428.00",BALFOUR BEATTY
Capital,Corporate Items,5105662636,25.11.2015,Balance Sheet,Amenities Fund - St Lawrence Dene,"6,055.00",BALFOUR BEATTY
Revenue,Place,5105659916,18.11.2015,Fire Technical Support,Payment to Private Contractors,"6,751.39",BALLYCLARE LTD
Revenue,Childrens Services,5105662059,20.11.2015,Childrens Centre Contracts,Payment to Private Contractors,"340,036.56",BARNARDO'S
Revenue,Place,5105659956,11.11.2015,Diversity & Workforce,Operational Equipment,150.00,BARTLETTS SERVICE STATION
Revenue,Place,5105659956,11.11.2015,Diversity & Workforce,Operational Equipment,270.00,BARTLETTS SERVICE STATION
Revenue,Place,5105660973,18.11.2015,Diversity & Workforce,Operational Equipment,280.00,BARTLETTS SERVICE STATION
Revenue,Resources,5105662168,25.11.2015,Staff Benefits,Payment to Private Contractors,11.67,BARTON PRIMARY & EARLY YEARS
Revenue,Place,5105657631,04.11.2015,"Civic Centre,Sandown",Consumable Cleaning Materials,13.90,LAKE CLEANING & CATERING SUPPLIES
Revenue,Place,5105660058,13.11.2015,"Civic Centre,Sandown",Consumable Cleaning Materials,3.86,LAKE CLEANING & CATERING SUPPLIES
Revenue,Place,5105661218,18.11.2015,"Civic Centre,Sandown",Consumable Cleaning Materials,12.20,LAKE CLEANING & CATERING SUPPLIES
Revenue,Adult Services,5105660063,13.11.2015,Plean Dene,Operational Equipment,56.40,LAKE CLEANING & CATERING SUPPLIES
Revenue,Place,5105657631,04.11.2015,"Barrack Block, Sandown",Consumable Cleaning Materials,13.90,LAKE CLEANING & CATERING SUPPLIES
Revenue,Place,5105660058,13.11.2015,"Barrack Block, Sandown",Consumable Cleaning Materials,3.86,LAKE CLEANING & CATERING SUPPLIES
Revenue,Place,5105661218,18.11.2015,"Barrack Block, Sandown",Consumable Cleaning Materials,12.20,LAKE CLEANING & CATERING SUPPLIES
Revenue,Place,5105659746,06.11.2015,Dinosaur Isle Museum (Sandown Geology),General Materials,15.90,LAKE CLEANING & CATERING SUPPLIES
Revenue,Place,5105661220,18.11.2015,The Heights,Consumable Cleaning Materials,158.28,LAKE CLEANING & CATERING SUPPLIES
Revenue,Place,5105659865,11.11.2015,The Heights,Consumable Cleaning Materials,94.56,LAKE CLEANING & CATERING SUPPLIES
Revenue,Place,5105663069,27.11.2015,The Heights,Consumable Cleaning Materials,202.53,LAKE CLEANING & CATERING SUPPLIES
Revenue,Place,5105663069,27.11.2015,The Heights,Catering Equipment,32.61,LAKE CLEANING & CATERING SUPPLIES
Revenue,Place,5105662735,25.11.2015,The Heights,Catering Equipment,82.62,LAKE CLEANING & CATERING SUPPLIES
Revenue,Place,5105662739,25.11.2015,The Heights,Operational Equipment,53.43,LAKE CLEANING & CATERING SUPPLIES
Revenue,Place,5105663068,27.11.2015,Medina Leisure Centre,Consumable Cleaning Materials,14.56,LAKE CLEANING & CATERING SUPPLIES
Revenue,Place,5105663068,27.11.2015,Medina Leisure Centre,Consumable Cleaning Materials,13.44,LAKE CLEANING & CATERING SUPPLIES
Revenue,Place,5105663068,27.11.2015,Medina Leisure Centre,Consumable Cleaning Materials,20.76,LAKE CLEANING & CATERING SUPPLIES
Revenue,Place,5105663068,27.11.2015,Medina Leisure Centre,Consumable Cleaning Materials,117.50,LAKE CLEANING & CATERING SUPPLIES
Revenue,Place,5105663068,27.11.2015,Medina Leisure Centre,Consumable Cleaning Materials,29.12,LAKE CLEANING & CATERING SUPPLIES
Revenue,Place,5105663068,27.11.2015,Medina Leisure Centre,Consumable Cleaning Materials,7.28,LAKE CLEANING & CATERING SUPPLIES
Revenue,Place,5105663068,27.11.2015,Medina Leisure Centre,Consumable Cleaning Materials,21.92,LAKE CLEANING & CATERING SUPPLIES
Revenue,Place,5105662533,25.11.2015,Medina Leisure Centre,Consumable Cleaning Materials,15.90,LAKE CLEANING & CATERING SUPPLIES
Revenue,Childrens Services,5105660347,13.11.2015,Beaulieu House,General Materials,21.96,LAKE CLEANING & CATERING SUPPLIES
Revenue,Childrens Services,5105660350,13.11.2015,Beaulieu House,General Materials,108.83,LAKE CLEANING & CATERING SUPPLIES
Revenue,Childrens Services,5105663117,27.11.2015,Beaulieu House,General Materials,74.39,LAKE CLEANING & CATERING SUPPLIES
Revenue,Place,5105661235,18.11.2015,Fire Technical Support,Stock Purchases,26.88,LAKE CLEANING & CATERING SUPPLIES
Revenue,Place,5105661235,18.11.2015,Fire Technical Support,Stock Purchases,73.20,LAKE CLEANING & CATERING SUPPLIES
Revenue,Place,5105661235,18.11.2015,Fire Technical Support,Stock Purchases,62.50,LAKE CLEANING & CATERING SUPPLIES
Revenue,Place,5105661235,18.11.2015,Fire Technical Support,Stock Purchases,12.54,LAKE CLEANING & CATERING SUPPLIES
Revenue,Place,5105661235,18.11.2015,Fire Technical Support,Stock Purchases,54.00,LAKE CLEANING & CATERING SUPPLIES
Revenue,Place,5105661235,18.11.2015,Fire Technical Support,Stock Purchases,11.34,LAKE CLEANING & CATERING SUPPLIES
Revenue,Place,5105662088,25.11.2015,Crematorium,Operational Equipment,18.30,LAKE CLEANING & CATERING SUPPLIES
Revenue,Place,5105660000,11.11.2015,Medina Theatre,Payment to Private Contractors,65.63,BATON PRODUCTIONS LIMITED
Revenue,Place,5105657643,18.11.2015,Super Fast Broadband Campaign,Advertising & Publicity,"1,192.00",BEACON MEDIA LIMITED
Revenue,Childrens Services,5105657645,18.11.2015,In-house Fostering,Advertising & Publicity,716.00,BEACON MEDIA LIMITED
Revenue,Childrens Services,5105659750,06.11.2015,Support for Looked After Children - Disabled Childrens Team,Transport of Clients,660.00,BEACON TAXIS
Revenue,Childrens Services,5105657610,11.11.2015,Support for Looked After Children - Disabled Childrens Team,Transport of Clients,420.00,BEACON TAXIS
Revenue,Childrens Services,5105653823,06.11.2015,Pre 16 Independ. & Non-Maint. Special Schls & Independ. Specialist Provision,Transport of Clients,420.00,BEACON TAXIS
Revenue,Childrens Services,5105657491,11.11.2015,Pre 16 Independ. & Non-Maint. Special Schls & Independ. Specialist Provision,Transport of Clients,420.00,BEACON TAXIS
Revenue,Adult Services,5105658739,04.11.2015,Elderly Mentally Ill Nursing Mainland,Charges from Independent Providers,"2,269.40",BEAUMONT LODGE LTD
Revenue,Adult Services,5105663506,27.11.2015,Elderly Mentally Ill Nursing Mainland,Charges from Independent Providers,"2,269.40",BEAUMONT LODGE LTD
Revenue,Public Health,5105660093,11.11.2015,Contraception,Payment to Private Contractors,275.00,BEECH GROVE SURGERY
Revenue,Public Health,5105660508,18.11.2015,NHS Health Check Programme,Payment to Private Contractors,97.00,BEECH GROVE SURGERY
Revenue,Public Health,5105661302,20.11.2015,NHS Health Check Programme,Payment to Private Contractors,"1,286.00",BEECH GROVE SURGERY
Revenue,Place,5105659436,04.11.2015,SOREC Project ERDF,Grants to External Bodies,"18,021.80",BELAY ROPE ACCESS
Revenue,Place,5105662046,20.11.2015,SOREC Project ERDF,Grants to External Bodies,"11,521.80",BELAY ROPE ACCESS
Revenue,Place,5105660133,11.11.2015,Rights of Way Operations,General Materials,"1,250.00",BEMBRIDGE PARISH COUNCIL
Revenue,Adult Services,5105662038,25.11.2015,Community Laundry Service,Clothing & Laundry,13.74,BERENDSEN
Revenue,Adult Services,5105662023,25.11.2015,Community Laundry Service,Clothing & Laundry,13.74,BERENDSEN
Revenue,Place,5105662610,25.11.2015,Environmental Health - Business Regulation Protection,Clothing & Laundry,12.60,BERENDSEN
Revenue,Childrens Services,5105662056,20.11.2015,Support for Looked After Children,Support Children,66.60,BERRY HILL CHILDCARE LIMITED
Revenue,Place,5105659849,06.11.2015,B&B Properties,Accommodation Costs - Bed & Breakfast,"3,663.00",BERTRAM LODGE
Revenue,Resources,5105660605,18.11.2015,Pension Administration,Medical Fees and Staff Welfare,23.68,BETA PAK LTD
Revenue,Place,5105655699,04.11.2015,Downside Community & Learning Centre,Consumable Cleaning Materials,13.32,BETA PAK LTD
Revenue,Place,5105662499,25.11.2015,Downside Community & Learning Centre,Consumable Cleaning Materials,8.16,BETA PAK LTD
Revenue,Place,5105662499,25.11.2015,Downside Community & Learning Centre,Consumable Cleaning Materials,39.90,BETA PAK LTD
Revenue,Place,5105662499,25.11.2015,Downside Community & Learning Centre,Consumable Cleaning Materials,6.28,BETA PAK LTD
Revenue,Place,5105662499,25.11.2015,Downside Community & Learning Centre,Consumable Cleaning Materials,11.21,BETA PAK LTD
Revenue,Place,5105662261,25.11.2015,Downside Community & Learning Centre,Consumable Cleaning Materials,8.16,BETA PAK LTD
Revenue,Place,5105662261,25.11.2015,Downside Community & Learning Centre,Consumable Cleaning Materials,26.84,BETA PAK LTD
Revenue,Adult Services,5105662306,25.11.2015,31 Carter Avenue,Operational Equipment,129.83,BETA PAK LTD
Revenue,Adult Services,5105662307,25.11.2015,31 Carter Avenue,Operational Equipment,8.20,BETA PAK LTD
Revenue,Adult Services,5105661232,25.11.2015,31 Carter Avenue,Operational Equipment,75.04,BETA PAK LTD
Revenue,Adult Services,5105659410,04.11.2015,Overbrook,Operational Equipment,36.00,BETA PAK LTD
Revenue,Adult Services,5105659476,04.11.2015,Overbrook,Operational Equipment,-38.35,BETA PAK LTD
Revenue,Adult Services,5105662330,25.11.2015,Overbrook,Operational Equipment,20.69,BETA PAK LTD
Revenue,Adult Services,5105662331,25.11.2015,Overbrook,Operational Equipment,-20.69,BETA PAK LTD
Revenue,Adult Services,5105659414,18.11.2015,Seagulls,Operational Equipment,42.92,BETA PAK LTD
Revenue,Adult Services,5105659838,18.11.2015,Seagulls,Operational Equipment,90.90,BETA PAK LTD
Revenue,Adult Services,5105657553,18.11.2015,Seagulls,Operational Equipment,30.29,BETA PAK LTD
Revenue,Adult Services,5105656164,18.11.2015,Seagulls,Operational Equipment,18.97,BETA PAK LTD
Revenue,Adult Services,5105657625,06.11.2015,Plean Dene,Operational Equipment,10.16,BETA PAK LTD
Revenue,Adult Services,5105657625,06.11.2015,Plean Dene,Operational Equipment,45.96,BETA PAK LTD
Revenue,Adult Services,5105659480,04.11.2015,Plean Dene,Operational Equipment,-20.23,BETA PAK LTD
Revenue,Adult Services,5105659451,04.11.2015,Plean Dene,Operational Equipment,20.23,BETA PAK LTD
Revenue,Adult Services,5105659412,06.11.2015,Plean Dene,Operational Equipment,64.41,BETA PAK LTD
Revenue,Adult Services,5105662309,25.11.2015,Plean Dene,Operational Equipment,49.46,BETA PAK LTD
Revenue,Adult Services,5105662311,25.11.2015,Plean Dene,Operational Equipment,-50.97,BETA PAK LTD
Revenue,Adult Services,5105662234,25.11.2015,Plean Dene,Operational Equipment,40.62,BETA PAK LTD
Revenue,Adult Services,5105660914,18.11.2015,Plean Dene,Operational Equipment,78.02,BETA PAK LTD
Revenue,Adult Services,5105660915,18.11.2015,Plean Dene,Operational Equipment,9.85,BETA PAK LTD
Revenue,Adult Services,5105661265,20.11.2015,Plean Dene,Operational Equipment,28.36,BETA PAK LTD
Revenue,Adult Services,5105661326,20.11.2015,Plean Dene,Operational Equipment,106.11,BETA PAK LTD
Revenue,Adult Services,5105661207,18.11.2015,Plean Dene,Operational Equipment,50.97,BETA PAK LTD
Revenue,Adult Services,5105661326,20.11.2015,Plean Dene,Operational Equipment,45.96,BETA PAK LTD
Revenue,Adult Services,5105660914,18.11.2015,Plean Dene,Operational Equipment,45.96,BETA PAK LTD
Revenue,Adult Services,5105662770,25.11.2015,Plean Dene,Operational Equipment,5.50,BETA PAK LTD
Revenue,Adult Services,5105662540,25.11.2015,Plean Dene,Operational Equipment,33.13,BETA PAK LTD
Revenue,Adult Services,5105662555,27.11.2015,Saxonbury,Operational Equipment,155.65,BETA PAK LTD
Revenue,Adult Services,5105660503,20.11.2015,Saxonbury,Operational Equipment,31.20,BETA PAK LTD
Revenue,Adult Services,5105660908,18.11.2015,Saxonbury,Operational Equipment,3.08,BETA PAK LTD
Revenue,Adult Services,5105660905,18.11.2015,Saxonbury,Operational Equipment,323.85,BETA PAK LTD
Revenue,Adult Services,5105660906,18.11.2015,Saxonbury,Operational Equipment,11.90,BETA PAK LTD
Revenue,Adult Services,5105660922,20.11.2015,Saxonbury,Operational Equipment,10.65,BETA PAK LTD
Revenue,Adult Services,5105659422,06.11.2015,Saxonbury,Operational Equipment,42.39,BETA PAK LTD
Revenue,Adult Services,5105659931,18.11.2015,Saxonbury,Operational Equipment,305.22,BETA PAK LTD
Revenue,Adult Services,5105659932,18.11.2015,Saxonbury,Operational Equipment,-41.34,BETA PAK LTD
Revenue,Adult Services,5105659992,18.11.2015,Saxonbury,Operational Equipment,19.63,BETA PAK LTD
Revenue,Adult Services,5105659829,06.11.2015,40 Venner Avenue,Operational Equipment,-57.19,BETA PAK LTD
Revenue,Adult Services,5105659815,06.11.2015,40 Venner Avenue,Operational Equipment,4.38,BETA PAK LTD
Revenue,Adult Services,5105659402,06.11.2015,40 Venner Avenue,Operational Equipment,327.83,BETA PAK LTD
Revenue,Adult Services,5105660078,18.11.2015,40 Venner Avenue,Operational Equipment,31.66,BETA PAK LTD
Revenue,Adult Services,5105657640,06.11.2015,40 Venner Avenue,Operational Equipment,23.29,BETA PAK LTD
Revenue,Adult Services,5105654509,06.11.2015,40 Venner Avenue,Operational Equipment,57.19,BETA PAK LTD
Revenue,Adult Services,5105660912,18.11.2015,40 Venner Avenue,Operational Equipment,43.00,BETA PAK LTD
Revenue,Adult Services,5105660927,18.11.2015,Highmead,Operational Equipment,171.48,BETA PAK LTD
Revenue,Adult Services,5105662312,25.11.2015,The Laurels,Operational Equipment,40.00,BETA PAK LTD
Revenue,Adult Services,5105662316,25.11.2015,The Laurels,Operational Equipment,20.21,BETA PAK LTD
Revenue,Adult Services,5105662242,25.11.2015,The Laurels,Operational Equipment,20.92,BETA PAK LTD
Revenue,Adult Services,5105662262,25.11.2015,The Laurels,Operational Equipment,11.99,BETA PAK LTD
Revenue,Adult Services,5105660689,18.11.2015,The Laurels,Operational Equipment,249.56,BETA PAK LTD
Revenue,Adult Services,5105656958,13.11.2015,The Laurels,Operational Equipment,332.33,BETA PAK LTD
Revenue,Adult Services,5105656965,13.11.2015,The Laurels,Operational Equipment,7.76,BETA PAK LTD
Revenue,Adult Services,5105662550,25.11.2015,The Laurels,Operational Equipment,11.99,BETA PAK LTD
Revenue,Adult Services,5105663272,27.11.2015,Adelaide Resource Centre,Fixtures and Fittings,50.00,BETA PAK LTD
Revenue,Adult Services,5105660655,18.11.2015,Adelaide Resource Centre,Consumable Cleaning Materials,9.58,BETA PAK LTD
Revenue,Adult Services,5105660670,20.11.2015,Adelaide Resource Centre,Consumable Cleaning Materials,-32.82,BETA PAK LTD
Revenue,Adult Services,5105660512,18.11.2015,Adelaide Resource Centre,Consumable Cleaning Materials,434.21,BETA PAK LTD
Revenue,Adult Services,5105662260,25.11.2015,Adelaide Resource Centre,Consumable Cleaning Materials,43.44,BETA PAK LTD
Revenue,Adult Services,5105663135,27.11.2015,Adelaide Resource Centre,Consumable Cleaning Materials,618.64,BETA PAK LTD
Revenue,Adult Services,5105659408,04.11.2015,Gouldings Resource Centre,Consumable Cleaning Materials,27.39,BETA PAK LTD
Revenue,Adult Services,5105660409,13.11.2015,Gouldings Resource Centre,Consumable Cleaning Materials,809.01,BETA PAK LTD
Revenue,Adult Services,5105662544,25.11.2015,Westminster House,Consumable Cleaning Materials,64.42,BETA PAK LTD
Revenue,Adult Services,5105660091,11.11.2015,Westminster House,Consumable Cleaning Materials,88.36,BETA PAK LTD
Revenue,Adult Services,5105660414,13.11.2015,Westminster House,Consumable Cleaning Materials,132.08,BETA PAK LTD
Revenue,Adult Services,5105660415,13.11.2015,Westminster House,Consumable Cleaning Materials,41.00,BETA PAK LTD
Revenue,Adult Services,5105660419,13.11.2015,Westminster House,Consumable Cleaning Materials,182.00,BETA PAK LTD
Revenue,Adult Services,5105660416,13.11.2015,Westminster House,Consumable Cleaning Materials,95.03,BETA PAK LTD
Revenue,Adult Services,5105663123,27.11.2015,Westminster House,Catering Equipment,142.99,BETA PAK LTD
Revenue,Adult Services,5105661183,18.11.2015,Westminster House,Operational Equipment,76.26,BETA PAK LTD
Revenue,Adult Services,5105662579,25.11.2015,Westminster House,Clothing & Laundry,43.02,BETA PAK LTD
Revenue,Adult Services,5105660413,13.11.2015,Westminster House,Clothing & Laundry,64.53,BETA PAK LTD
Revenue,Adult Services,5105661253,18.11.2015,Westminster House,Clothing & Laundry,43.02,BETA PAK LTD
Revenue,Adult Services,5105660417,13.11.2015,Westminster House,Clothing & Laundry,21.51,BETA PAK LTD
Revenue,Adult Services,5105660418,13.11.2015,Westminster House,Clothing & Laundry,43.02,BETA PAK LTD
Revenue,Adult Services,5105659413,04.11.2015,Westminster House,Clothing & Laundry,43.02,BETA PAK LTD
Revenue,Place,5105657621,04.11.2015,Medina Leisure Centre,Payment to Private Contractors,97.40,BETA PAK LTD
Revenue,Childrens Services,5105660693,18.11.2015,Island Learning Centre,General Materials,19.97,BETA PAK LTD
Revenue,Childrens Services,5105660956,18.11.2015,Island Learning Centre,General Materials,10.98,BETA PAK LTD
Revenue,Childrens Services,5105660693,18.11.2015,Island Learning Centre,General Materials,10.21,BETA PAK LTD
Revenue,Childrens Services,5105660693,18.11.2015,Island Learning Centre,General Materials,15.09,BETA PAK LTD
Revenue,Childrens Services,5105660693,18.11.2015,Island Learning Centre,General Materials,13.45,BETA PAK LTD
Revenue,Childrens Services,5105660693,18.11.2015,Island Learning Centre,General Materials,2.04,BETA PAK LTD
Revenue,Childrens Services,5105660693,18.11.2015,Island Learning Centre,General Materials,13.84,BETA PAK LTD
Revenue,Childrens Services,5105660693,18.11.2015,Island Learning Centre,General Materials,8.74,BETA PAK LTD
Revenue,Adult Services,5105661490,20.11.2015,Elderly Frail Homecare,Charges from Independent Providers,234.60,BETTER AT HOME IOW LTD
Revenue,Adult Services,5105661483,20.11.2015,Elderly Frail Homecare,Charges from Independent Providers,547.40,BETTER AT HOME IOW LTD
Revenue,Adult Services,5105661506,20.11.2015,Elderly Frail Homecare,Charges from Independent Providers,387.09,BETTER AT HOME IOW LTD
Revenue,Adult Services,5105661509,20.11.2015,Elderly Frail Homecare,Charges from Independent Providers,410.55,BETTER AT HOME IOW LTD
Revenue,Adult Services,5105661481,20.11.2015,Elderly Frail Homecare,Charges from Independent Providers,766.36,BETTER AT HOME IOW LTD
Revenue,Adult Services,5105661485,20.11.2015,Elderly Frail Homecare,Charges from Independent Providers,547.40,BETTER AT HOME IOW LTD
Revenue,Adult Services,5105661482,20.11.2015,Elderly Frail Homecare,Charges from Independent Providers,"1,994.10",BETTER AT HOME IOW LTD
Revenue,Adult Services,5105661534,20.11.2015,Elderly Frail Homecare,Charges from Independent Providers,"1,094.80",BETTER AT HOME IOW LTD
Revenue,Adult Services,5105661541,20.11.2015,Elderly Frail Homecare,Charges from Independent Providers,273.70,BETTER AT HOME IOW LTD
Revenue,Adult Services,5105661924,20.11.2015,Elderly Frail Homecare,Charges from Independent Providers,"2,369.46",BETTER AT HOME IOW LTD
Revenue,Adult Services,5105661533,20.11.2015,Elderly Frail Homecare,Charges from Independent Providers,39.10,BETTER AT HOME IOW LTD
Revenue,Adult Services,5105661535,20.11.2015,Elderly Frail Homecare,Charges from Independent Providers,281.52,BETTER AT HOME IOW LTD
Revenue,Adult Services,5105661928,20.11.2015,Elderly Frail Homecare,Charges from Independent Providers,54.74,BETTER AT HOME IOW LTD
Revenue,Adult Services,5105661511,20.11.2015,Elderly Frail Homecare,Charges from Independent Providers,"1,493.62",BETTER AT HOME IOW LTD
Revenue,Adult Services,5105661529,20.11.2015,Elderly Frail Homecare,Charges from Independent Providers,"1,094.80",BETTER AT HOME IOW LTD
Revenue,Adult Services,5105661516,20.11.2015,Elderly Frail Homecare,Charges from Independent Providers,156.40,BETTER AT HOME IOW LTD
Revenue,Adult Services,5105661518,20.11.2015,Elderly Frail Homecare,Charges from Independent Providers,531.76,BETTER AT HOME IOW LTD
Revenue,Adult Services,5105661513,20.11.2015,Elderly Frail Homecare,Charges from Independent Providers,"3,010.70",BETTER AT HOME IOW LTD
Revenue,Adult Services,5105661520,20.11.2015,Elderly Frail Homecare,Charges from Independent Providers,875.84,BETTER AT HOME IOW LTD
Revenue,Adult Services,5105661514,20.11.2015,Elderly Frail Homecare,Charges from Independent Providers,218.96,BETTER AT HOME IOW LTD
Revenue,Adult Services,5105661536,20.11.2015,Elderly Frail Homecare,Charges from Independent Providers,"1,356.77",BETTER AT HOME IOW LTD
Revenue,Adult Services,5105661537,20.11.2015,Elderly Frail Homecare,Charges from Independent Providers,273.70,BETTER AT HOME IOW LTD
Revenue,Adult Services,5105661532,20.11.2015,Elderly Frail Homecare,Charges from Independent Providers,828.92,BETTER AT HOME IOW LTD
Revenue,Adult Services,5105661927,20.11.2015,Elderly Frail Homecare,Charges from Independent Providers,"1,313.76",BETTER AT HOME IOW LTD
Revenue,Adult Services,5105661929,20.11.2015,Elderly Frail Homecare,Charges from Independent Providers,46.92,BETTER AT HOME IOW LTD
Revenue,Adult Services,5105661539,20.11.2015,Elderly Frail Homecare,Charges from Independent Providers,684.25,BETTER AT HOME IOW LTD
Revenue,Adult Services,5105661540,20.11.2015,Elderly Frail Homecare,Charges from Independent Providers,492.66,BETTER AT HOME IOW LTD
Revenue,Adult Services,5105661930,20.11.2015,Elderly Frail Homecare,Charges from Independent Providers,125.12,BETTER AT HOME IOW LTD
Revenue,Adult Services,5105661931,20.11.2015,Elderly Frail Homecare,Charges from Independent Providers,54.74,BETTER AT HOME IOW LTD
Revenue,Adult Services,5105661524,20.11.2015,Elderly Frail Homecare,Charges from Independent Providers,684.25,BETTER AT HOME IOW LTD
Revenue,Adult Services,5105661521,20.11.2015,Elderly Frail Homecare,Charges from Independent Providers,825.01,BETTER AT HOME IOW LTD
Revenue,Adult Services,5105661530,20.11.2015,Elderly Frail Homecare,Charges from Independent Providers,"1,133.90",BETTER AT HOME IOW LTD
Revenue,Adult Services,5105661527,20.11.2015,Elderly Frail Homecare,Charges from Independent Providers,821.10,BETTER AT HOME IOW LTD
Revenue,Adult Services,5105661528,20.11.2015,Elderly Frail Homecare,Charges from Independent Providers,606.05,BETTER AT HOME IOW LTD
Revenue,Adult Services,5105661925,20.11.2015,Elderly Frail Homecare,Charges from Independent Providers,15.64,BETTER AT HOME IOW LTD
Revenue,Adult Services,5105661925,20.11.2015,Elderly Frail Homecare,Charges from Independent Providers,11.73,BETTER AT HOME IOW LTD
Revenue,Adult Services,5105661925,20.11.2015,Elderly Frail Homecare,Charges from Independent Providers,19.55,BETTER AT HOME IOW LTD
Revenue,Adult Services,5105661925,20.11.2015,Elderly Frail Homecare,Charges from Independent Providers,11.73,BETTER AT HOME IOW LTD
Revenue,Adult Services,5105661519,20.11.2015,Elderly Frail Homecare,Charges from Independent Providers,"1,094.80",BETTER AT HOME IOW LTD
Revenue,Adult Services,5105661522,20.11.2015,Elderly Frail Homecare,Charges from Independent Providers,156.40,BETTER AT HOME IOW LTD
Revenue,Adult Services,5105661542,20.11.2015,Elderly Frail Homecare,Regular Respite Care,156.40,BETTER AT HOME IOW LTD
Revenue,Adult Services,5105661932,20.11.2015,Elderly Frail Homecare,Regular Respite Care,31.28,BETTER AT HOME IOW LTD
Revenue,Adult Services,5105661932,20.11.2015,Elderly Frail Homecare,Regular Respite Care,125.12,BETTER AT HOME IOW LTD
Revenue,Adult Services,5105661932,20.11.2015,Elderly Frail Homecare,Regular Respite Care,125.12,BETTER AT HOME IOW LTD
Revenue,Adult Services,5105661515,20.11.2015,Elderly Frail Homecare,Regular Respite Care,437.92,BETTER AT HOME IOW LTD
Revenue,Adult Services,5105661531,20.11.2015,Elderly Frail Homecare,Regular Respite Care,281.52,BETTER AT HOME IOW LTD
Revenue,Adult Services,5105661507,20.11.2015,Elderly Frail Homecare,Regular Respite Care,312.80,BETTER AT HOME IOW LTD
Revenue,Adult Services,5105661498,20.11.2015,Elderly Frail Homecare,Regular Respite Care,156.40,BETTER AT HOME IOW LTD
Revenue,Adult Services,5105661496,20.11.2015,Elderly Frail Homecare,Regular Respite Care,156.40,BETTER AT HOME IOW LTD
Revenue,Adult Services,5105661502,20.11.2015,Elderly Frail Homecare,Charges from Independent Providers,547.40,BETTER AT HOME IOW LTD
Revenue,Adult Services,5105661503,20.11.2015,Elderly Frail Homecare,Charges from Independent Providers,547.40,BETTER AT HOME IOW LTD
Revenue,Adult Services,5105661499,20.11.2015,Elderly Frail Homecare,Charges from Independent Providers,"1,094.80",BETTER AT HOME IOW LTD
Revenue,Adult Services,5105661504,20.11.2015,Elderly Frail Homecare,Charges from Independent Providers,461.38,BETTER AT HOME IOW LTD
Revenue,Adult Services,5105661508,20.11.2015,Elderly Frail Homecare,Charges from Independent Providers,531.76,BETTER AT HOME IOW LTD
Revenue,Adult Services,5105661492,20.11.2015,Elderly Frail Homecare,Charges from Independent Providers,203.32,BETTER AT HOME IOW LTD
Revenue,Adult Services,5105661493,20.11.2015,Elderly Frail Homecare,Charges from Independent Providers,175.95,BETTER AT HOME IOW LTD
Revenue,Adult Services,5105661494,20.11.2015,Elderly Frail Homecare,Charges from Independent Providers,774.18,BETTER AT HOME IOW LTD
Revenue,Adult Services,5105661495,20.11.2015,Elderly Frail Homecare,Charges from Independent Providers,473.11,BETTER AT HOME IOW LTD
Revenue,Adult Services,5105661497,20.11.2015,Elderly Frail Homecare,Charges from Independent Providers,547.40,BETTER AT HOME IOW LTD
Revenue,Adult Services,5105661500,20.11.2015,Elderly Frail Homecare,Charges from Independent Providers,273.70,BETTER AT HOME IOW LTD
Revenue,Adult Services,5105661484,20.11.2015,Elderly Frail Homecare,Charges from Independent Providers,"1,352.86",BETTER AT HOME IOW LTD
Revenue,Adult Services,5105661489,20.11.2015,Elderly Frail Homecare,Charges from Independent Providers,"1,114.35",BETTER AT HOME IOW LTD
Revenue,Adult Services,5105661488,20.11.2015,Elderly Frail Homecare,Charges from Independent Providers,606.05,BETTER AT HOME IOW LTD
Revenue,Adult Services,5105661487,20.11.2015,Elderly Frail Homecare,Charges from Independent Providers,"1,094.80",BETTER AT HOME IOW LTD
Revenue,Adult Services,5105661491,20.11.2015,Elderly Frail Homecare,Charges from Independent Providers,78.20,BETTER AT HOME IOW LTD
Revenue,Adult Services,5105661510,20.11.2015,Elderly Mentally Ill Homecare,Charges from Independent Providers,"1,231.65",BETTER AT HOME IOW LTD
Revenue,Adult Services,5105661501,20.11.2015,Elderly Mentally Ill Homecare,Charges from Independent Providers,656.88,BETTER AT HOME IOW LTD
Revenue,Adult Services,5105661538,20.11.2015,Elderly Mentally Ill Homecare,Charges from Independent Providers,719.44,BETTER AT HOME IOW LTD
Revenue,Adult Services,5105661486,20.11.2015,Mental Health Homecare,Charges from Independent Providers,430.10,BETTER AT HOME IOW LTD
Revenue,Adult Services,5105661505,20.11.2015,Physical Disability Homecare,Charges from Independent Providers,410.55,BETTER AT HOME IOW LTD
Revenue,Adult Services,5105661525,20.11.2015,Physical Disability Homecare,Charges from Independent Providers,187.68,BETTER AT HOME IOW LTD
Revenue,Adult Services,5105661526,20.11.2015,Physical Disability Homecare,Charges from Independent Providers,"1,360.68",BETTER AT HOME IOW LTD
Revenue,Adult Services,5105661517,20.11.2015,Physical Disability Homecare,Charges from Independent Providers,"2,791.74",BETTER AT HOME IOW LTD
Revenue,Adult Services,5105661512,20.11.2015,Physical Disability Homecare,Charges from Independent Providers,265.88,BETTER AT HOME IOW LTD
Revenue,Adult Services,5105661926,20.11.2015,Physical Disability Homecare,Charges from Independent Providers,328.44,BETTER AT HOME IOW LTD
Revenue,Adult Services,5105661523,20.11.2015,Physical Disability Homecare,Regular Respite Care,93.84,BETTER AT HOME IOW LTD
Revenue,Childrens Services,5105660103,13.11.2015,Core Programmes,Training,750.00,BEVAN YOUNG ASSOCIATES
Revenue,Adult Services,5105660382,13.11.2015,Adelaide Resource Centre,Catering Purchases,392.95,3663 (BFS GROUP LTD)
Revenue,Adult Services,5105662384,25.11.2015,Adelaide Resource Centre,Catering Purchases,-8.49,3663 (BFS GROUP LTD)
Revenue,Adult Services,5105662385,25.11.2015,Adelaide Resource Centre,Catering Purchases,-10.47,3663 (BFS GROUP LTD)
Revenue,Adult Services,5105662631,25.11.2015,Adelaide Resource Centre,Catering Purchases,-21.41,3663 (BFS GROUP LTD)
Revenue,Adult Services,5105660382,13.11.2015,Adelaide Resource Centre,Catering Purchases,5.14,3663 (BFS GROUP LTD)
Revenue,Adult Services,5105659558,25.11.2015,Adelaide Resource Centre,Catering Purchases,353.87,3663 (BFS GROUP LTD)
Revenue,Adult Services,5105659556,06.11.2015,Adelaide Resource Centre,Catering Purchases,118.08,3663 (BFS GROUP LTD)
Revenue,Adult Services,5105659499,04.11.2015,Adelaide Resource Centre,Catering Purchases,21.41,3663 (BFS GROUP LTD)
Revenue,Adult Services,5105659558,25.11.2015,Adelaide Resource Centre,Catering Purchases,45.05,3663 (BFS GROUP LTD)
Revenue,Adult Services,5105659556,06.11.2015,Adelaide Resource Centre,Catering Purchases,5.14,3663 (BFS GROUP LTD)
Revenue,Adult Services,5105662024,20.11.2015,Adelaide Resource Centre,Catering Purchases,92.03,3663 (BFS GROUP LTD)
Revenue,Adult Services,5105662025,20.11.2015,Adelaide Resource Centre,Catering Purchases,399.84,3663 (BFS GROUP LTD)
Revenue,Adult Services,5105662025,20.11.2015,Adelaide Resource Centre,Catering Purchases,13.71,3663 (BFS GROUP LTD)
Revenue,Adult Services,5105662024,20.11.2015,Adelaide Resource Centre,Catering Purchases,9.27,3663 (BFS GROUP LTD)
Revenue,Adult Services,5105661327,20.11.2015,Gouldings Resource Centre,Catering Purchases,417.63,3663 (BFS GROUP LTD)
Revenue,Adult Services,5105661327,20.11.2015,Gouldings Resource Centre,Catering Purchases,76.34,3663 (BFS GROUP LTD)
Revenue,Adult Services,5105659911,11.11.2015,Gouldings Resource Centre,Catering Purchases,679.28,3663 (BFS GROUP LTD)
Revenue,Adult Services,5105659911,11.11.2015,Gouldings Resource Centre,Catering Purchases,9.79,3663 (BFS GROUP LTD)
Revenue,Adult Services,5105659565,06.11.2015,Gouldings Resource Centre,Catering Purchases,69.93,3663 (BFS GROUP LTD)
Revenue,Adult Services,5105659565,06.11.2015,Gouldings Resource Centre,Catering Purchases,233.58,3663 (BFS GROUP LTD)
Revenue,Adult Services,5105660379,13.11.2015,Gouldings Resource Centre,Catering Purchases,226.72,3663 (BFS GROUP LTD)
Revenue,Adult Services,5105660379,13.11.2015,Gouldings Resource Centre,Catering Purchases,45.93,3663 (BFS GROUP LTD)
Revenue,Adult Services,5105662794,27.11.2015,Gouldings Resource Centre,Catering Purchases,242.19,3663 (BFS GROUP LTD)
Revenue,Adult Services,5105662794,27.11.2015,Gouldings Resource Centre,Catering Purchases,20.88,3663 (BFS GROUP LTD)
Revenue,Adult Services,5105662674,25.11.2015,Westminster House,Catering Purchases,213.64,3663 (BFS GROUP LTD)
Revenue,Adult Services,5105660592,18.11.2015,Westminster House,Catering Purchases,45.33,3663 (BFS GROUP LTD)
Revenue,Adult Services,5105659469,04.11.2015,Westminster House,Catering Purchases,128.70,3663 (BFS GROUP LTD)
Revenue,Adult Services,5105659470,04.11.2015,Westminster House,Catering Purchases,-22.60,3663 (BFS GROUP LTD)
Revenue,Adult Services,5105660959,18.11.2015,Westminster House,Catering Purchases,100.30,3663 (BFS GROUP LTD)
Revenue,Adult Services,5105662730,25.11.2015,Westminster House,Catering Purchases,175.71,3663 (BFS GROUP LTD)
Revenue,Adult Services,5105662714,25.11.2015,Westminster House,Catering Purchases,88.55,3663 (BFS GROUP LTD)
Revenue,Adult Services,5105662696,25.11.2015,Westminster House,Catering Purchases,11.10,3663 (BFS GROUP LTD)
Revenue,Place,5105662664,25.11.2015,Fairway Sports Complex,Stock Purchases,379.53,3663 (BFS GROUP LTD)
Revenue,Place,5105659577,06.11.2015,The Heights,Stock Purchases,186.69,3663 (BFS GROUP LTD)
Revenue,Place,5105659580,06.11.2015,The Heights,Stock Purchases,41.59,3663 (BFS GROUP LTD)
Revenue,Place,5105659580,06.11.2015,The Heights,Stock Purchases,46.36,3663 (BFS GROUP LTD)
Revenue,Place,5105662665,25.11.2015,The Heights,Stock Purchases,193.35,3663 (BFS GROUP LTD)
Revenue,Place,5105662665,25.11.2015,The Heights,Stock Purchases,0.01,3663 (BFS GROUP LTD)
Revenue,Place,5105663157,27.11.2015,The Heights,Stock Purchases,-6.50,3663 (BFS GROUP LTD)
Revenue,Place,5105662246,25.11.2015,The Heights,Stock Purchases,105.91,3663 (BFS GROUP LTD)
Revenue,Place,5105662667,27.11.2015,The Heights,Stock Purchases,98.66,3663 (BFS GROUP LTD)
Revenue,Place,5105662667,27.11.2015,The Heights,Stock Purchases,42.91,3663 (BFS GROUP LTD)
Revenue,Place,5105662062,20.11.2015,The Heights,Stock Purchases,233.78,3663 (BFS GROUP LTD)
Revenue,Place,5105660602,18.11.2015,Medina Leisure Centre,Stock Purchases,23.35,3663 (BFS GROUP LTD)
Revenue,Place,5105660602,18.11.2015,Medina Leisure Centre,Stock Purchases,123.30,3663 (BFS GROUP LTD)
Revenue,Place,5105660603,18.11.2015,Medina Leisure Centre,Stock Purchases,202.39,3663 (BFS GROUP LTD)
Revenue,Place,5105662612,25.11.2015,Westridge Squash Courts,Stock Purchases,105.60,3663 (BFS GROUP LTD)
Revenue,Place,5105662370,25.11.2015,Public Libraries Central,Stationery,130.62,BIBLIOTHECA LTD
Revenue,Place,5105659471,04.11.2015,"Enterprise House, Newport","Refuse Collection, Disposal and Recycling Costs",199.10,BIFFA WASTE SERVICES LTD
Revenue,Place,5105659415,04.11.2015,"Enterprise House, Newport","Refuse Collection, Disposal and Recycling Costs",159.28,BIFFA WASTE SERVICES LTD
Revenue,Place,5105659415,04.11.2015,"Civic Centre,Sandown","Refuse Collection, Disposal and Recycling Costs",147.08,BIFFA WASTE SERVICES LTD
Revenue,Place,5105659471,04.11.2015,"Civic Centre,Sandown","Refuse Collection, Disposal and Recycling Costs",183.85,BIFFA WASTE SERVICES LTD
Revenue,Place,5105659471,04.11.2015,"Bugle House,Newport","Refuse Collection, Disposal and Recycling Costs",199.10,BIFFA WASTE SERVICES LTD
Revenue,Place,5105659415,04.11.2015,"Bugle House,Newport","Refuse Collection, Disposal and Recycling Costs",159.28,BIFFA WASTE SERVICES LTD
Revenue,Place,5105659471,04.11.2015,"Jubilee Stores, Newport","Refuse Collection, Disposal and Recycling Costs",108.20,BIFFA WASTE SERVICES LTD
Revenue,Place,5105659415,04.11.2015,"Jubilee Stores, Newport","Refuse Collection, Disposal and Recycling Costs",86.56,BIFFA WASTE SERVICES LTD
Revenue,Place,5105659415,04.11.2015,"Westridge, Ryde","Refuse Collection, Disposal and Recycling Costs",48.64,BIFFA WASTE SERVICES LTD
Revenue,Place,5105659471,04.11.2015,"Westridge, Ryde","Refuse Collection, Disposal and Recycling Costs",55.45,BIFFA WASTE SERVICES LTD
Revenue,Resources,5105659471,04.11.2015,ICT Contracts,"Refuse Collection, Disposal and Recycling Costs",73.78,BIFFA WASTE SERVICES LTD
Revenue,Resources,5105659415,04.11.2015,ICT Contracts,"Refuse Collection, Disposal and Recycling Costs",82.16,BIFFA WASTE SERVICES LTD
Revenue,Adult Services,5105659415,04.11.2015,S75 Integrated Community Equipment Store,"Refuse Collection, Disposal and Recycling Costs",251.98,BIFFA WASTE SERVICES LTD
Revenue,Adult Services,5105659471,04.11.2015,S75 Integrated Community Equipment Store,"Refuse Collection, Disposal and Recycling Costs",141.34,BIFFA WASTE SERVICES LTD
Revenue,Adult Services,5105659471,04.11.2015,31 Carter Avenue,"Refuse Collection, Disposal and Recycling Costs",108.19,BIFFA WASTE SERVICES LTD
Revenue,Adult Services,5105659415,04.11.2015,31 Carter Avenue,"Refuse Collection, Disposal and Recycling Costs",86.56,BIFFA WASTE SERVICES LTD
Revenue,Adult Services,5105659415,04.11.2015,Overbrook,"Refuse Collection, Disposal and Recycling Costs",100.51,BIFFA WASTE SERVICES LTD
Revenue,Adult Services,5105659471,04.11.2015,Overbrook,"Refuse Collection, Disposal and Recycling Costs",138.64,BIFFA WASTE SERVICES LTD
Revenue,Adult Services,5105659471,04.11.2015,Seagulls,"Refuse Collection, Disposal and Recycling Costs",108.20,BIFFA WASTE SERVICES LTD
Revenue,Adult Services,5105659415,04.11.2015,Seagulls,"Refuse Collection, Disposal and Recycling Costs",86.56,BIFFA WASTE SERVICES LTD
Revenue,Adult Services,5105659471,04.11.2015,Plean Dene,"Refuse Collection, Disposal and Recycling Costs",210.10,BIFFA WASTE SERVICES LTD
Revenue,Adult Services,5105659415,04.11.2015,Plean Dene,"Refuse Collection, Disposal and Recycling Costs",168.08,BIFFA WASTE SERVICES LTD
Revenue,Adult Services,5105659415,04.11.2015,Saxonbury,"Refuse Collection, Disposal and Recycling Costs",82.16,BIFFA WASTE SERVICES LTD
Revenue,Adult Services,5105659471,04.11.2015,Saxonbury,"Refuse Collection, Disposal and Recycling Costs",102.70,BIFFA WASTE SERVICES LTD
Revenue,Adult Services,5105659415,04.11.2015,40 Venner Avenue,"Refuse Collection, Disposal and Recycling Costs",45.80,BIFFA WASTE SERVICES LTD
Revenue,Adult Services,5105659471,04.11.2015,40 Venner Avenue,"Refuse Collection, Disposal and Recycling Costs",6.30,BIFFA WASTE SERVICES LTD
Revenue,Adult Services,5105659471,04.11.2015,Highmead,"Refuse Collection, Disposal and Recycling Costs",67.44,BIFFA WASTE SERVICES LTD
Revenue,Adult Services,5105659415,04.11.2015,Highmead,"Refuse Collection, Disposal and Recycling Costs",45.80,BIFFA WASTE SERVICES LTD
Revenue,Adult Services,5105659415,04.11.2015,The Laurels,"Refuse Collection, Disposal and Recycling Costs",45.80,BIFFA WASTE SERVICES LTD
Revenue,Adult Services,5105659471,04.11.2015,The Laurels,"Refuse Collection, Disposal and Recycling Costs",67.44,BIFFA WASTE SERVICES LTD
Revenue,Place,5105659415,04.11.2015,17 Fairlee Road,"Refuse Collection, Disposal and Recycling Costs",234.00,BIFFA WASTE SERVICES LTD
Revenue,Adult Services,5105659415,04.11.2015,Stores Adult Social Care,"Refuse Collection, Disposal and Recycling Costs",13.81,BIFFA WASTE SERVICES LTD
Revenue,Adult Services,5105659471,04.11.2015,Stores Adult Social Care,"Refuse Collection, Disposal and Recycling Costs",14.65,BIFFA WASTE SERVICES LTD
Revenue,Adult Services,5105657609,04.11.2015,Gouldings Resource Centre,"Refuse Collection, Disposal and Recycling Costs",284.16,BIFFA WASTE SERVICES LTD
Revenue,Adult Services,5105659548,06.11.2015,Gouldings Resource Centre,"Refuse Collection, Disposal and Recycling Costs",91.60,BIFFA WASTE SERVICES LTD
Revenue,Adult Services,5105659471,04.11.2015,Westminster House,"Refuse Collection, Disposal and Recycling Costs",57.80,BIFFA WASTE SERVICES LTD
Revenue,Adult Services,5105659415,04.11.2015,Westminster House,"Refuse Collection, Disposal and Recycling Costs",46.24,BIFFA WASTE SERVICES LTD
Revenue,Place,5105659415,04.11.2015,Public Libraries Central,"Refuse Collection, Disposal and Recycling Costs",45.16,BIFFA WASTE SERVICES LTD
Revenue,Place,5105659471,04.11.2015,Public Libraries Central,"Refuse Collection, Disposal and Recycling Costs",198.17,BIFFA WASTE SERVICES LTD
Revenue,Childrens Services,5105659471,04.11.2015,Learning & Development Running Costs,"Refuse Collection, Disposal and Recycling Costs",44.86,BIFFA WASTE SERVICES LTD
Revenue,Childrens Services,5105659415,04.11.2015,Learning & Development Running Costs,"Refuse Collection, Disposal and Recycling Costs",43.60,BIFFA WASTE SERVICES LTD
Revenue,Place,5105659471,04.11.2015,Cothey Bottom Store RYDE,"Refuse Collection, Disposal and Recycling Costs",27.72,BIFFA WASTE SERVICES LTD
Revenue,Place,5105659415,04.11.2015,Cothey Bottom Store RYDE,"Refuse Collection, Disposal and Recycling Costs",24.32,BIFFA WASTE SERVICES LTD
Revenue,Place,5105659415,04.11.2015,Dinosaur Isle Museum (Sandown Geology),"Refuse Collection, Disposal and Recycling Costs",8.68,BIFFA WASTE SERVICES LTD
Revenue,Place,5105659471,04.11.2015,Dinosaur Isle Museum (Sandown Geology),"Refuse Collection, Disposal and Recycling Costs",289.07,BIFFA WASTE SERVICES LTD
Revenue,Place,5105659471,04.11.2015,The Heights,"Refuse Collection, Disposal and Recycling Costs",352.80,BIFFA WASTE SERVICES LTD
Revenue,Place,5105659415,04.11.2015,The Heights,"Refuse Collection, Disposal and Recycling Costs",243.68,BIFFA WASTE SERVICES LTD
Revenue,Place,5105659415,04.11.2015,Medina Leisure Centre,"Refuse Collection, Disposal and Recycling Costs",300.88,BIFFA WASTE SERVICES LTD
Revenue,Place,5105659471,04.11.2015,Medina Leisure Centre,"Refuse Collection, Disposal and Recycling Costs",298.97,BIFFA WASTE SERVICES LTD
Revenue,Place,5105659415,04.11.2015,Westridge Squash Courts,"Refuse Collection, Disposal and Recycling Costs",24.32,BIFFA WASTE SERVICES LTD
Revenue,Place,5105659471,04.11.2015,Westridge Squash Courts,"Refuse Collection, Disposal and Recycling Costs",27.72,BIFFA WASTE SERVICES LTD
Revenue,Place,5105659415,04.11.2015,Ryde Harbour,"Refuse Collection, Disposal and Recycling Costs",95.32,BIFFA WASTE SERVICES LTD
Revenue,Place,5105659471,04.11.2015,Ryde Harbour,"Refuse Collection, Disposal and Recycling Costs",308.11,BIFFA WASTE SERVICES LTD
Revenue,Place,5105659471,04.11.2015,Seaclose Amusements,"Refuse Collection, Disposal and Recycling Costs",4.20,BIFFA WASTE SERVICES LTD
Revenue,Place,5105659415,04.11.2015,Seaclose Amusements,"Refuse Collection, Disposal and Recycling Costs",3.36,BIFFA WASTE SERVICES LTD
Revenue,Childrens Services,5105659415,04.11.2015,Family Information Zone,"Refuse Collection, Disposal and Recycling Costs",17.42,BIFFA WASTE SERVICES LTD
Revenue,Childrens Services,5105659471,04.11.2015,Family Information Zone,"Refuse Collection, Disposal and Recycling Costs",21.78,BIFFA WASTE SERVICES LTD
Revenue,Childrens Services,5105659415,04.11.2015,Specialist Service Business Admin,"Refuse Collection, Disposal and Recycling Costs",164.32,BIFFA WASTE SERVICES LTD
Revenue,Childrens Services,5105659471,04.11.2015,Specialist Service Business Admin,"Refuse Collection, Disposal and Recycling Costs",205.40,BIFFA WASTE SERVICES LTD
Revenue,Childrens Services,5105659415,04.11.2015,Beaulieu House,"Refuse Collection, Disposal and Recycling Costs",180.52,BIFFA WASTE SERVICES LTD
Revenue,Childrens Services,5105659471,04.11.2015,Beaulieu House,"Refuse Collection, Disposal and Recycling Costs",222.37,BIFFA WASTE SERVICES LTD
Revenue,Childrens Services,5105659415,04.11.2015,SEND Independent Advice & Support,"Refuse Collection, Disposal and Recycling Costs",17.42,BIFFA WASTE SERVICES LTD
Revenue,Childrens Services,5105659471,04.11.2015,SEND Independent Advice & Support,"Refuse Collection, Disposal and Recycling Costs",21.78,BIFFA WASTE SERVICES LTD
Revenue,Place,5105659471,04.11.2015,Ferry Management,"Refuse Collection, Disposal and Recycling Costs",259.38,BIFFA WASTE SERVICES LTD
Revenue,Place,5105659415,04.11.2015,Ferry Management,"Refuse Collection, Disposal and Recycling Costs",86.56,BIFFA WASTE SERVICES LTD
Revenue,Place,5105659471,04.11.2015,Island Waste Refuse Disposal Contract,"Refuse Collection, Disposal and Recycling Costs",458.00,BIFFA WASTE SERVICES LTD
Revenue,Place,5105659471,04.11.2015,Fort Victoria,"Refuse Collection, Disposal and Recycling Costs",243.96,BIFFA WASTE SERVICES LTD
Revenue,Place,5105659415,04.11.2015,Fort Victoria,"Refuse Collection, Disposal and Recycling Costs",145.04,BIFFA WASTE SERVICES LTD
Revenue,Place,5105659415,04.11.2015,Newport Harbour Account,"Refuse Collection, Disposal and Recycling Costs",382.96,BIFFA WASTE SERVICES LTD
Revenue,Place,5105659471,04.11.2015,Newport Harbour Account,"Refuse Collection, Disposal and Recycling Costs",385.12,BIFFA WASTE SERVICES LTD
Revenue,Place,5105659471,04.11.2015,Newport Harbour Account,"Refuse Collection, Disposal and Recycling Costs",210.10,BIFFA WASTE SERVICES LTD
Revenue,Place,5105659415,04.11.2015,Newport Harbour Account,"Refuse Collection, Disposal and Recycling Costs",5.04,BIFFA WASTE SERVICES LTD
Revenue,Place,5105659415,04.11.2015,Fire Operations,"Refuse Collection, Disposal and Recycling Costs",322.11,BIFFA WASTE SERVICES LTD
Revenue,Place,5105659471,04.11.2015,Fire Operations,"Refuse Collection, Disposal and Recycling Costs",422.33,BIFFA WASTE SERVICES LTD
Revenue,Place,5105659471,04.11.2015,Planning Business Support,"Refuse Collection, Disposal and Recycling Costs",205.40,BIFFA WASTE SERVICES LTD
Revenue,Place,5105659415,04.11.2015,Planning Business Support,"Refuse Collection, Disposal and Recycling Costs",125.76,BIFFA WASTE SERVICES LTD
Revenue,Place,5105659471,04.11.2015,Crematorium,"Refuse Collection, Disposal and Recycling Costs",121.98,BIFFA WASTE SERVICES LTD
Revenue,Place,5105659415,04.11.2015,Crematorium,"Refuse Collection, Disposal and Recycling Costs",101.44,BIFFA WASTE SERVICES LTD
Revenue,Place,5105662721,25.11.2015,Super Fast Broadband Campaign,Printing Costs,100.00,BILTMORE PRINTERS
Revenue,Place,5105662721,25.11.2015,Super Fast Broadband Campaign,Advertising & Publicity,480.00,BILTMORE PRINTERS
Revenue,Adult Services,5105661839,20.11.2015,"Communications, Engagement and PMO",Office Equipment,398.00,BILTMORE PRINTERS
Revenue,Adult Services,5105661839,20.11.2015,"Communications, Engagement and PMO",Office Equipment,540.00,BILTMORE PRINTERS
Revenue,Childrens Services,5105659984,11.11.2015,Court Work & Consultancy Services,Legal Fees - Other Parties,109.80,BISCOES SOLICITORS
Revenue,Place,5105662208,25.11.2015,Play Development,Operational Equipment,50.70,BISHOP SPORTS & LEISURE LTD
Revenue,Place,5105662208,25.11.2015,Play Development,Operational Equipment,11.59,BISHOP SPORTS & LEISURE LTD
Revenue,Place,5105660402,13.11.2015,Play Development,Operational Equipment,102.00,BISHOP SPORTS & LEISURE LTD
Revenue,Place,5105660402,13.11.2015,Play Development,Operational Equipment,34.75,BISHOP SPORTS & LEISURE LTD
Revenue,Place,5105660402,13.11.2015,Play Development,Operational Equipment,11.13,BISHOP SPORTS & LEISURE LTD
Revenue,Resources,5105662163,25.11.2015,Staff Benefits,Payment to Private Contractors,189.15,BLACKBERRY LANE PRE-SCHOOL
Revenue,Resources,5105662163,25.11.2015,Staff Benefits,Payment to Private Contractors,20.00,BLACKBERRY LANE PRE-SCHOOL
Revenue,Adult Services,5105648369,20.11.2015,Community Outreach,Vehicle Maintenance Costs,10.00,REDACTED PERSONAL DATA
Revenue,Adult Services,5105648369,20.11.2015,Community Outreach,Vehicle Maintenance Costs,10.00,REDACTED PERSONAL DATA
Revenue,Adult Services,5105648369,20.11.2015,Community Outreach,Vehicle Maintenance Costs,15.00,REDACTED PERSONAL DATA
Revenue,Adult Services,5105648369,20.11.2015,Community Outreach,Vehicle Maintenance Costs,5.00,REDACTED PERSONAL DATA
Revenue,Adult Services,5105648369,20.11.2015,Community Outreach,Vehicle Maintenance Costs,15.00,REDACTED PERSONAL DATA
Revenue,Adult Services,5105648369,20.11.2015,Community Outreach,Vehicle Maintenance Costs,10.00,REDACTED PERSONAL DATA
Revenue,Adult Services,5105648369,20.11.2015,Community Outreach,Vehicle Maintenance Costs,10.00,REDACTED PERSONAL DATA
Revenue,Adult Services,5105648369,20.11.2015,Community Outreach,Vehicle Maintenance Costs,10.00,REDACTED PERSONAL DATA
Revenue,Childrens Services,5105661852,20.11.2015,Short Breaks,Charges from Independent Providers,520.00,BODSTER EQUINE ASSISTED LEARN CIC
Revenue,Resources,5105661811,20.11.2015,Electoral Registration Canvassing,Stationery,94.80,BOLMOOR INDUSTRIES
Revenue,Adult Services,5105662852,27.11.2015,Overbrook,Catering Purchases,29.94,BOOKER CASH & CARRY LTD
Revenue,Adult Services,5105662546,27.11.2015,Overbrook,Catering Purchases,10.49,BOOKER CASH & CARRY LTD
Revenue,Adult Services,5105662354,25.11.2015,Overbrook,Catering Purchases,108.41,BOOKER CASH & CARRY LTD
Revenue,Adult Services,5105657566,04.11.2015,Overbrook,Catering Purchases,94.71,BOOKER CASH & CARRY LTD
Revenue,Adult Services,5105662531,25.11.2015,Plean Dene,Catering Purchases,94.42,BOOKER CASH & CARRY LTD
Revenue,Adult Services,5105662675,25.11.2015,Plean Dene,Catering Purchases,219.92,BOOKER CASH & CARRY LTD
Revenue,Adult Services,5105662675,25.11.2015,Plean Dene,Catering Purchases,27.94,BOOKER CASH & CARRY LTD
Revenue,Adult Services,5105662531,25.11.2015,Plean Dene,Catering Purchases,3.98,BOOKER CASH & CARRY LTD
Revenue,Adult Services,5105661293,20.11.2015,Plean Dene,Catering Purchases,4.84,BOOKER CASH & CARRY LTD
Revenue,Adult Services,5105661294,20.11.2015,Plean Dene,Catering Purchases,11.07,BOOKER CASH & CARRY LTD
Revenue,Adult Services,5105660964,18.11.2015,Plean Dene,Catering Purchases,153.01,BOOKER CASH & CARRY LTD
Revenue,Adult Services,5105659554,13.11.2015,Plean Dene,Catering Purchases,21.69,BOOKER CASH & CARRY LTD
Revenue,Adult Services,5105659761,13.11.2015,Plean Dene,Catering Purchases,149.54,BOOKER CASH & CARRY LTD
Revenue,Adult Services,5105659762,13.11.2015,Plean Dene,Catering Purchases,40.77,BOOKER CASH & CARRY LTD
Revenue,Adult Services,5105660141,18.11.2015,Plean Dene,Catering Purchases,19.41,BOOKER CASH & CARRY LTD
Revenue,Adult Services,5105660108,18.11.2015,Plean Dene,Catering Purchases,22.98,BOOKER CASH & CARRY LTD
Revenue,Adult Services,5105660110,13.11.2015,Plean Dene,Catering Purchases,56.52,BOOKER CASH & CARRY LTD
Revenue,Adult Services,5105660110,13.11.2015,Plean Dene,Catering Purchases,7.98,BOOKER CASH & CARRY LTD
Revenue,Adult Services,5105659761,13.11.2015,Plean Dene,Catering Purchases,30.86,BOOKER CASH & CARRY LTD
Revenue,Adult Services,5105662403,25.11.2015,Plean Dene,Catering Purchases,72.35,BOOKER CASH & CARRY LTD
Revenue,Adult Services,5105662021,20.11.2015,Plean Dene,Catering Purchases,48.70,BOOKER CASH & CARRY LTD
Revenue,Adult Services,5105662403,25.11.2015,Plean Dene,Catering Purchases,3.55,BOOKER CASH & CARRY LTD
Revenue,Adult Services,5105657466,06.11.2015,Plean Dene,Catering Purchases,36.88,BOOKER CASH & CARRY LTD
Revenue,Adult Services,5105657474,06.11.2015,Plean Dene,Catering Purchases,37.37,BOOKER CASH & CARRY LTD
Revenue,Adult Services,5105657466,06.11.2015,Plean Dene,Catering Purchases,180.62,BOOKER CASH & CARRY LTD
Revenue,Adult Services,5105657242,06.11.2015,Plean Dene,Catering Purchases,38.47,BOOKER CASH & CARRY LTD
Revenue,Public Health,5105661245,18.11.2015,Contraception,Payment to Private Contractors,62.40,BOOTS THE CHEMIST LTD (Ryde)
Revenue,Public Health,5105661245,18.11.2015,Contraception,Payment to Private Contractors,112.40,BOOTS THE CHEMIST LTD (Ryde)
Revenue,Public Health,5105661245,18.11.2015,Contraception,Payment to Private Contractors,430.00,BOOTS THE CHEMIST LTD (Ryde)
Revenue,Public Health,5105661245,18.11.2015,Drug Misuse - Adults,Payment to Private Contractors,497.00,BOOTS THE CHEMIST LTD (Ryde)
Revenue,Public Health,5105661245,18.11.2015,Drug Misuse - Adults,Payment to Private Contractors,856.00,BOOTS THE CHEMIST LTD (Ryde)
Revenue,Public Health,5105661249,18.11.2015,Drug Misuse - Adults,Payment to Private Contractors,119.00,BOOTS UK LTD (107 HIGH ST SANDOWN)
Revenue,Public Health,5105661249,18.11.2015,Drug Misuse - Adults,Payment to Private Contractors,54.00,BOOTS UK LTD (107 HIGH ST SANDOWN)
Revenue,Public Health,5105661261,18.11.2015,Contraception,Payment to Private Contractors,21.50,BOOTS UK LTD (COWES)
Revenue,Public Health,5105661261,18.11.2015,Contraception,Payment to Private Contractors,14.05,BOOTS UK LTD (COWES)
Revenue,Public Health,5105661283,20.11.2015,Contraception,Payment to Private Contractors,150.50,BOOTS UK LTD (NEWPORT)
Revenue,Public Health,5105661283,20.11.2015,Contraception,Payment to Private Contractors,20.80,BOOTS UK LTD (NEWPORT)
Revenue,Public Health,5105661283,20.11.2015,Contraception,Payment to Private Contractors,42.15,BOOTS UK LTD (NEWPORT)
Revenue,Public Health,5105661283,20.11.2015,Drug Misuse - Adults,Payment to Private Contractors,330.00,BOOTS UK LTD (NEWPORT)
Revenue,Public Health,5105661211,18.11.2015,Contraception,Payment to Private Contractors,86.00,BOOTS UK LTD (SANDOWN LARGE STORE)
Revenue,Public Health,5105661211,18.11.2015,Contraception,Payment to Private Contractors,20.80,BOOTS UK LTD (SANDOWN LARGE STORE)
Revenue,Public Health,5105661211,18.11.2015,Drug Misuse - Adults,Payment to Private Contractors,45.50,BOOTS UK LTD (SANDOWN LARGE STORE)
Revenue,Public Health,5105661211,18.11.2015,Drug Misuse - Adults,Payment to Private Contractors,182.00,BOOTS UK LTD (SANDOWN LARGE STORE)
Revenue,Public Health,5105661276,18.11.2015,Contraception,Payment to Private Contractors,107.50,BOOTS UK LTD (SHANKLIN)
Revenue,Public Health,5105661276,18.11.2015,Contraception,Payment to Private Contractors,15.60,BOOTS UK LTD (SHANKLIN)
Revenue,Public Health,5105661276,18.11.2015,Contraception,Payment to Private Contractors,28.10,BOOTS UK LTD (SHANKLIN)
Revenue,Public Health,5105661276,18.11.2015,Drug Misuse - Adults,Payment to Private Contractors,108.00,BOOTS UK LTD (SHANKLIN)
Revenue,Public Health,5105661260,18.11.2015,Contraception,Payment to Private Contractors,21.50,BOOTS UK LTD (TOWER HOUSE)
Revenue,Public Health,5105661260,18.11.2015,Contraception,Payment to Private Contractors,14.05,BOOTS UK LTD (TOWER HOUSE)
Revenue,Public Health,5105661260,18.11.2015,Drug Misuse - Adults,Payment to Private Contractors,73.50,BOOTS UK LTD (TOWER HOUSE)
Revenue,Public Health,5105661260,18.11.2015,Drug Misuse - Adults,Payment to Private Contractors,68.00,BOOTS UK LTD (TOWER HOUSE)
Revenue,Public Health,5105661275,18.11.2015,Drug Misuse - Adults,Payment to Private Contractors,17.50,BOOTS UK LTD
Revenue,Place,5105660657,18.11.2015,The Heights,Stock Purchases,165.79,BRAKE BROS LTD
Revenue,Place,5105662749,25.11.2015,The Heights,Stock Purchases,132.32,BRAKE BROS LTD
Revenue,Place,5105662154,25.11.2015,Leaseholds by LA,Accommodation Costs - Leaseholder Payments,769.43,BRAMBLE LETTINGS
Revenue,Place,5105662154,25.11.2015,Leaseholds by LA,Accommodation Costs - Leaseholder Payments,746.81,BRAMBLE LETTINGS
Revenue,Place,5105662154,25.11.2015,Leaseholds by LA,Accommodation Costs - Leaseholder Payments,588.38,BRAMBLE LETTINGS
Revenue,Place,5105662154,25.11.2015,Leaseholds by LA,Accommodation Costs - Leaseholder Payments,746.81,BRAMBLE LETTINGS
Revenue,Place,5105662154,25.11.2015,Leaseholds by LA,Accommodation Costs - Leaseholder Payments,746.81,BRAMBLE LETTINGS
Revenue,Place,5105662154,25.11.2015,Leaseholds by LA,Accommodation Costs - Leaseholder Payments,746.81,BRAMBLE LETTINGS
Revenue,Place,5105662154,25.11.2015,Leaseholds by LA,Accommodation Costs - Leaseholder Payments,746.81,BRAMBLE LETTINGS
Revenue,Place,5105662154,25.11.2015,Leaseholds by LA,Accommodation Costs - Leaseholder Payments,588.38,BRAMBLE LETTINGS
Revenue,Place,5105662154,25.11.2015,Leaseholds by LA,Accommodation Costs - Leaseholder Payments,588.38,BRAMBLE LETTINGS
Revenue,Place,5105662154,25.11.2015,Leaseholds by LA,Accommodation Costs - Leaseholder Payments,588.38,BRAMBLE LETTINGS
Revenue,Place,5105662154,25.11.2015,Leaseholds by LA,Accommodation Costs - Leaseholder Payments,746.81,BRAMBLE LETTINGS
Revenue,Place,5105662154,25.11.2015,Leaseholds by LA,Accommodation Costs - Leaseholder Payments,746.81,BRAMBLE LETTINGS
Revenue,Place,5105662154,25.11.2015,Leaseholds by LA,Accommodation Costs - Leaseholder Payments,746.81,BRAMBLE LETTINGS
Revenue,Place,5105662154,25.11.2015,Leaseholds by LA,Accommodation Costs - Leaseholder Payments,746.81,BRAMBLE LETTINGS
Revenue,Place,5105662154,25.11.2015,Leaseholds by LA,Accommodation Costs - Leaseholder Payments,746.81,BRAMBLE LETTINGS
Revenue,Place,5105662154,25.11.2015,Leaseholds by LA,Accommodation Costs - Leaseholder Payments,746.81,BRAMBLE LETTINGS
Revenue,Place,5105662154,25.11.2015,Leaseholds by LA,Accommodation Costs - Leaseholder Payments,746.81,BRAMBLE LETTINGS
Revenue,Place,5105662154,25.11.2015,Leaseholds by LA,Accommodation Costs - Leaseholder Payments,281.66,BRAMBLE LETTINGS
Revenue,Place,5105662154,25.11.2015,Leaseholds by LA,Accommodation Costs - Leaseholder Payments,216.66,BRAMBLE LETTINGS
Revenue,Place,5105662154,25.11.2015,Leaseholds by LA,Accommodation Costs - Leaseholder Payments,588.38,BRAMBLE LETTINGS
Revenue,Place,5105662154,25.11.2015,Leaseholds by LA,Accommodation Costs - Leaseholder Payments,588.38,BRAMBLE LETTINGS
Revenue,Place,5105662154,25.11.2015,Leaseholds by LA,Accommodation Costs - Leaseholder Payments,746.81,BRAMBLE LETTINGS
Revenue,Place,5105662154,25.11.2015,Leaseholds by LA,Accommodation Costs - Leaseholder Payments,746.81,BRAMBLE LETTINGS
Revenue,Place,5105662154,25.11.2015,Leaseholds by LA,Accommodation Costs - Leaseholder Payments,746.81,BRAMBLE LETTINGS
Revenue,Adult Services,5105658109,04.11.2015,Elderly Frail Residential Care,Charges from Independent Providers,"2,093.84",BRIGHSTONE CARE LTD
Revenue,Adult Services,5105658111,04.11.2015,Elderly Frail Residential Care,Charges from Independent Providers,"1,700.44",BRIGHSTONE CARE LTD
Revenue,Adult Services,5105663320,27.11.2015,Elderly Frail Residential Care,Charges from Independent Providers,"2,143.40",BRIGHSTONE CARE LTD
Revenue,Adult Services,5105663320,27.11.2015,Elderly Frail Residential Care,Charges from Independent Providers,"1,740.76",BRIGHSTONE CARE LTD
Revenue,Adult Services,5105658110,04.11.2015,Elderly Mentally Ill Residential Care,Charges from Independent Providers,"1,781.36",BRIGHSTONE CARE LTD
Revenue,Adult Services,5105663320,27.11.2015,Elderly Mentally Ill Residential Care,Charges from Independent Providers,"1,823.36",BRIGHSTONE CARE LTD
Revenue,Adult Services,5105660353,18.11.2015,Overbrook,Grounds Maintenance,48.00,BRIGHSTONE LANDSCAPING LTD
Revenue,Adult Services,5105660353,18.11.2015,Seagulls,Grounds Maintenance,48.00,BRIGHSTONE LANDSCAPING LTD
Revenue,Adult Services,5105660353,18.11.2015,Plean Dene,Grounds Maintenance,387.49,BRIGHSTONE LANDSCAPING LTD
Revenue,Adult Services,5105660353,18.11.2015,Saxonbury,Grounds Maintenance,48.00,BRIGHSTONE LANDSCAPING LTD
Revenue,Adult Services,5105660353,18.11.2015,40 Venner Avenue,Grounds Maintenance,48.00,BRIGHSTONE LANDSCAPING LTD
Revenue,Adult Services,5105660353,18.11.2015,Highmead,Grounds Maintenance,126.00,BRIGHSTONE LANDSCAPING LTD
Revenue,Adult Services,5105660353,18.11.2015,The Laurels,Grounds Maintenance,126.00,BRIGHSTONE LANDSCAPING LTD
Revenue,Adult Services,5105660353,18.11.2015,Westminster House,Grounds Maintenance,48.00,BRIGHSTONE LANDSCAPING LTD
Revenue,Place,5105660355,13.11.2015,Beach Cleaning,Payment to Private Contractors,205.00,BRIGHSTONE LANDSCAPING LTD
Revenue,Place,5105660661,18.11.2015,Beach Cleaning,Payment to Private Contractors,95.00,BRIGHSTONE LANDSCAPING LTD
Revenue,Place,5105661817,20.11.2015,Beach Cleaning,Payment to Private Contractors,65.00,BRIGHSTONE LANDSCAPING LTD
Revenue,Place,5105662258,25.11.2015,Beach Cleaning,Payment to Private Contractors,510.00,BRIGHSTONE LANDSCAPING LTD
Revenue,Place,5105662595,25.11.2015,Beach Cleaning,Payment to Private Contractors,65.00,BRIGHSTONE LANDSCAPING LTD
Revenue,Place,5105660365,13.11.2015,Beach Cleaning,Beach Cleansing Contractors,"1,882.35",BRIGHSTONE LANDSCAPING LTD
Revenue,Place,5105659771,06.11.2015,Public Shelters - Ryde,Payment to Private Contractors,150.00,BRIGHSTONE LANDSCAPING LTD
Revenue,Childrens Services,5105657259,04.11.2015,Adult Community Learning,Licences,92.00,BRITISH COMPUTER SOCIETY
Revenue,Childrens Services,5105657250,04.11.2015,Adult Community Learning,Licences,74.00,BRITISH COMPUTER SOCIETY
Revenue,Childrens Services,5105660067,11.11.2015,Adult Community Learning,Licences,420.00,BRITISH COMPUTER SOCIETY
Revenue,Place,5105662780,25.11.2015,Transport Fleet Administration,Vehicle Fuel Costs,301.47,BROADWAY GARAGE
Revenue,Place,5105660084,20.11.2015,Fire Technical Support,Vehicle Fuel Costs,24.17,BROADWAY GARAGE
Revenue,Public Health,5105661209,18.11.2015,NHS Health Check Programme,Payment to Private Contractors,"1,899.00",BROOKSIDE HEALTH CENTRE
Revenue,Place,5105659562,06.11.2015,Cemeteries-Northwood,Sundry Office Expenses,163.00,BRUTTON & CO
Revenue,Place,5105659562,06.11.2015,Cemeteries-Northwood,Sundry Office Expenses,49.00,BRUTTON & CO
Revenue,Resources,5105660599,18.11.2015,Litigation Costs,Legal Fees - Other Parties,40.00,BT CONFERENCING
Revenue,Resources,5105660599,18.11.2015,Litigation Costs,Legal Fees - Other Parties,40.00,BT CONFERENCING
Revenue,Resources,5105660599,18.11.2015,Litigation Costs,Legal Fees - Other Parties,9.20,BT CONFERENCING
Revenue,Place,5105660599,18.11.2015,Business Support  - Fire,Conference Expenses,0.12,BT CONFERENCING
Revenue,Resources,5105655862,11.11.2015,Telephones,Fixed Telephones,"1,151.38",BTS HOLDINGS PLC
Revenue,Adult Services,5105658416,04.11.2015,Elderly Frail Residential Care,Charges from Independent Providers,"2,093.84",BUCKLAND CARE LTD
Revenue,Adult Services,5105658417,04.11.2015,Elderly Frail Residential Care,Charges from Independent Providers,"2,093.84",BUCKLAND CARE LTD
Revenue,Adult Services,5105658418,04.11.2015,Elderly Frail Residential Care,Charges from Independent Providers,"2,093.84",BUCKLAND CARE LTD
Revenue,Adult Services,5105658419,04.11.2015,Elderly Frail Residential Care,Charges from Independent Providers,"2,093.84",BUCKLAND CARE LTD
Revenue,Adult Services,5105659884,11.11.2015,Elderly Frail Residential Care,Charges from Independent Providers,"1,301.35",BUCKLAND CARE LTD
Revenue,Adult Services,5105659443,04.11.2015,Elderly Frail Residential Care,Charges from Independent Providers,448.68,BUCKLAND CARE LTD
Revenue,Adult Services,5105658434,04.11.2015,Elderly Frail Residential Care,Charges from Independent Providers,121.46,BUCKLAND CARE LTD
Revenue,Adult Services,5105658432,04.11.2015,Elderly Frail Residential Care,Charges from Independent Providers,"2,093.84",BUCKLAND CARE LTD
Revenue,Adult Services,5105658433,04.11.2015,Elderly Frail Residential Care,Charges from Independent Providers,"1,700.44",BUCKLAND CARE LTD
Revenue,Adult Services,5105658420,04.11.2015,Elderly Frail Residential Care,Charges from Independent Providers,"1,700.44",BUCKLAND CARE LTD
Revenue,Adult Services,5105658422,04.11.2015,Elderly Frail Residential Care,Charges from Independent Providers,"1,700.44",BUCKLAND CARE LTD
Revenue,Adult Services,5105658425,04.11.2015,Elderly Frail Residential Care,Charges from Independent Providers,"2,093.84",BUCKLAND CARE LTD
Revenue,Adult Services,5105661179,18.11.2015,Elderly Frail Residential Care,Charges from Independent Providers,"2,113.78",BUCKLAND CARE LTD
Revenue,Adult Services,5105663340,27.11.2015,Elderly Frail Residential Care,Charges from Independent Providers,"2,143.40",BUCKLAND CARE LTD
Revenue,Adult Services,5105663340,27.11.2015,Elderly Frail Residential Care,Charges from Independent Providers,"2,143.40",BUCKLAND CARE LTD
Revenue,Adult Services,5105663340,27.11.2015,Elderly Frail Residential Care,Charges from Independent Providers,"2,143.40",BUCKLAND CARE LTD
Revenue,Adult Services,5105663340,27.11.2015,Elderly Frail Residential Care,Charges from Independent Providers,"2,143.40",BUCKLAND CARE LTD
Revenue,Adult Services,5105663340,27.11.2015,Elderly Frail Residential Care,Charges from Independent Providers,"1,740.76",BUCKLAND CARE LTD
Revenue,Adult Services,5105663340,27.11.2015,Elderly Frail Residential Care,Charges from Independent Providers,"1,740.76",BUCKLAND CARE LTD
Revenue,Adult Services,5105663340,27.11.2015,Elderly Frail Residential Care,Charges from Independent Providers,"2,143.40",BUCKLAND CARE LTD
Revenue,Adult Services,5105663340,27.11.2015,Elderly Frail Residential Care,Charges from Independent Providers,"2,143.40",BUCKLAND CARE LTD
Revenue,Adult Services,5105663340,27.11.2015,Elderly Frail Residential Care,Charges from Independent Providers,"1,740.76",BUCKLAND CARE LTD
Revenue,Adult Services,5105663340,27.11.2015,Elderly Frail Residential Care,Charges from Independent Providers,"2,143.40",BUCKLAND CARE LTD
Revenue,Adult Services,5105658431,04.11.2015,Elderly Mentally Ill Residential Care,Charges from Independent Providers,"2,093.84",BUCKLAND CARE LTD
Revenue,Adult Services,5105658430,04.11.2015,Elderly Mentally Ill Residential Care,Charges from Independent Providers,"2,093.84",BUCKLAND CARE LTD
Revenue,Adult Services,5105658429,04.11.2015,Elderly Mentally Ill Residential Care,Charges from Independent Providers,"1,781.36",BUCKLAND CARE LTD
Revenue,Adult Services,5105658427,04.11.2015,Elderly Mentally Ill Residential Care,Charges from Independent Providers,"2,093.84",BUCKLAND CARE LTD
Revenue,Adult Services,5105658428,04.11.2015,Elderly Mentally Ill Residential Care,Charges from Independent Providers,"2,093.84",BUCKLAND CARE LTD
Revenue,Adult Services,5105658426,04.11.2015,Elderly Mentally Ill Residential Care,Charges from Independent Providers,"1,781.36",BUCKLAND CARE LTD
Revenue,Adult Services,5105658424,04.11.2015,Elderly Mentally Ill Residential Care,Charges from Independent Providers,"2,093.84",BUCKLAND CARE LTD
Revenue,Adult Services,5105658423,04.11.2015,Elderly Mentally Ill Residential Care,Charges from Independent Providers,"2,093.84",BUCKLAND CARE LTD
Revenue,Adult Services,5105658421,04.11.2015,Elderly Mentally Ill Residential Care,Charges from Independent Providers,"1,781.36",BUCKLAND CARE LTD
Revenue,Adult Services,5105663340,27.11.2015,Elderly Mentally Ill Residential Care,Charges from Independent Providers,"2,143.40",BUCKLAND CARE LTD
Revenue,Adult Services,5105663340,27.11.2015,Elderly Mentally Ill Residential Care,Charges from Independent Providers,"2,143.40",BUCKLAND CARE LTD
Revenue,Adult Services,5105663340,27.11.2015,Elderly Mentally Ill Residential Care,Charges from Independent Providers,"2,143.40",BUCKLAND CARE LTD
Revenue,Adult Services,5105663340,27.11.2015,Elderly Mentally Ill Residential Care,Charges from Independent Providers,"1,823.36",BUCKLAND CARE LTD
Revenue,Adult Services,5105663340,27.11.2015,Elderly Mentally Ill Residential Care,Charges from Independent Providers,"2,143.40",BUCKLAND CARE LTD
Revenue,Adult Services,5105663340,27.11.2015,Elderly Mentally Ill Residential Care,Charges from Independent Providers,"1,823.36",BUCKLAND CARE LTD
Revenue,Adult Services,5105663340,27.11.2015,Elderly Mentally Ill Residential Care,Charges from Independent Providers,"2,143.40",BUCKLAND CARE LTD
Revenue,Adult Services,5105663340,27.11.2015,Elderly Mentally Ill Residential Care,Charges from Independent Providers,"2,143.40",BUCKLAND CARE LTD
Revenue,Adult Services,5105663340,27.11.2015,Elderly Mentally Ill Residential Care,Charges from Independent Providers,"1,823.36",BUCKLAND CARE LTD
Revenue,Adult Services,5105658168,04.11.2015,Elderly Frail Nursing Island,Charges from Independent Providers,"2,784.60",BUCKLAND CARE LTD
Revenue,Adult Services,5105658175,04.11.2015,Elderly Frail Nursing Island,Charges from Independent Providers,"2,784.60",BUCKLAND CARE LTD
Revenue,Adult Services,5105658190,04.11.2015,Elderly Frail Nursing Island,Charges from Independent Providers,"2,784.60",BUCKLAND CARE LTD
Revenue,Adult Services,5105658177,04.11.2015,Elderly Frail Nursing Island,Charges from Independent Providers,"2,784.60",BUCKLAND CARE LTD
Revenue,Adult Services,5105658174,04.11.2015,Elderly Frail Nursing Island,Charges from Independent Providers,"2,784.60",BUCKLAND CARE LTD
Revenue,Adult Services,5105658183,04.11.2015,Elderly Frail Nursing Island,Charges from Independent Providers,"2,784.60",BUCKLAND CARE LTD
Revenue,Adult Services,5105663326,27.11.2015,Elderly Frail Nursing Island,Charges from Independent Providers,"2,854.88",BUCKLAND CARE LTD
Revenue,Adult Services,5105663326,27.11.2015,Elderly Frail Nursing Island,Charges from Independent Providers,"2,854.88",BUCKLAND CARE LTD
Revenue,Adult Services,5105663326,27.11.2015,Elderly Frail Nursing Island,Charges from Independent Providers,"2,854.88",BUCKLAND CARE LTD
Revenue,Adult Services,5105663326,27.11.2015,Elderly Frail Nursing Island,Charges from Independent Providers,"2,854.88",BUCKLAND CARE LTD
Revenue,Adult Services,5105663326,27.11.2015,Elderly Frail Nursing Island,Charges from Independent Providers,"2,854.88",BUCKLAND CARE LTD
Revenue,Adult Services,5105663326,27.11.2015,Elderly Frail Nursing Island,Charges from Independent Providers,"2,854.88",BUCKLAND CARE LTD
Revenue,Adult Services,5105658187,04.11.2015,Elderly Mentally Ill Nursing Island,Charges from Independent Providers,"2,784.60",BUCKLAND CARE LTD
Revenue,Adult Services,5105658186,04.11.2015,Elderly Mentally Ill Nursing Island,Charges from Independent Providers,"2,784.60",BUCKLAND CARE LTD
Revenue,Adult Services,5105658179,04.11.2015,Elderly Mentally Ill Nursing Island,Charges from Independent Providers,"2,784.60",BUCKLAND CARE LTD
Revenue,Adult Services,5105658196,04.11.2015,Elderly Mentally Ill Nursing Island,Charges from Independent Providers,"2,784.60",BUCKLAND CARE LTD
Revenue,Adult Services,5105658191,04.11.2015,Elderly Mentally Ill Nursing Island,Charges from Independent Providers,"2,784.60",BUCKLAND CARE LTD
Revenue,Adult Services,5105658184,04.11.2015,Elderly Mentally Ill Nursing Island,Charges from Independent Providers,"2,784.60",BUCKLAND CARE LTD
Revenue,Adult Services,5105659442,04.11.2015,Elderly Mentally Ill Nursing Island,Charges from Independent Providers,"2,784.60",BUCKLAND CARE LTD
Revenue,Adult Services,5105660038,11.11.2015,Elderly Mentally Ill Nursing Island,Charges from Independent Providers,"3,160.76",BUCKLAND CARE LTD
Revenue,Adult Services,5105663326,27.11.2015,Elderly Mentally Ill Nursing Island,Charges from Independent Providers,"2,854.88",BUCKLAND CARE LTD
Revenue,Adult Services,5105663326,27.11.2015,Elderly Mentally Ill Nursing Island,Charges from Independent Providers,"2,854.88",BUCKLAND CARE LTD
Revenue,Adult Services,5105663326,27.11.2015,Elderly Mentally Ill Nursing Island,Charges from Independent Providers,"2,854.88",BUCKLAND CARE LTD
Revenue,Adult Services,5105663326,27.11.2015,Elderly Mentally Ill Nursing Island,Charges from Independent Providers,"2,854.88",BUCKLAND CARE LTD
Revenue,Adult Services,5105663326,27.11.2015,Elderly Mentally Ill Nursing Island,Charges from Independent Providers,"2,854.88",BUCKLAND CARE LTD
Revenue,Adult Services,5105663326,27.11.2015,Elderly Mentally Ill Nursing Island,Charges from Independent Providers,"2,854.88",BUCKLAND CARE LTD
Revenue,Adult Services,5105663326,27.11.2015,Elderly Mentally Ill Nursing Island,Charges from Independent Providers,"2,854.88",BUCKLAND CARE LTD
Revenue,Adult Services,5105663326,27.11.2015,Elderly Mentally Ill Nursing Island,Regular Respite Care,"2,854.88",BUCKLAND CARE LTD
Revenue,Adult Services,5105663326,27.11.2015,Elderly Mentally Ill Nursing Island,Charges from Independent Providers,"2,854.88",BUCKLAND CARE LTD
Revenue,Adult Services,5105658176,04.11.2015,Elderly Mentally Ill Nursing Island,Regular Respite Care,"2,784.60",BUCKLAND CARE LTD
Revenue,Adult Services,5105658189,04.11.2015,Physical Disability Nursing Island,Charges from Independent Providers,"2,784.60",BUCKLAND CARE LTD
Revenue,Adult Services,5105663326,27.11.2015,Physical Disability Nursing Island,Charges from Independent Providers,"2,854.88",BUCKLAND CARE LTD
Revenue,Adult Services,5105658171,04.11.2015,Funded Nursing Care Island,Charges from Independent Providers,448.00,BUCKLAND CARE LTD
Revenue,Adult Services,5105658170,04.11.2015,Funded Nursing Care Island,Charges from Independent Providers,448.00,BUCKLAND CARE LTD
Revenue,Adult Services,5105658188,04.11.2015,Funded Nursing Care Island,Charges from Independent Providers,448.00,BUCKLAND CARE LTD
Revenue,Adult Services,5105658180,04.11.2015,Funded Nursing Care Island,Charges from Independent Providers,448.00,BUCKLAND CARE LTD
Revenue,Adult Services,5105658173,04.11.2015,Funded Nursing Care Island,Charges from Independent Providers,448.00,BUCKLAND CARE LTD
Revenue,Adult Services,5105658195,04.11.2015,Funded Nursing Care Island,Charges from Independent Providers,448.00,BUCKLAND CARE LTD
Revenue,Adult Services,5105658182,04.11.2015,Funded Nursing Care Island,Charges from Independent Providers,448.00,BUCKLAND CARE LTD
Revenue,Adult Services,5105658197,04.11.2015,Funded Nursing Care Island,Charges from Independent Providers,448.00,BUCKLAND CARE LTD
Revenue,Adult Services,5105658192,04.11.2015,Funded Nursing Care Island,Charges from Independent Providers,448.00,BUCKLAND CARE LTD
Revenue,Adult Services,5105658181,04.11.2015,Funded Nursing Care Island,Charges from Independent Providers,448.00,BUCKLAND CARE LTD
Revenue,Adult Services,5105658178,04.11.2015,Funded Nursing Care Island,Charges from Independent Providers,448.00,BUCKLAND CARE LTD
Revenue,Adult Services,5105658193,04.11.2015,Funded Nursing Care Island,Charges from Independent Providers,448.00,BUCKLAND CARE LTD
Revenue,Adult Services,5105658185,04.11.2015,Funded Nursing Care Island,Charges from Independent Providers,448.00,BUCKLAND CARE LTD
Revenue,Adult Services,5105658194,04.11.2015,Funded Nursing Care Island,Charges from Independent Providers,448.00,BUCKLAND CARE LTD
Revenue,Adult Services,5105663326,27.11.2015,Funded Nursing Care Island,Charges from Independent Providers,448.00,BUCKLAND CARE LTD
Revenue,Adult Services,5105663326,27.11.2015,Funded Nursing Care Island,Charges from Independent Providers,448.00,BUCKLAND CARE LTD
Revenue,Adult Services,5105663326,27.11.2015,Funded Nursing Care Island,Charges from Independent Providers,448.00,BUCKLAND CARE LTD
Revenue,Adult Services,5105663326,27.11.2015,Funded Nursing Care Island,Charges from Independent Providers,448.00,BUCKLAND CARE LTD
Revenue,Adult Services,5105663326,27.11.2015,Funded Nursing Care Island,Charges from Independent Providers,448.00,BUCKLAND CARE LTD
Revenue,Adult Services,5105663326,27.11.2015,Funded Nursing Care Island,Charges from Independent Providers,448.00,BUCKLAND CARE LTD
Revenue,Adult Services,5105663326,27.11.2015,Funded Nursing Care Island,Charges from Independent Providers,448.00,BUCKLAND CARE LTD
Revenue,Adult Services,5105663326,27.11.2015,Funded Nursing Care Island,Charges from Independent Providers,448.00,BUCKLAND CARE LTD
Revenue,Adult Services,5105663326,27.11.2015,Funded Nursing Care Island,Charges from Independent Providers,448.00,BUCKLAND CARE LTD
Revenue,Adult Services,5105663326,27.11.2015,Funded Nursing Care Island,Charges from Independent Providers,448.00,BUCKLAND CARE LTD
Revenue,Adult Services,5105658169,04.11.2015,REDACTED PERSONAL DATA,Order Settlement to Bal Sht GL,"2,336.60",BUCKLAND CARE LTD
Revenue,Adult Services,5105658172,04.11.2015,REDACTED PERSONAL DATA,Order Settlement to Bal Sht GL,"2,336.60",BUCKLAND CARE LTD
Revenue,Adult Services,5105659429,06.11.2015,Plean Dene,Consumable Cleaning Materials,156.50,BUNZL CLEANING & HYGIENE SUPPLIES LTD
Revenue,Adult Services,5105662346,25.11.2015,Plean Dene,Consumable Cleaning Materials,204.55,BUNZL CLEANING & HYGIENE SUPPLIES LTD
Revenue,Adult Services,5105658874,04.11.2015,Elderly Frail Nursing Mainland,Charges from Independent Providers,"1,961.68",BUPA CARE HOME (BNH) LTD
Revenue,Adult Services,5105663620,27.11.2015,Elderly Frail Nursing Mainland,Charges from Independent Providers,"1,961.68",BUPA CARE HOME (BNH) LTD
Revenue,Adult Services,5105659316,04.11.2015,Mental Health Residential Care,Charges from Independent Providers,"2,006.76",BUPA CARE HOMES LTD
Revenue,Adult Services,5105663922,27.11.2015,Mental Health Residential Care,Charges from Independent Providers,"2,006.76",BUPA CARE HOMES LTD
Revenue,Place,5105657588,20.11.2015,Project Manager Waste Strategy,Consultants Fees,"231,963.53",BURGES SALMON LLP
Revenue,Place,5105660527,18.11.2015,Project Manager Waste Strategy,Consultants Fees,"229,758.70",BURGES SALMON LLP
Revenue,Place,5105661313,20.11.2015,Project Manager Waste Strategy,Consultants Fees,"-231,963.53",BURGES SALMON LLP
Capital,Place,5105662328,25.11.2015,Cowes Floating Brdge,Payment to Contractors - Capital,220.85,BURNESS CORLETT
Capital,Place,5105662328,25.11.2015,Cowes Floating Brdge,Payment to Contractors - Capital,"8,000.00",BURNESS CORLETT
Capital,Place,5105660356,13.11.2015,Cowes Floating Brdge,Payment to Contractors - Capital,"18,332.42",BURNESS CORLETT
Revenue,Resources,5105661300,20.11.2015,ICT Refresh Programme,Computer Purchase & Rental,-8.29,BUY IT DIRECT
Revenue,Resources,5105661299,20.11.2015,ICT Refresh Programme,Computer Purchase & Rental,-39.14,BUY IT DIRECT
Revenue,Resources,5105662219,25.11.2015,ICT Refresh Programme,Computer Purchase & Rental,39.14,BUY IT DIRECT
Revenue,Resources,5105662219,25.11.2015,ICT Refresh Programme,Computer Purchase & Rental,8.29,BUY IT DIRECT
Revenue,Resources,5105652776,25.11.2015,ICT Desktop Experience project,Computer Purchase & Rental,"1,875.50",BUY IT DIRECT
Revenue,Place,5105659999,11.11.2015,SOREC Project ERDF,Grants to External Bodies,"3,964.02",BVD MARINE LTD
Revenue,Place,5105663202,27.11.2015,"Enterprise House, Newport",Grounds Maintenance,80.00,C & J GROUND MAINTENANCE
Revenue,Place,5105663073,27.11.2015,Somerton Industrial Park,Grounds Maintenance,160.00,C & J GROUND MAINTENANCE
Revenue,Place,5105663088,27.11.2015,Properties  - Other Properties,Grounds Maintenance,75.00,C & J GROUND MAINTENANCE
Revenue,Adult Services,5105660014,25.11.2015,Adelaide Resource Centre,Prop Svs only - Day to day mtce,"2,452.70",C & J GROUND MAINTENANCE
Revenue,Adult Services,5105662726,25.11.2015,Mental Health Day Services,Grounds Maintenance,225.00,C & J GROUND MAINTENANCE
Revenue,Childrens Services,5105663205,27.11.2015,Workshop Initiative Support in Education,Grounds Maintenance,55.00,C & J GROUND MAINTENANCE
Revenue,Childrens Services,5105659661,06.11.2015,Children placed with Family&Friends,Boarding Out Allowances,116.25,REDACTED PERSONAL DATA
Revenue,Childrens Services,5105659661,06.11.2015,Children placed with Family&Friends,Boarding Out Allowances,164.30,REDACTED PERSONAL DATA
Revenue,Childrens Services,5105662955,27.11.2015,Children placed with Family&Friends,Boarding Out Allowances,116.25,REDACTED PERSONAL DATA
Revenue,Childrens Services,5105662955,27.11.2015,Children placed with Family&Friends,Boarding Out Allowances,164.30,REDACTED PERSONAL DATA
Revenue,Childrens Services,5105661695,20.11.2015,Children placed with Family&Friends,Boarding Out Allowances,116.25,REDACTED PERSONAL DATA
Revenue,Childrens Services,5105661695,20.11.2015,Children placed with Family&Friends,Boarding Out Allowances,164.30,REDACTED PERSONAL DATA
Revenue,Childrens Services,5105660243,13.11.2015,Children placed with Family&Friends,Boarding Out Allowances,116.25,REDACTED PERSONAL DATA
Revenue,Childrens Services,5105660243,13.11.2015,Children placed with Family&Friends,Boarding Out Allowances,164.30,REDACTED PERSONAL DATA
Revenue,Childrens Services,5105659642,06.11.2015,Special Guardianship Order Costs,Support Children,125.79,REDACTED PERSONAL DATA
Revenue,Childrens Services,5105660224,13.11.2015,Special Guardianship Order Costs,Support Children,125.79,REDACTED PERSONAL DATA
Revenue,Childrens Services,5105662937,27.11.2015,Special Guardianship Order Costs,Support Children,125.79,REDACTED PERSONAL DATA
Revenue,Childrens Services,5105661677,20.11.2015,Special Guardianship Order Costs,Support Children,125.79,REDACTED PERSONAL DATA
Revenue,Place,5105660701,18.11.2015,Public Shelters - Ryde,General Materials,57.72,C BREWER & SONS LTD
Revenue,Place,5105660700,18.11.2015,Cemeteries-Binstead,Minor Works,83.60,C BREWER & SONS LTD
Revenue,Childrens Services,5105659686,06.11.2015,Children placed with Family&Friends,Boarding Out Allowances,142.86,REDACTED PERSONAL DATA
Revenue,Childrens Services,5105662979,27.11.2015,Children placed with Family&Friends,Boarding Out Allowances,142.86,REDACTED PERSONAL DATA
Revenue,Childrens Services,5105661720,20.11.2015,Children placed with Family&Friends,Boarding Out Allowances,142.86,REDACTED PERSONAL DATA
Revenue,Childrens Services,5105660268,13.11.2015,Children placed with Family&Friends,Boarding Out Allowances,142.86,REDACTED PERSONAL DATA
Revenue,Adult Services,5105661341,20.11.2015,No-Barriers,Training,80.00,REDACTED PERSONAL DATA
Revenue,Adult Services,5105661341,20.11.2015,No-Barriers,Training,80.00,REDACTED PERSONAL DATA
Revenue,Childrens Services,5105661705,20.11.2015,Adoption Costs,Support Children,125.79,REDACTED PERSONAL DATA
Revenue,Childrens Services,5105661705,20.11.2015,Adoption Costs,Support Children,132.69,REDACTED PERSONAL DATA
Revenue,Childrens Services,5105660253,13.11.2015,Adoption Costs,Support Children,125.79,REDACTED PERSONAL DATA
Revenue,Childrens Services,5105660253,13.11.2015,Adoption Costs,Support Children,132.69,REDACTED PERSONAL DATA
Revenue,Childrens Services,5105659671,06.11.2015,Adoption Costs,Support Children,125.79,REDACTED PERSONAL DATA
Revenue,Childrens Services,5105659671,06.11.2015,Adoption Costs,Support Children,132.69,REDACTED PERSONAL DATA
Revenue,Childrens Services,5105662965,27.11.2015,Adoption Costs,Support Children,125.79,REDACTED PERSONAL DATA
Revenue,Childrens Services,5105662965,27.11.2015,Adoption Costs,Support Children,132.69,REDACTED PERSONAL DATA
Revenue,Resources,5105662192,25.11.2015,Staff Benefits,Payment to Private Contractors,166.50,REDACTED PERSONAL DATA
Revenue,Childrens Services,5105659654,06.11.2015,Special Guardianship Order Costs,Support Children,125.79,REDACTED PERSONAL DATA
Revenue,Childrens Services,5105660236,13.11.2015,Special Guardianship Order Costs,Support Children,125.79,REDACTED PERSONAL DATA
Revenue,Childrens Services,5105662949,27.11.2015,Special Guardianship Order Costs,Support Children,125.79,REDACTED PERSONAL DATA
Revenue,Childrens Services,5105661689,20.11.2015,Special Guardianship Order Costs,Support Children,125.79,REDACTED PERSONAL DATA
Revenue,Childrens Services,5105659682,06.11.2015,In-house Fostering,Boarding Out Allowances,202.58,REDACTED PERSONAL DATA
Revenue,Childrens Services,5105659682,06.11.2015,In-house Fostering,Boarding Out Allowances,162.73,REDACTED PERSONAL DATA
Revenue,Childrens Services,5105660264,13.11.2015,In-house Fostering,Boarding Out Allowances,202.58,REDACTED PERSONAL DATA
Revenue,Childrens Services,5105660264,13.11.2015,In-house Fostering,Boarding Out Allowances,162.73,REDACTED PERSONAL DATA
Revenue,Childrens Services,5105661716,20.11.2015,In-house Fostering,Boarding Out Allowances,202.58,REDACTED PERSONAL DATA
Revenue,Childrens Services,5105661716,20.11.2015,In-house Fostering,Boarding Out Allowances,162.73,REDACTED PERSONAL DATA
Revenue,Childrens Services,5105662975,27.11.2015,In-house Fostering,Boarding Out Allowances,202.58,REDACTED PERSONAL DATA
Revenue,Childrens Services,5105662975,27.11.2015,In-house Fostering,Boarding Out Allowances,162.73,REDACTED PERSONAL DATA
Revenue,Childrens Services,5105659644,06.11.2015,Adoption Costs,Support Children,168.39,REDACTED PERSONAL DATA
Revenue,Childrens Services,5105661679,20.11.2015,Adoption Costs,Support Children,168.39,REDACTED PERSONAL DATA
Revenue,Childrens Services,5105661679,20.11.2015,Adoption Costs,Support Children,207.73,REDACTED PERSONAL DATA
Revenue,Childrens Services,5105660226,13.11.2015,Adoption Costs,Support Children,168.39,REDACTED PERSONAL DATA
Revenue,Childrens Services,5105660226,13.11.2015,Adoption Costs,Support Children,207.73,REDACTED PERSONAL DATA
Revenue,Childrens Services,5105659644,06.11.2015,Adoption Costs,Support Children,207.73,REDACTED PERSONAL DATA
Revenue,Childrens Services,5105662939,27.11.2015,Adoption Costs,Support Children,168.39,REDACTED PERSONAL DATA
Revenue,Childrens Services,5105662939,27.11.2015,Adoption Costs,Support Children,207.73,REDACTED PERSONAL DATA
Revenue,Childrens Services,5105659703,06.11.2015,Special Guardianship Order Costs,Support Children,116.80,REDACTED PERSONAL DATA
Revenue,Childrens Services,5105662996,27.11.2015,Special Guardianship Order Costs,Support Children,116.80,REDACTED PERSONAL DATA
Revenue,Childrens Services,5105660285,13.11.2015,Special Guardianship Order Costs,Support Children,116.80,REDACTED PERSONAL DATA
Revenue,Childrens Services,5105661737,20.11.2015,Special Guardianship Order Costs,Support Children,116.80,REDACTED PERSONAL DATA
Revenue,Childrens Services,5105659639,06.11.2015,In-house Fostering,Boarding Out Allowances,246.44,REDACTED PERSONAL DATA
Revenue,Childrens Services,5105659639,06.11.2015,In-house Fostering,Boarding Out Allowances,295.00,REDACTED PERSONAL DATA
Revenue,Childrens Services,5105659639,06.11.2015,In-house Fostering,Boarding Out Allowances,10.00,REDACTED PERSONAL DATA
Revenue,Childrens Services,5105660221,13.11.2015,In-house Fostering,Boarding Out Allowances,246.44,REDACTED PERSONAL DATA
Revenue,Childrens Services,5105660221,13.11.2015,In-house Fostering,Boarding Out Allowances,295.00,REDACTED PERSONAL DATA
Revenue,Childrens Services,5105660221,13.11.2015,In-house Fostering,Boarding Out Allowances,10.00,REDACTED PERSONAL DATA
Revenue,Childrens Services,5105661674,20.11.2015,In-house Fostering,Boarding Out Allowances,246.44,REDACTED PERSONAL DATA
Revenue,Childrens Services,5105661674,20.11.2015,In-house Fostering,Boarding Out Allowances,295.00,REDACTED PERSONAL DATA
Revenue,Childrens Services,5105661674,20.11.2015,In-house Fostering,Boarding Out Allowances,10.00,REDACTED PERSONAL DATA
Revenue,Childrens Services,5105662934,27.11.2015,In-house Fostering,Boarding Out Allowances,246.44,REDACTED PERSONAL DATA
Revenue,Childrens Services,5105662934,27.11.2015,In-house Fostering,Boarding Out Allowances,295.00,REDACTED PERSONAL DATA
Revenue,Childrens Services,5105662934,27.11.2015,In-house Fostering,Boarding Out Allowances,10.00,REDACTED PERSONAL DATA
Revenue,Childrens Services,5105659617,06.11.2015,In-house Fostering,Boarding Out Allowances,246.44,REDACTED PERSONAL DATA
Revenue,Childrens Services,5105659617,06.11.2015,In-house Fostering,Boarding Out Allowances,15.00,REDACTED PERSONAL DATA
Revenue,Childrens Services,5105659617,06.11.2015,In-house Fostering,Boarding Out Allowances,142.86,REDACTED PERSONAL DATA
Revenue,Childrens Services,5105659617,06.11.2015,In-house Fostering,Boarding Out Allowances,120.89,REDACTED PERSONAL DATA
Revenue,Childrens Services,5105659617,06.11.2015,In-house Fostering,Boarding Out Allowances,68.50,REDACTED PERSONAL DATA
Revenue,Childrens Services,5105660199,13.11.2015,In-house Fostering,Boarding Out Allowances,246.44,REDACTED PERSONAL DATA
Revenue,Childrens Services,5105660199,13.11.2015,In-house Fostering,Boarding Out Allowances,15.00,REDACTED PERSONAL DATA
Revenue,Childrens Services,5105660199,13.11.2015,In-house Fostering,Boarding Out Allowances,142.86,REDACTED PERSONAL DATA
Revenue,Childrens Services,5105660199,13.11.2015,In-house Fostering,Boarding Out Allowances,120.89,REDACTED PERSONAL DATA
Revenue,Childrens Services,5105660199,13.11.2015,In-house Fostering,Boarding Out Allowances,68.50,REDACTED PERSONAL DATA
Revenue,Childrens Services,5105661652,20.11.2015,In-house Fostering,Boarding Out Allowances,246.44,REDACTED PERSONAL DATA
Revenue,Childrens Services,5105661652,20.11.2015,In-house Fostering,Boarding Out Allowances,15.00,REDACTED PERSONAL DATA
Revenue,Childrens Services,5105662912,27.11.2015,In-house Fostering,Boarding Out Allowances,246.44,REDACTED PERSONAL DATA
Revenue,Childrens Services,5105662912,27.11.2015,In-house Fostering,Boarding Out Allowances,15.00,REDACTED PERSONAL DATA
Revenue,Childrens Services,5105662929,27.11.2015,Children placed with Family&Friends,Boarding Out Allowances,246.44,REDACTED PERSONAL DATA
Revenue,Childrens Services,5105662929,27.11.2015,Children placed with Family&Friends,Boarding Out Allowances,135.00,REDACTED PERSONAL DATA
Revenue,Childrens Services,5105661669,20.11.2015,Children placed with Family&Friends,Boarding Out Allowances,246.44,REDACTED PERSONAL DATA
Revenue,Childrens Services,5105661669,20.11.2015,Children placed with Family&Friends,Boarding Out Allowances,135.00,REDACTED PERSONAL DATA
Revenue,Childrens Services,5105660216,13.11.2015,Children placed with Family&Friends,Boarding Out Allowances,246.44,REDACTED PERSONAL DATA
Revenue,Childrens Services,5105660216,13.11.2015,Children placed with Family&Friends,Boarding Out Allowances,135.00,REDACTED PERSONAL DATA
Revenue,Childrens Services,5105659634,06.11.2015,Children placed with Family&Friends,Boarding Out Allowances,246.44,REDACTED PERSONAL DATA
Revenue,Childrens Services,5105659634,06.11.2015,Children placed with Family&Friends,Boarding Out Allowances,135.00,REDACTED PERSONAL DATA
Revenue,Place,5105660621,18.11.2015,Rights of Way Operations,Payment to Private Contractors,384.00,C N SERVICES
Revenue,Place,5105664103,27.11.2015,Rights of Way Operations,Payment to Private Contractors,384.00,C N SERVICES
Revenue,Place,5105659431,04.11.2015,Parks/ Gardens Inspectors,Payment to Private Contractors,78.96,C N SERVICES
Revenue,Place,5105660624,25.11.2015,Other Grounds Maintenance,Payment to Private Contractors,180.00,C N SERVICES
Revenue,Place,5105660522,20.11.2015,Play Areas Health & Safety work,Payment to Private Contractors,245.00,C N SERVICES
Revenue,Place,5105659431,04.11.2015,Public Seats  (incl.Dedicated Seats),Payment to Private Contractors,156.04,C N SERVICES
Revenue,Place,5105659477,04.11.2015,Coast Protection,Payment to Private Contractors,147.00,C N SERVICES
Revenue,Place,5105662314,25.11.2015,Coast Protection,Payment to Private Contractors,666.00,C N SERVICES
Revenue,Place,5105662372,25.11.2015,Coast Protection,Payment to Private Contractors,178.75,C N SERVICES
Revenue,Place,5105662299,25.11.2015,Coast Protection,Payment to Private Contractors,297.00,C N SERVICES
Capital,Place,5105664104,27.11.2015,Rights Of Way Capital Programme,Payment to Contractors - Capital,"1,186.75",C N SERVICES
Capital,Place,5105660622,18.11.2015,Rights Of Way Capital Programme,Payment to Contractors - Capital,576.00,C N SERVICES
Capital,Place,5105659457,04.11.2015,Rights Of Way Capital Programme,Payment to Contractors - Capital,384.00,C N SERVICES
Revenue,Childrens Services,5105661699,20.11.2015,Special Guardianship Order Costs,Support Children,161.49,REDACTED PERSONAL DATA
Revenue,Childrens Services,5105659665,06.11.2015,Special Guardianship Order Costs,Support Children,161.49,REDACTED PERSONAL DATA
Revenue,Childrens Services,5105660247,13.11.2015,Special Guardianship Order Costs,Support Children,161.49,REDACTED PERSONAL DATA
Revenue,Childrens Services,5105662959,27.11.2015,Special Guardianship Order Costs,Support Children,161.49,REDACTED PERSONAL DATA
Revenue,Adult Services,5105657705,04.11.2015,Learning Disability Residential Care,Charges from Independent Providers,"1,894.76",REDACTED PERSONAL DATA
Revenue,Adult Services,5105663285,27.11.2015,Learning Disability Residential Care,Charges from Independent Providers,"1,936.76",REDACTED PERSONAL DATA
Revenue,Childrens Services,5105661675,20.11.2015,Adoption Costs,Support Children,132.69,REDACTED PERSONAL DATA
Revenue,Childrens Services,5105660222,13.11.2015,Adoption Costs,Support Children,132.69,REDACTED PERSONAL DATA
Revenue,Childrens Services,5105659640,06.11.2015,Adoption Costs,Support Children,132.69,REDACTED PERSONAL DATA
Revenue,Childrens Services,5105662935,27.11.2015,Adoption Costs,Support Children,132.69,REDACTED PERSONAL DATA
Revenue,Resources,5105659985,13.11.2015,ICT Contracts,Computer Maintenance,"2,733.21",CABLE & WIRELESS WORLDWIDE
Revenue,Childrens Services,5105656960,06.11.2015,LSCB (Local Safeguarding Childrens Board),Professional Services,550.00,CHILDREN ACT ENTERPRISES LTD
Revenue,Childrens Services,5105662843,27.11.2015,Learning & Development Running Costs,Gas,244.79,CALOR GAS LIMITED
Revenue,Place,5105663188,27.11.2015,Transport Fleet Administration,Maintenance of Operational Equipment,13.75,CALOR GAS LIMITED
Revenue,Childrens Services,5105662774,27.11.2015,Post 16 Independ. & Non-Maint. Special Schls & Independ. Specialist Provision,Charges from Independent Providers,"41,678.37",CAMBIAN ASPERGER SYNDROME SERVICES LTD
Revenue,Childrens Services,5105662408,25.11.2015,Purchased Residential,Charges from Independent Providers,"31,584.14",CAMBIAN AUTISM SERVICES LTD
Revenue,Childrens Services,5105662406,25.11.2015,Purchased Residential,Charges from Independent Providers,"22,658.19",CAMBIAN AUTISM SERVICES LTD
Revenue,Childrens Services,5105662408,25.11.2015,Pre 16 Independ. & Non-Maint. Special Schls & Independ. Specialist Provision,Charges from Independent Providers,"18,549.42",CAMBIAN AUTISM SERVICES LTD
Revenue,Childrens Services,5105662406,25.11.2015,Pre 16 Independ. & Non-Maint. Special Schls & Independ. Specialist Provision,Charges from Independent Providers,"13,307.19",CAMBIAN AUTISM SERVICES LTD
Revenue,Childrens Services,5105661318,20.11.2015,Purchased Residential,Charges from Independent Providers,"24,171.67",CAMBIAN CHILDCARE LTD
Revenue,Childrens Services,5105661318,20.11.2015,Independent Schools Non-Special Educational Needs,Charges from Independent Providers,"3,021.12",CAMBIAN CHILDCARE LTD
Revenue,Childrens Services,5105661316,20.11.2015,Pre 16 Independ. & Non-Maint. Special Schls & Independ. Specialist Provision,Charges from Independent Providers,"36,000.30",CAMBIAN CHILDCARE LTD
Revenue,Childrens Services,5105660477,20.11.2015,Pre 16 Independ. & Non-Maint. Special Schls & Independ. Specialist Provision,Charges from Independent Providers,"15,428.70",CAMBIAN CHILDCARE LTD
Revenue,Childrens Services,5105662589,25.11.2015,Pre 16 Independ. & Non-Maint. Special Schls & Independ. Specialist Provision,Charges from Independent Providers,"15,942.99",CAMBIAN CHILDCARE LTD
Revenue,Childrens Services,5105662394,25.11.2015,Pre 16 Independ. & Non-Maint. Special Schls & Independ. Specialist Provision,Charges from Independent Providers,"15,428.70",CAMBIAN CHILDCARE LTD
Revenue,Resources,5105662226,27.11.2015,Litigation Costs,Legal Fees - Other Parties,100.00,CAMERON LAMB LTD
Revenue,Place,5105662225,27.11.2015,Coroner,Professional Services,75.00,CAMERON LAMB LTD
Revenue,Place,5105664132,27.11.2015,"Enterprise House, Newport",Cleaning Contracts,12.09,CANNON HYGIENE
Revenue,Place,5105664132,27.11.2015,"County Hall,Newport",Cleaning Contracts,105.73,CANNON HYGIENE
Revenue,Place,5105664132,27.11.2015,"Civic Centre,Sandown",Cleaning Contracts,11.05,CANNON HYGIENE
Revenue,Place,5105664132,27.11.2015,"Westridge, Ryde",Cleaning Contracts,5.20,CANNON HYGIENE
Revenue,Place,5105664132,27.11.2015,Downside Community & Learning Centre,Cleaning Contracts,12.35,CANNON HYGIENE
Revenue,Adult Services,5105664132,27.11.2015,S75 Integrated Community Equipment Store,Cleaning Contracts,1.04,CANNON HYGIENE
Revenue,Adult Services,5105664132,27.11.2015,31 Carter Avenue,Cleaning Contracts,1.04,CANNON HYGIENE
Revenue,Adult Services,5105660500,18.11.2015,31 Carter Avenue,Cleaning Contracts,8.00,CANNON HYGIENE
Revenue,Adult Services,5105664132,27.11.2015,Overbrook,Cleaning Contracts,42.90,CANNON HYGIENE
Revenue,Adult Services,5105664132,27.11.2015,Seagulls,Cleaning Contracts,1.04,CANNON HYGIENE
Revenue,Adult Services,5105660500,18.11.2015,Seagulls,Cleaning Contracts,8.00,CANNON HYGIENE
Revenue,Adult Services,5105664132,27.11.2015,Plean Dene,Cleaning Contracts,109.03,CANNON HYGIENE
Revenue,Adult Services,5105664132,27.11.2015,Saxonbury,Cleaning Contracts,120.26,CANNON HYGIENE
Revenue,Adult Services,5105660500,18.11.2015,Saxonbury,Cleaning Contracts,4.80,CANNON HYGIENE
Revenue,Adult Services,5105664132,27.11.2015,Highmead,Cleaning Contracts,30.11,CANNON HYGIENE
Revenue,Adult Services,5105664132,27.11.2015,The Laurels,Cleaning Contracts,30.12,CANNON HYGIENE
Revenue,Place,5105664132,27.11.2015,"Barrack Block, Sandown",Cleaning Contracts,4.16,CANNON HYGIENE
Revenue,Adult Services,5105664132,27.11.2015,Adelaide Resource Centre,Cleaning Contracts,35.01,CANNON HYGIENE
Revenue,Adult Services,5105664132,27.11.2015,Westminster House,Cleaning Contracts,49.22,CANNON HYGIENE
Revenue,Adult Services,5105664132,27.11.2015,Mental Health Day Services,Cleaning Contracts,2.08,CANNON HYGIENE
Revenue,Adult Services,5105664132,27.11.2015,Mental Health Day Services,Cleaning Contracts,4.16,CANNON HYGIENE
Revenue,Place,5105664132,27.11.2015,Library HQ,Cleaning Contracts,1.04,CANNON HYGIENE
Revenue,Place,5105664132,27.11.2015,Cowes Library,Cleaning Contracts,1.04,CANNON HYGIENE
Revenue,Place,5105664132,27.11.2015,Freshwater West Wight Library,Cleaning Contracts,1.04,CANNON HYGIENE
Revenue,Place,5105664132,27.11.2015,Newport Library,Cleaning Contracts,10.96,CANNON HYGIENE
Revenue,Place,5105664132,27.11.2015,Ryde Library,Cleaning Contracts,5.29,CANNON HYGIENE
Revenue,Place,5105664132,27.11.2015,Sandown Library,Cleaning Contracts,1.04,CANNON HYGIENE
Revenue,Place,5105664132,27.11.2015,Ventnor Library,Cleaning Contracts,1.04,CANNON HYGIENE
Revenue,Childrens Services,5105664132,27.11.2015,Learning & Development Running Costs,Cleaning Contracts,5.20,CANNON HYGIENE
Revenue,Place,5105664132,27.11.2015,Guildhall Museum,Cleaning Contracts,1.04,CANNON HYGIENE
Revenue,Place,5105664132,27.11.2015,Dinosaur Isle Museum (Sandown Geology),Cleaning Contracts,11.53,CANNON HYGIENE
Revenue,Place,5105664132,27.11.2015,The Heights,Cleaning Contracts,78.35,CANNON HYGIENE
Revenue,Place,5105664132,27.11.2015,Medina Leisure Centre,Cleaning Contracts,38.91,CANNON HYGIENE
Revenue,Place,5105664132,27.11.2015,Westridge Squash Courts,Cleaning Contracts,4.16,CANNON HYGIENE
Revenue,Childrens Services,5105664132,27.11.2015,Workshop Initiative Support in Education,Cleaning Contracts,2.08,CANNON HYGIENE
Revenue,Childrens Services,5105664132,27.11.2015,Contact Team,Cleaning Contracts,8.41,CANNON HYGIENE
Revenue,Childrens Services,5105664132,27.11.2015,Specialist Service Business Admin,Cleaning Contracts,13.13,CANNON HYGIENE
Revenue,Childrens Services,5105664132,27.11.2015,Beaulieu House,Cleaning Contracts,156.30,CANNON HYGIENE
Revenue,Childrens Services,5105664132,27.11.2015,Branstone Farm Studies Centre,Cleaning Contracts,3.12,CANNON HYGIENE
Revenue,Place,5105664132,27.11.2015,Fort Victoria,Cleaning Contracts,4.51,CANNON HYGIENE
Revenue,Place,5105664132,27.11.2015,Fire Technical Support,Cleaning Contracts,1.04,CANNON HYGIENE
Revenue,Place,5105664132,27.11.2015,Fire Technical Support,Cleaning Contracts,1.04,CANNON HYGIENE
Revenue,Place,5105664132,27.11.2015,Fire Technical Support,Cleaning Contracts,2.08,CANNON HYGIENE
Revenue,Place,5105664132,27.11.2015,Fire Technical Support,Cleaning Contracts,1.04,CANNON HYGIENE
Revenue,Place,5105664132,27.11.2015,Fire Technical Support,Cleaning Contracts,3.12,CANNON HYGIENE
Revenue,Place,5105664132,27.11.2015,Fire Technical Support,Cleaning Contracts,1.04,CANNON HYGIENE
Revenue,Place,5105664132,27.11.2015,Fire Technical Support,Cleaning Contracts,5.20,CANNON HYGIENE
Revenue,Place,5105664132,27.11.2015,Planning Business Support,Cleaning Contracts,22.41,CANNON HYGIENE
Revenue,Place,5105664132,27.11.2015,Regulatory Management & Admin Support,Cleaning Contracts,3.12,CANNON HYGIENE
Revenue,Place,5105664132,27.11.2015,Crematorium,Cleaning Contracts,3.12,CANNON HYGIENE
Revenue,Place,5105655700,20.11.2015,Print Unit,Photocopying Costs,"1,722.50",CANON (UK) LTD
Revenue,Childrens Services,5105659752,05.11.2015,Workforce Development - Early Years,Training,"-1,050.00",CANTERBURY CHRIST CHURCH
Revenue,Place,5105663242,27.11.2015,Public Libraries Central,Office Equipment,74.00,CAPCOM LAND SEA & AIR COMMUN.LTD
Capital,Place,5105659790,06.11.2015,Parks and Gardens Capital,External Design and Supervision Fees,"6,500.00",CAPITA
Revenue,Childrens Services,5105662817,27.11.2015,Education & Participation,Training,350.00,CAPITA BUSINESS SERVICES LTD
Revenue,Childrens Services,5105660099,20.11.2015,Island Learning Centre,Professional Services,795.00,CAPITA BUSINESS SERVICES LTD
Revenue,Childrens Services,5105662074,25.11.2015,Purchased Fostering,Charges from Independent Providers,200.00,CAPSTONE FOSTER CARE LTD
Revenue,Childrens Services,5105662076,25.11.2015,Purchased Fostering,Charges from Independent Providers,-200.00,CAPSTONE FOSTER CARE LTD
Revenue,Childrens Services,5105662379,25.11.2015,Short Breaks,Grants to External Bodies,705.00,CARE CONNECT IOW CIC
Revenue,Childrens Services,5105662042,25.11.2015,Short Breaks,Grants to External Bodies,90.00,CARE CONNECT IOW CIC
Revenue,Adult Services,5105660534,18.11.2015,Elderly Frail Homecare,Charges from Independent Providers,117.30,CARE FIRST IW LTD
Revenue,Adult Services,5105660533,18.11.2015,Elderly Frail Homecare,Charges from Independent Providers,676.43,CARE FIRST IW LTD
Revenue,Adult Services,5105660529,18.11.2015,Elderly Frail Homecare,Charges from Independent Providers,703.80,CARE FIRST IW LTD
Revenue,Adult Services,5105660531,18.11.2015,Elderly Frail Homecare,Charges from Independent Providers,703.80,CARE FIRST IW LTD
Revenue,Adult Services,5105660532,18.11.2015,Elderly Frail Homecare,Charges from Independent Providers,821.10,CARE FIRST IW LTD
Revenue,Adult Services,5105660543,18.11.2015,Elderly Frail Homecare,Charges from Independent Providers,"2,737.00",CARE FIRST IW LTD
Revenue,Adult Services,5105660544,18.11.2015,Elderly Frail Homecare,Charges from Independent Providers,"1,094.80",CARE FIRST IW LTD
Revenue,Adult Services,5105660573,18.11.2015,Elderly Frail Homecare,Regular Respite Care,234.60,CARE FIRST IW LTD
Revenue,Adult Services,5105660555,18.11.2015,Elderly Frail Homecare,Regular Respite Care,156.40,CARE FIRST IW LTD
Revenue,Adult Services,5105660548,18.11.2015,Elderly Frail Homecare,Regular Respite Care,469.20,CARE FIRST IW LTD
Revenue,Adult Services,5105660553,18.11.2015,Elderly Frail Homecare,Regular Respite Care,156.40,CARE FIRST IW LTD
Revenue,Adult Services,5105660553,18.11.2015,Elderly Frail Homecare,Regular Respite Care,156.40,CARE FIRST IW LTD
Revenue,Adult Services,5105660564,18.11.2015,Elderly Frail Homecare,Regular Respite Care,78.20,CARE FIRST IW LTD
Revenue,Adult Services,5105660558,18.11.2015,Elderly Frail Homecare,Regular Respite Care,156.40,CARE FIRST IW LTD
Revenue,Adult Services,5105660567,18.11.2015,Elderly Frail Homecare,Regular Respite Care,156.40,CARE FIRST IW LTD
Revenue,Adult Services,5105660572,18.11.2015,Elderly Frail Homecare,Regular Respite Care,156.40,CARE FIRST IW LTD
Revenue,Adult Services,5105660569,18.11.2015,Elderly Frail Homecare,Charges from Independent Providers,218.96,CARE FIRST IW LTD
Revenue,Adult Services,5105660556,18.11.2015,Elderly Frail Homecare,Charges from Independent Providers,453.56,CARE FIRST IW LTD
Revenue,Adult Services,5105660568,18.11.2015,Elderly Frail Homecare,Charges from Independent Providers,547.40,CARE FIRST IW LTD
Revenue,Adult Services,5105660550,18.11.2015,Elderly Frail Homecare,Charges from Independent Providers,535.67,CARE FIRST IW LTD
Revenue,Adult Services,5105660541,18.11.2015,Elderly Frail Homecare,Charges from Independent Providers,821.10,CARE FIRST IW LTD
Revenue,Adult Services,5105660542,18.11.2015,Elderly Frail Homecare,Charges from Independent Providers,"1,642.20",CARE FIRST IW LTD
Revenue,Adult Services,5105660545,18.11.2015,Elderly Frail Homecare,Charges from Independent Providers,"1,345.04",CARE FIRST IW LTD
Revenue,Adult Services,5105660546,18.11.2015,Elderly Frail Homecare,Charges from Independent Providers,821.10,CARE FIRST IW LTD
Revenue,Adult Services,5105660547,18.11.2015,Elderly Frail Homecare,Charges from Independent Providers,195.50,CARE FIRST IW LTD
Revenue,Adult Services,5105660549,18.11.2015,Elderly Frail Homecare,Charges from Independent Providers,547.40,CARE FIRST IW LTD
Revenue,Adult Services,5105660539,18.11.2015,Elderly Frail Homecare,Charges from Independent Providers,547.40,CARE FIRST IW LTD
Revenue,Adult Services,5105660562,18.11.2015,Elderly Frail Homecare,Charges from Independent Providers,"1,094.80",CARE FIRST IW LTD
Revenue,Adult Services,5105660560,18.11.2015,Elderly Frail Homecare,Charges from Independent Providers,"1,759.50",CARE FIRST IW LTD
Revenue,Adult Services,5105660557,18.11.2015,Elderly Frail Homecare,Charges from Independent Providers,"1,331.75",CARE FIRST IW LTD
Revenue,Adult Services,5105660552,18.11.2015,Elderly Frail Homecare,Charges from Independent Providers,140.76,CARE FIRST IW LTD
Revenue,Adult Services,5105660566,18.11.2015,Elderly Frail Homecare,Charges from Independent Providers,46.92,CARE FIRST IW LTD
Revenue,Adult Services,5105660571,18.11.2015,Elderly Frail Homecare,Charges from Independent Providers,273.70,CARE FIRST IW LTD
Revenue,Adult Services,5105660575,18.11.2015,Elderly Frail Homecare,Charges from Independent Providers,750.72,CARE FIRST IW LTD
Revenue,Adult Services,5105660576,18.11.2015,Elderly Frail Homecare,Charges from Independent Providers,172.04,CARE FIRST IW LTD
Revenue,Adult Services,5105660574,18.11.2015,Elderly Frail Homecare,Charges from Independent Providers,426.19,CARE FIRST IW LTD
Revenue,Adult Services,5105660577,18.11.2015,Elderly Frail Homecare,Charges from Independent Providers,258.06,CARE FIRST IW LTD
Revenue,Adult Services,5105660578,18.11.2015,Elderly Frail Homecare,Charges from Independent Providers,172.04,CARE FIRST IW LTD
Revenue,Adult Services,5105660579,18.11.2015,Elderly Frail Homecare,Charges from Independent Providers,222.87,CARE FIRST IW LTD
Revenue,Adult Services,5105660551,18.11.2015,Elderly Frail Homecare,Charges from Independent Providers,"2,952.05",CARE FIRST IW LTD
Revenue,Adult Services,5105660535,18.11.2015,Elderly Frail Homecare,Charges from Independent Providers,312.80,CARE FIRST IW LTD
Revenue,Adult Services,5105660536,18.11.2015,Elderly Frail Homecare,Charges from Independent Providers,684.25,CARE FIRST IW LTD
Revenue,Adult Services,5105660559,18.11.2015,Elderly Mentally Ill Homecare,Charges from Independent Providers,547.40,CARE FIRST IW LTD
Revenue,Adult Services,5105660537,18.11.2015,Elderly Mentally Ill Homecare,Charges from Independent Providers,821.10,CARE FIRST IW LTD
Revenue,Adult Services,5105660538,18.11.2015,Elderly Mentally Ill Homecare,Regular Respite Care,156.40,CARE FIRST IW LTD
Revenue,Adult Services,5105660570,18.11.2015,Elderly Mentally Ill Homecare,Regular Respite Care,469.20,CARE FIRST IW LTD
Revenue,Adult Services,5105660565,18.11.2015,Elderly Mentally Ill Homecare,Regular Respite Care,156.40,CARE FIRST IW LTD
Revenue,Adult Services,5105660561,18.11.2015,Mental Health Homecare,Charges from Independent Providers,"1,251.20",CARE FIRST IW LTD
Revenue,Adult Services,5105660530,18.11.2015,Mental Health Homecare,Charges from Independent Providers,273.70,CARE FIRST IW LTD
Revenue,Adult Services,5105660563,18.11.2015,Physical Disability Homecare,Charges from Independent Providers,156.40,CARE FIRST IW LTD
Revenue,Adult Services,5105660540,18.11.2015,Physical Disability Homecare,Charges from Independent Providers,164.22,CARE FIRST IW LTD
Revenue,Adult Services,5105660554,18.11.2015,Physical Disability Homecare,Charges from Independent Providers,93.84,CARE FIRST IW LTD
Revenue,Adult Services,5105659524,04.11.2015,ASC Care Act 2014,Professional Services,150.00,CARERS IW
Revenue,Adult Services,5105660960,25.11.2015,BCF Carers Training,Payment to Private Contractors,"3,186.00",CARERS IW
Revenue,Adult Services,5105660710,18.11.2015,Elderly Frail Homecare,Charges from Independent Providers,531.76,CAREWATCH (SOUTHAMPTON NEW FOREST & IOW)
Revenue,Adult Services,5105660715,18.11.2015,Elderly Frail Homecare,Charges from Independent Providers,195.50,CAREWATCH (SOUTHAMPTON NEW FOREST & IOW)
Revenue,Adult Services,5105660716,18.11.2015,Elderly Frail Homecare,Charges from Independent Providers,950.13,CAREWATCH (SOUTHAMPTON NEW FOREST & IOW)
Revenue,Adult Services,5105660746,18.11.2015,Elderly Frail Homecare,Charges from Independent Providers,946.22,CAREWATCH (SOUTHAMPTON NEW FOREST & IOW)
Revenue,Adult Services,5105660713,18.11.2015,Elderly Frail Homecare,Charges from Independent Providers,273.70,CAREWATCH (SOUTHAMPTON NEW FOREST & IOW)
Revenue,Adult Services,5105660711,18.11.2015,Elderly Frail Homecare,Charges from Independent Providers,109.48,CAREWATCH (SOUTHAMPTON NEW FOREST & IOW)
Revenue,Adult Services,5105660714,18.11.2015,Elderly Frail Homecare,Charges from Independent Providers,172.04,CAREWATCH (SOUTHAMPTON NEW FOREST & IOW)
Revenue,Adult Services,5105660706,18.11.2015,Elderly Frail Homecare,Charges from Independent Providers,15.64,CAREWATCH (SOUTHAMPTON NEW FOREST & IOW)
Revenue,Adult Services,5105660708,18.11.2015,Elderly Frail Homecare,Charges from Independent Providers,703.80,CAREWATCH (SOUTHAMPTON NEW FOREST & IOW)
Revenue,Adult Services,5105660709,18.11.2015,Elderly Frail Homecare,Charges from Independent Providers,"1,681.30",CAREWATCH (SOUTHAMPTON NEW FOREST & IOW)
Revenue,Adult Services,5105660792,18.11.2015,Elderly Frail Homecare,Charges from Independent Providers,242.42,CAREWATCH (SOUTHAMPTON NEW FOREST & IOW)
Revenue,Adult Services,5105660787,18.11.2015,Elderly Frail Homecare,Charges from Independent Providers,156.40,CAREWATCH (SOUTHAMPTON NEW FOREST & IOW)
Revenue,Adult Services,5105660785,18.11.2015,Elderly Frail Homecare,Charges from Independent Providers,179.86,CAREWATCH (SOUTHAMPTON NEW FOREST & IOW)
Revenue,Adult Services,5105660786,18.11.2015,Elderly Frail Homecare,Charges from Independent Providers,273.70,CAREWATCH (SOUTHAMPTON NEW FOREST & IOW)
Revenue,Adult Services,5105660783,18.11.2015,Elderly Frail Homecare,Charges from Independent Providers,273.70,CAREWATCH (SOUTHAMPTON NEW FOREST & IOW)
Revenue,Adult Services,5105660791,18.11.2015,Elderly Frail Homecare,Charges from Independent Providers,117.30,CAREWATCH (SOUTHAMPTON NEW FOREST & IOW)
Revenue,Adult Services,5105660793,18.11.2015,Elderly Frail Homecare,Charges from Independent Providers,398.82,CAREWATCH (SOUTHAMPTON NEW FOREST & IOW)
Revenue,Adult Services,5105660795,18.11.2015,Elderly Frail Homecare,Charges from Independent Providers,547.40,CAREWATCH (SOUTHAMPTON NEW FOREST & IOW)
Revenue,Adult Services,5105660799,18.11.2015,Elderly Frail Homecare,Charges from Independent Providers,156.40,CAREWATCH (SOUTHAMPTON NEW FOREST & IOW)
Revenue,Adult Services,5105661365,20.11.2015,Elderly Frail Homecare,Charges from Independent Providers,62.56,CAREWATCH (SOUTHAMPTON NEW FOREST & IOW)
Revenue,Adult Services,5105660801,18.11.2015,Elderly Frail Homecare,Charges from Independent Providers,156.40,CAREWATCH (SOUTHAMPTON NEW FOREST & IOW)
Revenue,Adult Services,5105660756,18.11.2015,Elderly Frail Homecare,Charges from Independent Providers,78.20,CAREWATCH (SOUTHAMPTON NEW FOREST & IOW)
Revenue,Adult Services,5105660773,18.11.2015,Elderly Frail Homecare,Charges from Independent Providers,"1,309.85",CAREWATCH (SOUTHAMPTON NEW FOREST & IOW)
